ServiceArea,Service,ResponsibleUnit,ExpensesType,Narrative,DatePaid,Invoice,TransactionReference,NetAmount,CapitalRevenue,SupplierID,SupplierName,Postcode,UnrecoveredVAT
Director Digital & Customer En,Communications,Communications,Consultancy Fees,SOCIAL MEDIA MANAGEMENT,18/05/2021,REDACTED INVOICE NUMBER,142794,"2,600.00",Revenue,27915,24 Fingers Ltd,CM15 9BP,0.00
Director Corporate Resources,Asset Management,Asset Management,R&M Bldgs - General,PEST CONTROL,07/05/2021,REDACTED INVOICE NUMBER,142227,440.00,Revenue,29,A1 Environmental Pest Control,CM13 1LH,0.00
Director Corporate Resources,Asset Management,Asset Management,R&M Bldgs - General,PEST CONTROL,28/05/2021,REDACTED INVOICE NUMBER,142947,70.00,Revenue,29,A1 Environmental Pest Control,CM13 1LH,0.00
Director Of Environment,Open Spaces,Recreation Areas,Purchases - Materials,PEST CONTROL,28/05/2021,REDACTED INVOICE NUMBER,142948,440.00,Revenue,29,A1 Environmental Pest Control,CM13 1LH,0.00
Director Corporate Resources,Corporate Finance,Corporate Finance,Consultancy Fees,MAKING TAX DIGITAL - MAR '21,25/05/2021,REDACTED INVOICE NUMBER,141352,"1,119.00",Revenue,24612,Advanced Business Software & Solutions Ltd,KT11 1TF,0.00
Director Corporate Resources,Asset Management,Asset Management,R&M Bldgs - General,INSPECTION FEE - ALLEN FORD,28/05/2021,REDACTED INVOICE NUMBER,142390,"4,862.40",Revenue,28536,Agb  Environmental Ltd,CB8 0AT,0.00
Director Housing & Enforcement,Community Safety,Corporate Enforcement,Vehicle Hire,VAN HIRE,04/05/2021,REDACTED INVOICE NUMBER,141663,75.00,Revenue,1257,Ahl Fleet,RM14 3NX,0.00
Director Of Environment,Env Health & Licensing Admin,Env Health & Licensing Admin,Vehicle Hire,VAN HIRE,04/05/2021,REDACTED INVOICE NUMBER,141662,75.00,Revenue,1257,Ahl Fleet,RM14 3NX,0.00
Hra Expenditure,Special Services,Caretaking,Vehicle Hire,VAN HIRE,04/05/2021,REDACTED INVOICE NUMBER,142481,-54.00,Revenue,1257,Ahl Fleet,RM14 3NX,0.00
Hra Expenditure,Special Services,Caretaking,Vehicle Hire,VAN HIRE,04/05/2021,REDACTED INVOICE NUMBER,140979,81.00,Revenue,1257,Ahl Fleet,RM14 3NX,0.00
Director Of Environment,Env Health & Licensing Admin,Env Health & Licensing Admin,Vehicle Hire,VAN HIRE,07/05/2021,REDACTED INVOICE NUMBER,141664,85.00,Revenue,1257,Ahl Fleet,RM14 3NX,0.00
Director Of Environment,Env Health & Licensing Admin,Env Health & Licensing Admin,Vehicle Hire,VAN HIRE,07/05/2021,REDACTED INVOICE NUMBER,141493,85.00,Revenue,1257,Ahl Fleet,RM14 3NX,0.00
Director Of Environment,Env Health & Licensing Admin,Env Health & Licensing Admin,Vehicle Hire,VAN HIRE,07/05/2021,REDACTED INVOICE NUMBER,142370,85.00,Revenue,1257,Ahl Fleet,RM14 3NX,0.00
Director Housing & Enforcement,Community Safety,Corporate Enforcement,Vehicle Hire,VAN HIRE,11/05/2021,REDACTED INVOICE NUMBER,142105,75.00,Revenue,1257,Ahl Fleet,RM14 3NX,0.00
Director Of Environment,Env Health & Licensing Admin,Env Health & Licensing Admin,Vehicle Hire,VAN HIRE,11/05/2021,REDACTED INVOICE NUMBER,142103,75.00,Revenue,1257,Ahl Fleet,RM14 3NX,0.00
Director Of Environment,Env Health & Licensing Admin,Env Health & Licensing Admin,Vehicle Hire,VAN HIRE,11/05/2021,REDACTED INVOICE NUMBER,142106,85.00,Revenue,1257,Ahl Fleet,RM14 3NX,0.00
Director Of Environment,Grounds Maintenance,Grounds Maintenance,Vehicle Hire,VAN HIRE,11/05/2021,REDACTED INVOICE NUMBER,142104,85.00,Revenue,1257,Ahl Fleet,RM14 3NX,0.00
Director Housing & Enforcement,Community Safety,Corporate Enforcement,Vehicle Hire,VAN HIRE,18/05/2021,REDACTED INVOICE NUMBER,142460,75.00,Revenue,1257,Ahl Fleet,RM14 3NX,0.00
Director Of Environment,Env Health & Licensing Admin,Env Health & Licensing Admin,Vehicle Hire,VAN HIRE,18/05/2021,REDACTED INVOICE NUMBER,142461,85.00,Revenue,1257,Ahl Fleet,RM14 3NX,0.00
Director Of Environment,Env Health & Licensing Admin,Env Health & Licensing Admin,Vehicle Hire,VAN HIRE,18/05/2021,REDACTED INVOICE NUMBER,142458,75.00,Revenue,1257,Ahl Fleet,RM14 3NX,0.00
Director Of Environment,Grounds Maintenance,Grounds Maintenance,Vehicle Hire,VAN HIRE,18/05/2021,REDACTED INVOICE NUMBER,142459,100.00,Revenue,1257,Ahl Fleet,RM14 3NX,0.00
Director Housing & Enforcement,Community Safety,Corporate Enforcement,Vehicle Hire,VAN HIRE,25/05/2021,REDACTED INVOICE NUMBER,142820,75.00,Revenue,1257,Ahl Fleet,RM14 3NX,0.00
Director Of Environment,Env Health & Licensing Admin,Env Health & Licensing Admin,Vehicle Hire,VAN HIRE,25/05/2021,REDACTED INVOICE NUMBER,142821,85.00,Revenue,1257,Ahl Fleet,RM14 3NX,0.00
Director Of Environment,Env Health & Licensing Admin,Env Health & Licensing Admin,Vehicle Hire,VAN HIRE,25/05/2021,REDACTED INVOICE NUMBER,142786,75.00,Revenue,1257,Ahl Fleet,RM14 3NX,0.00
Director Of Environment,Grounds Maintenance,Grounds Maintenance,Vehicle Hire,VAN HIRE,25/05/2021,REDACTED INVOICE NUMBER,142819,100.00,Revenue,1257,Ahl Fleet,RM14 3NX,0.00
Director Of Environment,Parking,Parking Services,Bank Charges,TRANSACTION CHARGES - APRIL '21,11/05/2021,REDACTED INVOICE NUMBER,142776,119.34,Revenue,28063,Aib Merchant Services (Pg Payments),.,0.00
Director Of Environment,Vehicle Fleet Management,Vehicle Fleet Management,Purchases - General Equipment,CYLINDER RENTAL - APR '21,28/05/2021,REDACTED INVOICE NUMBER,142817,136.15,Revenue,95,Air Liquide Uk Limited,B46 1JY,0.00
Capex Director Of C Resources,Asset Management,Brentwood Leisure Centre,Enhancements,AIR CONDITIONING - B/WOOD CENTRE,25/05/2021,REDACTED INVOICE NUMBER,143140,"1,560.00",Capital,128,All Ways Wired Ltd,CM13 1PU,0.00
Director Of Environment,Parking,Parking Services,Equipment & Tools - R&M,ELECTRICAL WORKS - MSCP,28/05/2021,REDACTED INVOICE NUMBER,143389,512.00,Revenue,128,All Ways Wired Ltd,CM13 1PU,0.00
Capex Director Of Environment,Corporate Services,King George'S Redevelopment,Enhancements,King George Playing Fields,28/05/2021,REDACTED INVOICE NUMBER,143006,"385,831.80",Capital,27165,Alliance Leisure Services Limited,TA6 3EW,0.00
Hra Expenditure,Supervision And Management,Rent Collection & Recovery,Bank Charges,PAYMENT PROCESSING,14/05/2021,REDACTED INVOICE NUMBER,142860,126.80,Revenue,132,Allpay.Net Limited,HR1 3SE,0.00
Hra Expenditure,Supervision And Management,Rent Collection & Recovery,Bank Charges,PAYMENT PROCESSING,14/05/2021,REDACTED INVOICE NUMBER,142861,504.27,Revenue,132,Allpay.Net Limited,HR1 3SE,0.00
Hra Expenditure,"Rents, Rates & Other Charges","Rents, Rates & Other Charges",Water,WATER SUPPLY,14/05/2021,REDACTED INVOICE NUMBER,139792,283.23,Revenue,28194,Anglian Water - Domestic Properties,PE29 6XU,0.00
Chief Executive,Executive Board,Senior Leadership Team,Project Management Support,PROFESSIONAL SERVICES,21/05/2021,REDACTED INVOICE NUMBER,143015,"9,200.00",Revenue,28188,Appletons Surveyors Ltd,TS18 1LS,0.00
Capex Director Of C Resources,Asset Management,Asset Management Strategy,Enhancements,PROFESSIONAL SERVICES,28/05/2021,REDACTED INVOICE NUMBER,143040,"4,000.00",Capital,27906,Arcus Consulting Llp,M33 7AR,0.00
Director Of Environment,Golf Course,Golf Course,Agency Staff,PROJECT MANAGEMENT SUPPORT,28/05/2021,REDACTED INVOICE NUMBER,144004,"1,155.00",Revenue,174438P,REDACTED PERSONAL DATA,REDACTED,0.00
Director Of Environment,Open Spaces,Countryside Recreation Mtnce,R&M Grounds - Treework,TREE WORKS,14/05/2021,REDACTED INVOICE NUMBER,142529,300.00,Revenue,24920,Ascending Arbs Tree Services Ltd,CM4 0BL,0.00
Director Corporate Resources,Asset Management,Asset Management,R&M Bldgs - General,REPLACE MANHOLE - MERRYMEASD HOUSE,14/05/2021,REDACTED INVOICE NUMBER,141952,225.00,Revenue,220,Ashe Green Civil Engineers Ltd,CM3 3PF,0.00
Capex Director Of Environment,S106 Former Elliots Nightclub,S106 Former Elliots Nightclub,Enhancements,FOOTPATH - KGPF,18/05/2021,REDACTED INVOICE NUMBER,142196,"6,252.00",Capital,220,Ashe Green Civil Engineers Ltd,CM3 3PF,0.00
Director Of Environment,Vehicle Fleet Management,Vehicle Fleet Management,Vehicle R&M - External,VEHICLE REPAIRS,04/05/2021,REDACTED INVOICE NUMBER,141350,446.73,Revenue,26506,Asm Truck Diagnostics Ltd,SS14 3EU,0.00
Director Of Environment,Vehicle Fleet Management,Vehicle Fleet Management,Vehicle R&M - External,VEHICLE REPAIRS,04/05/2021,REDACTED INVOICE NUMBER,141349,610.00,Revenue,26506,Asm Truck Diagnostics Ltd,SS14 3EU,0.00
Director Of Environment,Vehicle Fleet Management,Vehicle Fleet Management,Vehicle R&M - External,VEHICLE REPAIRS,04/05/2021,REDACTED INVOICE NUMBER,141348,45.00,Revenue,26506,Asm Truck Diagnostics Ltd,SS14 3EU,0.00
Director Of Environment,Vehicle Fleet Management,Vehicle Fleet Management,Vehicle R&M - External,VEHICLE REPAIRS,04/05/2021,REDACTED INVOICE NUMBER,141308,181.24,Revenue,26506,Asm Truck Diagnostics Ltd,SS14 3EU,0.00
Director Of Environment,Vehicle Fleet Management,Vehicle Fleet Management,Vehicle R&M - External,VEHICLE REPAIRS,04/05/2021,REDACTED INVOICE NUMBER,141299,45.00,Revenue,26506,Asm Truck Diagnostics Ltd,SS14 3EU,0.00
Director Of Environment,Vehicle Fleet Management,Vehicle Fleet Management,Vehicle R&M - External,VEHICLE REPAIRS,04/05/2021,REDACTED INVOICE NUMBER,141304,513.17,Revenue,26506,Asm Truck Diagnostics Ltd,SS14 3EU,0.00
Director Of Environment,Vehicle Fleet Management,Vehicle Fleet Management,Vehicle R&M - External,VEHICLE REPAIRS,04/05/2021,REDACTED INVOICE NUMBER,141310,45.00,Revenue,26506,Asm Truck Diagnostics Ltd,SS14 3EU,0.00
Director Of Environment,Vehicle Fleet Management,Vehicle Fleet Management,Vehicle R&M - External,VEHICLE REPAIRS,04/05/2021,REDACTED INVOICE NUMBER,141347,370.00,Revenue,26506,Asm Truck Diagnostics Ltd,SS14 3EU,0.00
Director Of Environment,Vehicle Fleet Management,Vehicle Fleet Management,Vehicle R&M - External,VEHICLE REPAIRS,04/05/2021,REDACTED INVOICE NUMBER,141300,405.00,Revenue,26506,Asm Truck Diagnostics Ltd,SS14 3EU,0.00
Director Of Environment,Vehicle Fleet Management,Vehicle Fleet Management,Vehicle R&M - External,VEHICLE REPAIRS,04/05/2021,REDACTED INVOICE NUMBER,141298,405.00,Revenue,26506,Asm Truck Diagnostics Ltd,SS14 3EU,0.00
Director Of Environment,Vehicle Fleet Management,Vehicle Fleet Management,Vehicle R&M - External,VEHICLE REPAIRS,04/05/2021,REDACTED INVOICE NUMBER,141333,225.00,Revenue,26506,Asm Truck Diagnostics Ltd,SS14 3EU,0.00
Director Of Environment,Vehicle Fleet Management,Vehicle Fleet Management,Vehicle R&M - External,VEHICLE REPAIRS,04/05/2021,REDACTED INVOICE NUMBER,141340,305.00,Revenue,26506,Asm Truck Diagnostics Ltd,SS14 3EU,0.00
Director Of Environment,Vehicle Fleet Management,Vehicle Fleet Management,Vehicle R&M - External,VEHICLE REPAIRS,04/05/2021,REDACTED INVOICE NUMBER,141334,90.00,Revenue,26506,Asm Truck Diagnostics Ltd,SS14 3EU,0.00
Director Of Environment,Vehicle Fleet Management,Vehicle Fleet Management,Vehicle R&M - External,VEHICLE REPAIRS,04/05/2021,REDACTED INVOICE NUMBER,141342,45.00,Revenue,26506,Asm Truck Diagnostics Ltd,SS14 3EU,0.00
Director Of Environment,Vehicle Fleet Management,Vehicle Fleet Management,Vehicle R&M - External,VEHICLE REPAIRS,04/05/2021,REDACTED INVOICE NUMBER,141336,45.00,Revenue,26506,Asm Truck Diagnostics Ltd,SS14 3EU,0.00
Director Of Environment,Vehicle Fleet Management,Vehicle Fleet Management,Vehicle R&M - External,VEHICLE REPAIRS,04/05/2021,REDACTED INVOICE NUMBER,141338,90.00,Revenue,26506,Asm Truck Diagnostics Ltd,SS14 3EU,0.00
Director Of Environment,Vehicle Fleet Management,Vehicle Fleet Management,Vehicle R&M - External,VEHICLE REPAIRS,04/05/2021,REDACTED INVOICE NUMBER,141311,45.00,Revenue,26506,Asm Truck Diagnostics Ltd,SS14 3EU,0.00
Director Of Environment,Vehicle Fleet Management,Vehicle Fleet Management,Vehicle R&M - External,VEHICLE REPAIRS,04/05/2021,REDACTED INVOICE NUMBER,141337,405.00,Revenue,26506,Asm Truck Diagnostics Ltd,SS14 3EU,0.00
Director Of Environment,Vehicle Fleet Management,Vehicle Fleet Management,Vehicle R&M - External,VEHICLE REPAIRS,04/05/2021,REDACTED INVOICE NUMBER,141341,405.00,Revenue,26506,Asm Truck Diagnostics Ltd,SS14 3EU,0.00
Director Of Environment,Vehicle Fleet Management,Vehicle Fleet Management,Vehicle R&M - External,VEHICLE REPAIRS,04/05/2021,REDACTED INVOICE NUMBER,141307,45.00,Revenue,26506,Asm Truck Diagnostics Ltd,SS14 3EU,0.00
Director Of Environment,Vehicle Fleet Management,Vehicle Fleet Management,Vehicle R&M - External,VEHICLE REPAIRS,04/05/2021,REDACTED INVOICE NUMBER,141335,45.00,Revenue,26506,Asm Truck Diagnostics Ltd,SS14 3EU,0.00
Director Of Environment,Vehicle Fleet Management,Vehicle Fleet Management,Vehicle R&M - External,VEHICLE REPAIRS,04/05/2021,REDACTED INVOICE NUMBER,141343,240.00,Revenue,26506,Asm Truck Diagnostics Ltd,SS14 3EU,0.00
Director Of Environment,Vehicle Fleet Management,Vehicle Fleet Management,Vehicle R&M - External,VEHICLE REPAIRS,04/05/2021,REDACTED INVOICE NUMBER,141345,285.00,Revenue,26506,Asm Truck Diagnostics Ltd,SS14 3EU,0.00
Director Of Environment,Vehicle Fleet Management,Vehicle Fleet Management,Vehicle R&M - External,VEHICLE REPAIRS,04/05/2021,REDACTED INVOICE NUMBER,141309,180.00,Revenue,26506,Asm Truck Diagnostics Ltd,SS14 3EU,0.00
Director Of Environment,Vehicle Fleet Management,Vehicle Fleet Management,Vehicle R&M - External,VEHICLE REPAIRS,04/05/2021,REDACTED INVOICE NUMBER,141344,325.00,Revenue,26506,Asm Truck Diagnostics Ltd,SS14 3EU,0.00
Director Of Environment,Vehicle Fleet Management,Vehicle Fleet Management,Vehicle R&M - External,VEHICLE REPAIRS,04/05/2021,REDACTED INVOICE NUMBER,141346,335.00,Revenue,26506,Asm Truck Diagnostics Ltd,SS14 3EU,0.00
Director Of Environment,Vehicle Fleet Management,Vehicle Fleet Management,Vehicle R&M - External,VEHICLE REPAIRS,04/05/2021,REDACTED INVOICE NUMBER,141339,330.00,Revenue,26506,Asm Truck Diagnostics Ltd,SS14 3EU,0.00
Director Of Environment,Vehicle Fleet Management,Vehicle Fleet Management,Vehicle R&M - External,VEHICLE REPAIRS,07/05/2021,REDACTED INVOICE NUMBER,141404,45.00,Revenue,26506,Asm Truck Diagnostics Ltd,SS14 3EU,0.00
Director Of Environment,Vehicle Fleet Management,Vehicle Fleet Management,Vehicle R&M - External,VEHICLE REPAIRS,07/05/2021,REDACTED INVOICE NUMBER,141441,663.00,Revenue,26506,Asm Truck Diagnostics Ltd,SS14 3EU,0.00
Director Of Environment,Vehicle Fleet Management,Vehicle Fleet Management,Vehicle R&M - External,VEHICLE REPAIRS,07/05/2021,REDACTED INVOICE NUMBER,141373,667.62,Revenue,26506,Asm Truck Diagnostics Ltd,SS14 3EU,0.00
Director Of Environment,Vehicle Fleet Management,Vehicle Fleet Management,Vehicle R&M - External,VEHICLE REPAIRS,07/05/2021,REDACTED INVOICE NUMBER,141393,700.00,Revenue,26506,Asm Truck Diagnostics Ltd,SS14 3EU,0.00
Director Of Environment,Vehicle Fleet Management,Vehicle Fleet Management,Vehicle R&M - External,VEHICLE REPAIRS,07/05/2021,REDACTED INVOICE NUMBER,141392,470.05,Revenue,26506,Asm Truck Diagnostics Ltd,SS14 3EU,0.00
Director Of Environment,Vehicle Fleet Management,Vehicle Fleet Management,Vehicle R&M - External,VEHICLE REPAIRS,07/05/2021,REDACTED INVOICE NUMBER,141389,447.00,Revenue,26506,Asm Truck Diagnostics Ltd,SS14 3EU,0.00
Director Of Environment,Vehicle Fleet Management,Vehicle Fleet Management,Vehicle R&M - External,VEHICLE REPAIRS,07/05/2021,REDACTED INVOICE NUMBER,141426,45.00,Revenue,26506,Asm Truck Diagnostics Ltd,SS14 3EU,0.00
Director Of Environment,Vehicle Fleet Management,Vehicle Fleet Management,Vehicle R&M - External,VEHICLE REPAIRS,07/05/2021,REDACTED INVOICE NUMBER,141440,324.40,Revenue,26506,Asm Truck Diagnostics Ltd,SS14 3EU,0.00
Director Of Environment,Vehicle Fleet Management,Vehicle Fleet Management,Vehicle R&M - External,VEHICLE REPAIRS,07/05/2021,REDACTED INVOICE NUMBER,141396,190.00,Revenue,26506,Asm Truck Diagnostics Ltd,SS14 3EU,0.00
Director Of Environment,Vehicle Fleet Management,Vehicle Fleet Management,Vehicle R&M - External,VEHICLE REPAIRS,07/05/2021,REDACTED INVOICE NUMBER,141402,90.00,Revenue,26506,Asm Truck Diagnostics Ltd,SS14 3EU,0.00
Director Of Environment,Vehicle Fleet Management,Vehicle Fleet Management,Vehicle R&M - External,VEHICLE REPAIRS,07/05/2021,REDACTED INVOICE NUMBER,141421,45.00,Revenue,26506,Asm Truck Diagnostics Ltd,SS14 3EU,0.00
Director Of Environment,Vehicle Fleet Management,Vehicle Fleet Management,Vehicle R&M - External,VEHICLE REPAIRS,07/05/2021,REDACTED INVOICE NUMBER,141408,45.00,Revenue,26506,Asm Truck Diagnostics Ltd,SS14 3EU,0.00
Director Of Environment,Vehicle Fleet Management,Vehicle Fleet Management,Vehicle R&M - External,VEHICLE REPAIRS,07/05/2021,REDACTED INVOICE NUMBER,141398,570.00,Revenue,26506,Asm Truck Diagnostics Ltd,SS14 3EU,0.00
Director Of Environment,Vehicle Fleet Management,Vehicle Fleet Management,Vehicle R&M - External,VEHICLE REPAIRS,07/05/2021,REDACTED INVOICE NUMBER,141433,270.00,Revenue,26506,Asm Truck Diagnostics Ltd,SS14 3EU,0.00
Director Of Environment,Vehicle Fleet Management,Vehicle Fleet Management,Vehicle R&M - External,VEHICLE REPAIRS,07/05/2021,REDACTED INVOICE NUMBER,141409,90.00,Revenue,26506,Asm Truck Diagnostics Ltd,SS14 3EU,0.00
Director Of Environment,Vehicle Fleet Management,Vehicle Fleet Management,Vehicle R&M - External,VEHICLE REPAIRS,07/05/2021,REDACTED INVOICE NUMBER,141418,335.00,Revenue,26506,Asm Truck Diagnostics Ltd,SS14 3EU,0.00
Director Of Environment,Vehicle Fleet Management,Vehicle Fleet Management,Vehicle R&M - External,VEHICLE REPAIRS,07/05/2021,REDACTED INVOICE NUMBER,141413,325.00,Revenue,26506,Asm Truck Diagnostics Ltd,SS14 3EU,0.00
Director Of Environment,Vehicle Fleet Management,Vehicle Fleet Management,Vehicle R&M - External,VEHICLE REPAIRS,07/05/2021,REDACTED INVOICE NUMBER,141431,45.00,Revenue,26506,Asm Truck Diagnostics Ltd,SS14 3EU,0.00
Director Of Environment,Vehicle Fleet Management,Vehicle Fleet Management,Vehicle R&M - External,VEHICLE REPAIRS,07/05/2021,REDACTED INVOICE NUMBER,141435,90.00,Revenue,26506,Asm Truck Diagnostics Ltd,SS14 3EU,0.00
Director Of Environment,Vehicle Fleet Management,Vehicle Fleet Management,Vehicle R&M - External,VEHICLE REPAIRS,07/05/2021,REDACTED INVOICE NUMBER,141437,45.00,Revenue,26506,Asm Truck Diagnostics Ltd,SS14 3EU,0.00
Director Of Environment,Vehicle Fleet Management,Vehicle Fleet Management,Vehicle R&M - External,VEHICLE REPAIRS,07/05/2021,REDACTED INVOICE NUMBER,141395,45.00,Revenue,26506,Asm Truck Diagnostics Ltd,SS14 3EU,0.00
Director Of Environment,Vehicle Fleet Management,Vehicle Fleet Management,Vehicle R&M - External,VEHICLE REPAIRS,07/05/2021,REDACTED INVOICE NUMBER,141403,100.00,Revenue,26506,Asm Truck Diagnostics Ltd,SS14 3EU,0.00
Director Of Environment,Vehicle Fleet Management,Vehicle Fleet Management,Vehicle R&M - External,VEHICLE REPAIRS,07/05/2021,REDACTED INVOICE NUMBER,141419,45.00,Revenue,26506,Asm Truck Diagnostics Ltd,SS14 3EU,0.00
Director Of Environment,Vehicle Fleet Management,Vehicle Fleet Management,Vehicle R&M - External,VEHICLE REPAIRS,07/05/2021,REDACTED INVOICE NUMBER,141415,45.00,Revenue,26506,Asm Truck Diagnostics Ltd,SS14 3EU,0.00
Director Of Environment,Vehicle Fleet Management,Vehicle Fleet Management,Vehicle R&M - External,VEHICLE REPAIRS,07/05/2021,REDACTED INVOICE NUMBER,141406,135.00,Revenue,26506,Asm Truck Diagnostics Ltd,SS14 3EU,0.00
Director Of Environment,Vehicle Fleet Management,Vehicle Fleet Management,Vehicle R&M - External,VEHICLE REPAIRS,07/05/2021,REDACTED INVOICE NUMBER,141427,45.00,Revenue,26506,Asm Truck Diagnostics Ltd,SS14 3EU,0.00
Director Of Environment,Vehicle Fleet Management,Vehicle Fleet Management,Vehicle R&M - External,VEHICLE REPAIRS,07/05/2021,REDACTED INVOICE NUMBER,141434,180.00,Revenue,26506,Asm Truck Diagnostics Ltd,SS14 3EU,0.00
Director Of Environment,Vehicle Fleet Management,Vehicle Fleet Management,Vehicle R&M - External,VEHICLE REPAIRS,07/05/2021,REDACTED INVOICE NUMBER,141430,180.00,Revenue,26506,Asm Truck Diagnostics Ltd,SS14 3EU,0.00
Director Of Environment,Vehicle Fleet Management,Vehicle Fleet Management,Vehicle R&M - External,VEHICLE REPAIRS,07/05/2021,REDACTED INVOICE NUMBER,141411,280.00,Revenue,26506,Asm Truck Diagnostics Ltd,SS14 3EU,0.00
Director Of Environment,Vehicle Fleet Management,Vehicle Fleet Management,Vehicle R&M - External,VEHICLE REPAIRS,07/05/2021,REDACTED INVOICE NUMBER,141405,90.00,Revenue,26506,Asm Truck Diagnostics Ltd,SS14 3EU,0.00
Director Of Environment,Vehicle Fleet Management,Vehicle Fleet Management,Vehicle R&M - External,VEHICLE REPAIRS,07/05/2021,REDACTED INVOICE NUMBER,141399,190.00,Revenue,26506,Asm Truck Diagnostics Ltd,SS14 3EU,0.00
Director Of Environment,Vehicle Fleet Management,Vehicle Fleet Management,Vehicle R&M - External,VEHICLE REPAIRS,07/05/2021,REDACTED INVOICE NUMBER,141439,45.00,Revenue,26506,Asm Truck Diagnostics Ltd,SS14 3EU,0.00
Director Of Environment,Vehicle Fleet Management,Vehicle Fleet Management,Vehicle R&M - External,VEHICLE REPAIRS,07/05/2021,REDACTED INVOICE NUMBER,141423,425.00,Revenue,26506,Asm Truck Diagnostics Ltd,SS14 3EU,0.00
Director Of Environment,Vehicle Fleet Management,Vehicle Fleet Management,Vehicle R&M - External,VEHICLE REPAIRS,07/05/2021,REDACTED INVOICE NUMBER,141420,360.00,Revenue,26506,Asm Truck Diagnostics Ltd,SS14 3EU,0.00
Director Of Environment,Vehicle Fleet Management,Vehicle Fleet Management,Vehicle R&M - External,VEHICLE REPAIRS,07/05/2021,REDACTED INVOICE NUMBER,141416,100.00,Revenue,26506,Asm Truck Diagnostics Ltd,SS14 3EU,0.00
Director Of Environment,Vehicle Fleet Management,Vehicle Fleet Management,Vehicle R&M - External,VEHICLE REPAIRS,07/05/2021,REDACTED INVOICE NUMBER,141422,360.00,Revenue,26506,Asm Truck Diagnostics Ltd,SS14 3EU,0.00
Director Of Environment,Vehicle Fleet Management,Vehicle Fleet Management,Vehicle R&M - External,VEHICLE REPAIRS,07/05/2021,REDACTED INVOICE NUMBER,141425,580.00,Revenue,26506,Asm Truck Diagnostics Ltd,SS14 3EU,0.00
Director Of Environment,Vehicle Fleet Management,Vehicle Fleet Management,Vehicle R&M - External,VEHICLE REPAIRS,07/05/2021,REDACTED INVOICE NUMBER,141428,470.00,Revenue,26506,Asm Truck Diagnostics Ltd,SS14 3EU,0.00
Director Of Environment,Vehicle Fleet Management,Vehicle Fleet Management,Vehicle R&M - External,VEHICLE REPAIRS,07/05/2021,REDACTED INVOICE NUMBER,141429,290.00,Revenue,26506,Asm Truck Diagnostics Ltd,SS14 3EU,0.00
Director Of Environment,Vehicle Fleet Management,Vehicle Fleet Management,Vehicle R&M - External,VEHICLE REPAIRS,07/05/2021,REDACTED INVOICE NUMBER,141436,545.00,Revenue,26506,Asm Truck Diagnostics Ltd,SS14 3EU,0.00
Director Of Environment,Vehicle Fleet Management,Vehicle Fleet Management,Vehicle R&M - External,VEHICLE REPAIRS,07/05/2021,REDACTED INVOICE NUMBER,141432,180.00,Revenue,26506,Asm Truck Diagnostics Ltd,SS14 3EU,0.00
Director Of Environment,Vehicle Fleet Management,Vehicle Fleet Management,Vehicle R&M - External,VEHICLE REPAIRS,07/05/2021,REDACTED INVOICE NUMBER,141417,90.00,Revenue,26506,Asm Truck Diagnostics Ltd,SS14 3EU,0.00
Director Of Environment,Vehicle Fleet Management,Vehicle Fleet Management,Vehicle R&M - External,VEHICLE REPAIRS,07/05/2021,REDACTED INVOICE NUMBER,141410,343.75,Revenue,26506,Asm Truck Diagnostics Ltd,SS14 3EU,0.00
Director Of Environment,Vehicle Fleet Management,Vehicle Fleet Management,Vehicle R&M - External,VEHICLE REPAIRS,07/05/2021,REDACTED INVOICE NUMBER,141412,225.00,Revenue,26506,Asm Truck Diagnostics Ltd,SS14 3EU,0.00
Director Of Environment,Vehicle Fleet Management,Vehicle Fleet Management,Vehicle R&M - External,VEHICLE REPAIRS,07/05/2021,REDACTED INVOICE NUMBER,141390,352.00,Revenue,26506,Asm Truck Diagnostics Ltd,SS14 3EU,0.00
Director Of Environment,Vehicle Fleet Management,Vehicle Fleet Management,Vehicle R&M - External,VEHICLE REPAIRS,07/05/2021,REDACTED INVOICE NUMBER,141397,405.00,Revenue,26506,Asm Truck Diagnostics Ltd,SS14 3EU,0.00
Director Of Environment,Vehicle Fleet Management,Vehicle Fleet Management,Vehicle R&M - External,VEHICLE REPAIRS,07/05/2021,REDACTED INVOICE NUMBER,141401,495.00,Revenue,26506,Asm Truck Diagnostics Ltd,SS14 3EU,0.00
Director Of Environment,Vehicle Fleet Management,Vehicle Fleet Management,Vehicle R&M - External,VEHICLE REPAIRS,07/05/2021,REDACTED INVOICE NUMBER,141414,622.00,Revenue,26506,Asm Truck Diagnostics Ltd,SS14 3EU,0.00
Director Of Environment,Vehicle Fleet Management,Vehicle Fleet Management,Vehicle R&M - External,VEHICLE REPAIRS,07/05/2021,REDACTED INVOICE NUMBER,141424,90.00,Revenue,26506,Asm Truck Diagnostics Ltd,SS14 3EU,0.00
Director Of Environment,Vehicle Fleet Management,Vehicle Fleet Management,Vehicle R&M - External,VEHICLE REPAIRS,07/05/2021,REDACTED INVOICE NUMBER,141384,45.00,Revenue,26506,Asm Truck Diagnostics Ltd,SS14 3EU,0.00
Director Of Environment,Vehicle Fleet Management,Vehicle Fleet Management,Vehicle R&M - External,VEHICLE REPAIRS,07/05/2021,REDACTED INVOICE NUMBER,141442,240.00,Revenue,26506,Asm Truck Diagnostics Ltd,SS14 3EU,0.00
Director Of Environment,Vehicle Fleet Management,Vehicle Fleet Management,Vehicle R&M - External,VEHICLE REPAIRS,07/05/2021,REDACTED INVOICE NUMBER,141407,145.00,Revenue,26506,Asm Truck Diagnostics Ltd,SS14 3EU,0.00
Director Of Environment,Vehicle Fleet Management,Vehicle Fleet Management,Vehicle R&M - External,VEHICLE REPAIRS,07/05/2021,REDACTED INVOICE NUMBER,141438,45.00,Revenue,26506,Asm Truck Diagnostics Ltd,SS14 3EU,0.00
Director Of Environment,Vehicle Fleet Management,Vehicle Fleet Management,Vehicle R&M - External,VEHICLE REPAIRS,07/05/2021,REDACTED INVOICE NUMBER,141391,470.00,Revenue,26506,Asm Truck Diagnostics Ltd,SS14 3EU,0.00
Director Of Environment,Vehicle Fleet Management,Vehicle Fleet Management,Vehicle R&M - External,VEHICLE REPAIRS,07/05/2021,REDACTED INVOICE NUMBER,141400,135.00,Revenue,26506,Asm Truck Diagnostics Ltd,SS14 3EU,0.00
Director Of Environment,Vehicle Fleet Management,Vehicle Fleet Management,Vehicle R&M - External,VEHICLE REPAIRS,14/05/2021,REDACTED INVOICE NUMBER,141929,325.00,Revenue,26506,Asm Truck Diagnostics Ltd,SS14 3EU,0.00
Director Of Environment,Vehicle Fleet Management,Vehicle Fleet Management,Vehicle R&M - External,VEHICLE REPAIRS,21/05/2021,REDACTED INVOICE NUMBER,142337,321.25,Revenue,26506,Asm Truck Diagnostics Ltd,SS14 3EU,0.00
Director Of Environment,Vehicle Fleet Management,Vehicle Fleet Management,Vehicle R&M - External,VEHICLE REPAIRS,21/05/2021,REDACTED INVOICE NUMBER,142338,190.00,Revenue,26506,Asm Truck Diagnostics Ltd,SS14 3EU,0.00
Director Of Environment,Vehicle Fleet Management,Vehicle Fleet Management,Vehicle R&M - External,VEHICLE REPAIRS,21/05/2021,REDACTED INVOICE NUMBER,142249,45.00,Revenue,26506,Asm Truck Diagnostics Ltd,SS14 3EU,0.00
Director Of Environment,Vehicle Fleet Management,Vehicle Fleet Management,Vehicle R&M - External,VEHICLE REPAIRS,21/05/2021,REDACTED INVOICE NUMBER,142340,90.00,Revenue,26506,Asm Truck Diagnostics Ltd,SS14 3EU,0.00
Director Of Environment,Vehicle Fleet Management,Vehicle Fleet Management,Vehicle R&M - External,VEHICLE REPAIRS,21/05/2021,REDACTED INVOICE NUMBER,142335,135.00,Revenue,26506,Asm Truck Diagnostics Ltd,SS14 3EU,0.00
Director Of Environment,Vehicle Fleet Management,Vehicle Fleet Management,Vehicle R&M - External,VEHICLE REPAIRS,21/05/2021,REDACTED INVOICE NUMBER,142339,280.00,Revenue,26506,Asm Truck Diagnostics Ltd,SS14 3EU,0.00
Director Of Environment,Vehicle Fleet Management,Vehicle Fleet Management,Vehicle R&M - External,VEHICLE REPAIRS,21/05/2021,REDACTED INVOICE NUMBER,142258,180.00,Revenue,26506,Asm Truck Diagnostics Ltd,SS14 3EU,0.00
Director Of Environment,Vehicle Fleet Management,Vehicle Fleet Management,Vehicle R&M - External,VEHICLE REPAIRS,21/05/2021,REDACTED INVOICE NUMBER,142245,450.00,Revenue,26506,Asm Truck Diagnostics Ltd,SS14 3EU,0.00
Director Of Environment,Vehicle Fleet Management,Vehicle Fleet Management,Vehicle R&M - External,VEHICLE REPAIRS,21/05/2021,REDACTED INVOICE NUMBER,142246,615.00,Revenue,26506,Asm Truck Diagnostics Ltd,SS14 3EU,0.00
Director Of Environment,Vehicle Fleet Management,Vehicle Fleet Management,Vehicle R&M - External,VEHICLE REPAIRS,21/05/2021,REDACTED INVOICE NUMBER,142247,740.00,Revenue,26506,Asm Truck Diagnostics Ltd,SS14 3EU,0.00
Director Of Environment,Vehicle Fleet Management,Vehicle Fleet Management,Vehicle R&M - External,VEHICLE REPAIRS,21/05/2021,REDACTED INVOICE NUMBER,142248,507.00,Revenue,26506,Asm Truck Diagnostics Ltd,SS14 3EU,0.00
Director Of Environment,Vehicle Fleet Management,Vehicle Fleet Management,Vehicle R&M - External,VEHICLE REPAIRS,21/05/2021,REDACTED INVOICE NUMBER,142257,450.00,Revenue,26506,Asm Truck Diagnostics Ltd,SS14 3EU,0.00
Director Of Environment,Vehicle Fleet Management,Vehicle Fleet Management,Vehicle R&M - External,VEHICLE REPAIRS,21/05/2021,REDACTED INVOICE NUMBER,142334,972.50,Revenue,26506,Asm Truck Diagnostics Ltd,SS14 3EU,0.00
Director Of Environment,Vehicle Fleet Management,Vehicle Fleet Management,Vehicle R&M - External,VEHICLE REPAIRS,21/05/2021,REDACTED INVOICE NUMBER,142333,415.75,Revenue,26506,Asm Truck Diagnostics Ltd,SS14 3EU,0.00
Director Of Environment,Vehicle Fleet Management,Vehicle Fleet Management,Vehicle R&M - External,VEHICLE REPAIRS,21/05/2021,REDACTED INVOICE NUMBER,142336,425.00,Revenue,26506,Asm Truck Diagnostics Ltd,SS14 3EU,0.00
Director Of Environment,Vehicle Fleet Management,Vehicle Fleet Management,Vehicle R&M - External,VEHICLE REPAIRS,21/05/2021,REDACTED INVOICE NUMBER,142261,580.00,Revenue,26506,Asm Truck Diagnostics Ltd,SS14 3EU,0.00
Director Of Environment,Vehicle Fleet Management,Vehicle Fleet Management,Vehicle R&M - External,VEHICLE REPAIRS,21/05/2021,REDACTED INVOICE NUMBER,142260,100.00,Revenue,26506,Asm Truck Diagnostics Ltd,SS14 3EU,0.00
Director Of Environment,Vehicle Fleet Management,Vehicle Fleet Management,Vehicle R&M - External,VEHICLE REPAIRS,21/05/2021,REDACTED INVOICE NUMBER,142259,180.00,Revenue,26506,Asm Truck Diagnostics Ltd,SS14 3EU,0.00
Director Of Environment,Vehicle Fleet Management,Vehicle Fleet Management,Vehicle R&M - External,VEHICLE REPAIRS,21/05/2021,REDACTED INVOICE NUMBER,142262,135.00,Revenue,26506,Asm Truck Diagnostics Ltd,SS14 3EU,0.00
Director Of Environment,Vehicle Fleet Management,Vehicle Fleet Management,Vehicle R&M - External,VEHICLE REPAIRS,21/05/2021,REDACTED INVOICE NUMBER,142263,225.00,Revenue,26506,Asm Truck Diagnostics Ltd,SS14 3EU,0.00
Director Of Environment,Vehicle Fleet Management,Vehicle Fleet Management,Vehicle R&M - External,VEHICLE REPAIRS,28/05/2021,REDACTED INVOICE NUMBER,142672,290.00,Revenue,26506,Asm Truck Diagnostics Ltd,SS14 3EU,0.00
Director Of Environment,Vehicle Fleet Management,Vehicle Fleet Management,Vehicle R&M - External,VEHICLE REPAIRS,28/05/2021,REDACTED INVOICE NUMBER,142670,"1,895.00",Revenue,26506,Asm Truck Diagnostics Ltd,SS14 3EU,0.00
Director Of Environment,Vehicle Fleet Management,Vehicle Fleet Management,Vehicle R&M - External,VEHICLE REPAIRS,28/05/2021,REDACTED INVOICE NUMBER,142671,500.00,Revenue,26506,Asm Truck Diagnostics Ltd,SS14 3EU,0.00
Capex Director Of C Resources,Asset Management,Brentwood Leisure Centre,Enhancements,BRENTWOOD LEISURE CENTRE,04/05/2021,REDACTED INVOICE NUMBER,141699,"4,100.00",Capital,26600,Asmatt Limited,CM11 2YL,0.00
Director Corporate Resources,Asset Management,Asset Management,R&M Bldgs - General,SERVICE CHARGE - JUN - SEP '21,07/05/2021,REDACTED INVOICE NUMBER,142742,965.00,Revenue,140561P,Assura H C Ltd,WA4 6HL,0.00
Hra Expenditure,Repairs And Maintenance,Responsive Repairs Management,Other Professional Fees,VARIABLE PROFIT Q3 - OCT-DEC '20,21/05/2021,REDACTED INVOICE NUMBER,142379,"23,035.80",Revenue,27759,Axis Europe,E15 4PN,0.00
Hra Expenditure,Repairs And Maintenance,Responsive Repairs Management,R&M Bldgs - General,PART CREDIT,21/05/2021,REDACTED INVOICE NUMBER,142740,"-1,081.76",Revenue,27759,Axis Europe,E15 4PN,0.00
Capex Director Of Housing,Housing - Hra,Boiler/ Heating  Replacement,Enhancements,BOILER INSTALLS - APR '21,28/05/2021,REDACTED INVOICE NUMBER,142834,"20,802.87",Capital,27759,Axis Europe,E15 4PN,0.00
Capex Director Of Housing,Housing - Hra,Major Voids,Enhancements,VOIDS - APR '21,28/05/2021,REDACTED INVOICE NUMBER,142831,"18,158.30",Capital,27759,Axis Europe,E15 4PN,0.00
Hra Expenditure,Repairs And Maintenance,Planned Maintenance,R&M Fix & Fit - Electrical,EICR - APR '21,28/05/2021,REDACTED INVOICE NUMBER,142836,"46,244.62",Revenue,27759,Axis Europe,E15 4PN,0.00
Hra Expenditure,Repairs And Maintenance,Planned Maintenance,R&M Fix & Fit - Gas Extra Ppp,3 GAS SERVICING - APR '21,28/05/2021,REDACTED INVOICE NUMBER,142716,"22,488.25",Revenue,27759,Axis Europe,E15 4PN,0.00
Hra Expenditure,Repairs And Maintenance,Planned Maintenance,R&M Fix & Fit - Gas Repairs,COMMUNAL HEATING - Apr '21,28/05/2021,REDACTED INVOICE NUMBER,142719,"3,307.47",Revenue,27759,Axis Europe,E15 4PN,0.00
Hra Expenditure,Repairs And Maintenance,Planned Maintenance,R&M Fix & Fit - Lifts,COMM. LIFT SERVICING - APR '21,28/05/2021,REDACTED INVOICE NUMBER,142718,604.00,Revenue,27759,Axis Europe,E15 4PN,0.00
Hra Expenditure,Repairs And Maintenance,Planned Maintenance,R&M Fix & Fit - Lifts,STAIRLIFT SERVICING - APR '21,28/05/2021,REDACTED INVOICE NUMBER,142717,335.56,Revenue,27759,Axis Europe,E15 4PN,0.00
Hra Expenditure,Repairs And Maintenance,Planned Maintenance,R&M Fix & Fit - Tanks,WATER HYGIENE PROGRAMME - APR'21,28/05/2021,REDACTED INVOICE NUMBER,142835,"1,041.60",Revenue,27759,Axis Europe,E15 4PN,0.00
Hra Expenditure,Repairs And Maintenance,Planned Maintenance,R&M Other - Testing,EICR - APR '21,28/05/2021,REDACTED INVOICE NUMBER,142836,236.48,Revenue,27759,Axis Europe,E15 4PN,0.00
Hra Expenditure,Repairs And Maintenance,Responsive Repairs Management,R&M Bldgs - General,PPG EXCLUSIONS - APR '21,28/05/2021,REDACTED INVOICE NUMBER,142829,809.57,Revenue,27759,Axis Europe,E15 4PN,0.00
Hra Expenditure,Repairs And Maintenance,Responsive Repairs Management,R&M Bldgs - Ppp,PPG GARAGES - APR '21,28/05/2021,REDACTED INVOICE NUMBER,142715,"1,457.32",Revenue,27759,Axis Europe,E15 4PN,0.00
Hra Expenditure,Repairs And Maintenance,Responsive Repairs Management,R&M Bldgs - Ppp,PPP -  APR '21,28/05/2021,REDACTED INVOICE NUMBER,142714,"70,666.20",Revenue,27759,Axis Europe,E15 4PN,0.00
Hra Expenditure,Repairs And Maintenance,Responsive Repairs Management,R&M Fix & Fit - Gas Repairs,COMMERCIAL GAS - APR '21,28/05/2021,REDACTED INVOICE NUMBER,142833,"5,131.11",Revenue,27759,Axis Europe,E15 4PN,0.00
Hra Expenditure,Repairs And Maintenance,Responsive Repairs Management,R&M Fix & Fit - Gas Repairs,GAS EXCLUSIONS - APR '21,28/05/2021,REDACTED INVOICE NUMBER,142832,146.11,Revenue,27759,Axis Europe,E15 4PN,0.00
Hra Expenditure,Repairs And Maintenance,Responsive Void Repairs,R&M Bldgs - General,VOIDS - APR '21,28/05/2021,REDACTED INVOICE NUMBER,142831,"53,079.24",Revenue,27759,Axis Europe,E15 4PN,0.00
Hra Expenditure,Repairs And Maintenance,Responsive Void Repairs,R&M Bldgs - Ppp,VOIDS - APR '21,28/05/2021,REDACTED INVOICE NUMBER,142831,"6,860.00",Revenue,27759,Axis Europe,E15 4PN,0.00
Capex Director Of Housing,Housing - Hra,Housing Stock - Water,Enhancements,REVIEW COSTS,04/05/2021,REDACTED INVOICE NUMBER,141326,"4,580.00",Capital,28436,Baily Garner Llp,SE9 5DY,0.00
Director Of Law & Governance,Electoral Services,Election Services,Election Advances,Hire Charge,11/05/2021,REDACTED INVOICE NUMBER,142521,200.00,Revenue,28309,Bardswell Social Club,CM14 4TJ,0.00
Capex Director Of Housing,Housing - Affordable Housing,Brookfield Project,Enhancements,Brookfield Close Hutton,28/05/2021,REDACTED INVOICE NUMBER,142931,"2,700.00",Capital,305,Barton Willmore,RG1 3BE,0.00
Director Corporate Resources,Council Tax & Nndr,Council Tax & Nndr Team,Contracted Services,REVS AND BENS SERVICE CHARGE 20/22,21/05/2021,REDACTED INVOICE NUMBER,143150,"62,372.45",Revenue,306,Basildon Borough Council,SS14 0DF,0.00
Director Corporate Resources,Council Tax & Nndr,Council Tax & Nndr Team,Contracted Services,REVS & BENS SERVICE CHARGE - 21/22,21/05/2021,REDACTED INVOICE NUMBER,143151,"56,635.56",Revenue,306,Basildon Borough Council,SS14 0DF,0.00
Director Corporate Resources,Revs & Bens Customer Support,Revenue Support,Contracted Services,REVS AND BENS SERVICE CHARGE 20/22,21/05/2021,REDACTED INVOICE NUMBER,143150,"37,423.47",Revenue,306,Basildon Borough Council,SS14 0DF,0.00
Director Corporate Resources,Revs & Bens Customer Support,Revenue Support,Contracted Services,REVS & BENS SERVICE CHARGE - 21/22,21/05/2021,REDACTED INVOICE NUMBER,143151,"33,981.33",Revenue,306,Basildon Borough Council,SS14 0DF,0.00
Director Corporate Resources,Council Tax & Nndr,Council Tax Collection,Computer Software Licences,ANNUAL LICENSE SHARE,28/05/2021,REDACTED INVOICE NUMBER,143732,"1,350.00",Revenue,306,Basildon Borough Council,SS14 0DF,0.00
Director Of Law & Governance,Corporate Support,Corporate Support,Stationery - General,STATIONERY,11/05/2021,REDACTED INVOICE NUMBER,141659,59.70,Revenue,23820,Bates Office Services Limited,ME2 2LS,0.00
Director Of Law & Governance,Corporate Support,Corporate Support,Stationery - General,PRINTER SUPPLIES,14/05/2021,REDACTED INVOICE NUMBER,141957,52.08,Revenue,23820,Bates Office Services Limited,ME2 2LS,0.00
Director Of Law & Governance,Corporate Support,Corporate Support,Stationery - General,STATIONERY,18/05/2021,REDACTED INVOICE NUMBER,142197,76.68,Revenue,23820,Bates Office Services Limited,ME2 2LS,0.00
Director Of Law & Governance,Corporate Support,Corporate Support,Stationery - General,STATIONERY,25/05/2021,REDACTED INVOICE NUMBER,142508,147.52,Revenue,23820,Bates Office Services Limited,ME2 2LS,0.00
Director Of Law & Governance,Corporate Support,Corporate Support,Stationery - General,STATIONERY,25/05/2021,REDACTED INVOICE NUMBER,142512,291.30,Revenue,23820,Bates Office Services Limited,ME2 2LS,0.00
Balance Sheet,Balance Sheet,Balance Sheet,Highways Stores,LETTER PICKER,07/05/2021,REDACTED INVOICE NUMBER,141359,"1,590.00",Revenue,325,Bell Brush,EN3 7BB,0.00
Balance Sheet,Balance Sheet,Balance Sheet,Highways Stores,LITTER PICKING SUPPLIES,14/05/2021,REDACTED INVOICE NUMBER,141956,"2,035.80",Revenue,325,Bell Brush,EN3 7BB,0.00
Director Of Environment,Depot Management & Admin,Depot Management & Admin,R&M Bldgs - General,DUSTMATS - LIFT & LAY - JUN '21,21/05/2021,REDACTED INVOICE NUMBER,142796,173.92,Revenue,4767,Berendsen Uk Ltd,RG24 8NE,0.00
Director Corporate Resources,Corporate Management,Corporate Management Costs,Treasury - Brokerage Fees Gen,CURRENT MONTH TRADES,14/05/2021,REDACTED INVOICE NUMBER,142049,254.79,Revenue,26245,Bgc Brokers Lp,E14 5RD,0.00
Director Corporate Resources,Corporate Management,Corporate Management Costs,Treasury - Brokerage Fees Gen,BROCKERAGE FEES,28/05/2021,REDACTED INVOICE NUMBER,143907,"1,808.20",Revenue,26245,Bgc Brokers Lp,E14 5RD,0.00
Director Corporate Resources,Corporate Management,Corporate Management Costs,Treasury - Brokerage Fees Gen,BROKERAGE FEES,28/05/2021,REDACTED INVOICE NUMBER,143908,315.07,Revenue,26245,Bgc Brokers Lp,E14 5RD,0.00
Director Corporate Resources,Corporate Management,Corporate Management Costs,Treasury - Brokerage Fees Gen,Current Month TradesfDetails,28/05/2021,REDACTED INVOICE NUMBER,143135,"1,523.29",Revenue,26245,Bgc Brokers Lp,E14 5RD,0.00
Director Of Environment,Golf Course,Golf Course,Purchases - Materials,TOP DRESSING SAND,14/05/2021,REDACTED INVOICE NUMBER,142059,663.30,Revenue,355,Binder Loams Ltd,CM5 0HY,0.00
Director Of Law & Governance,Procurement,Procurement,Computer Software Licences,TENDERBOXES,07/05/2021,REDACTED INVOICE NUMBER,141624,"3,900.00",Revenue,358,Bip Solutions Ltd,GS1 1DZ,0.00
Director Of Law & Governance,Legal Services & Data Protect,Legal Services & Data Protect,Legal Fees,PROFESSIONAL CHARGES,07/05/2021,REDACTED INVOICE NUMBER,142511,"1,050.00",Revenue,359,Birketts Llp,CM2 0AP,0.00
Director Of Law & Governance,Legal Services & Data Protect,Legal Services & Data Protect,Legal Fees,PROFESSIONAL CHARGES,07/05/2021,REDACTED INVOICE NUMBER,141557,"1,312.50",Revenue,359,Birketts Llp,CM2 0AP,0.00
Director Of Law & Governance,Legal Services & Data Protect,Legal Services & Data Protect,Legal Fees,PROFESSIONAL CHARGES,11/05/2021,REDACTED INVOICE NUMBER,141958,910.00,Revenue,359,Birketts Llp,CM2 0AP,0.00
Director Of Law & Governance,Legal Services & Data Protect,Legal Services & Data Protect,Legal Fees,PROFESSIONAL CHARGES,14/05/2021,REDACTED INVOICE NUMBER,142082,"6,917.50",Revenue,359,Birketts Llp,CM2 0AP,0.00
Hra Expenditure,Supervision And Management,Rent Collection & Recovery,Other Professional Fees,PROFESSIONAL CHARGES ,14/05/2021,REDACTED INVOICE NUMBER,141301,687.50,Revenue,359,Birketts Llp,CM2 0AP,0.00
Director Of Law & Governance,Legal Services & Data Protect,Legal Services & Data Protect,Legal Fees,PROFESSIONAL CHARGES,21/05/2021,REDACTED INVOICE NUMBER,142230,500.00,Revenue,359,Birketts Llp,CM2 0AP,0.00
Director Of Law & Governance,Legal Services & Data Protect,Legal Services & Data Protect,Legal Fees,PROFESSIONAL CHARGES,21/05/2021,REDACTED INVOICE NUMBER,142401,"1,297.50",Revenue,359,Birketts Llp,CM2 0AP,0.00
Director Of Law & Governance,Legal Services & Data Protect,Legal Services & Data Protect,Recharges To External Orgs,PROFESSIONAL CHARGES,21/05/2021,REDACTED INVOICE NUMBER,142524,850.00,Revenue,359,Birketts Llp,CM2 0AP,0.00
Hra Expenditure,Supervision And Management,Rent Collection & Recovery,Other Professional Fees,PROFESSIONAL CHARGES,21/05/2021,REDACTED INVOICE NUMBER,142403,525.00,Revenue,359,Birketts Llp,CM2 0AP,0.00
Director Of Law & Governance,Legal Services & Data Protect,Legal Services & Data Protect,Legal Fees,PROFESSIONAL CHARGES,25/05/2021,REDACTED INVOICE NUMBER,143183,561.00,Revenue,359,Birketts Llp,CM2 0AP,0.00
Director Of Law & Governance,Legal Services & Data Protect,Legal Services & Data Protect,Legal Fees,PROFESSIONAL CHARGES,25/05/2021,REDACTED INVOICE NUMBER,143184,601.00,Revenue,359,Birketts Llp,CM2 0AP,0.00
Director Of Law & Governance,Legal Services & Data Protect,Legal Services & Data Protect,Legal Fees,PROFESSIONAL CHARGES,25/05/2021,REDACTED INVOICE NUMBER,143185,495.00,Revenue,359,Birketts Llp,CM2 0AP,0.00
Hra Expenditure,Supervision And Management,Rent Collection & Recovery,Other Professional Fees,PROFESSIONAL CHARGES,25/05/2021,REDACTED INVOICE NUMBER,143679,212.50,Revenue,359,Birketts Llp,CM2 0AP,0.00
Hra Expenditure,Supervision And Management,Rent Collection & Recovery,Other Professional Fees,PROFESSIONAL CHARGES,25/05/2021,REDACTED INVOICE NUMBER,143680,"1,000.00",Revenue,359,Birketts Llp,CM2 0AP,0.00
Director Of Law & Governance,Legal Services & Data Protect,Legal Services & Data Protect,Legal Fees,PROFESSIONAL CHARGES,28/05/2021,REDACTED INVOICE NUMBER,142932,350.00,Revenue,359,Birketts Llp,CM2 0AP,0.00
Director Of Law & Governance,Legal Services & Data Protect,Legal Services & Data Protect,Legal Fees,PROFESSIONAL CHARGES,28/05/2021,REDACTED INVOICE NUMBER,143188,"1,755.50",Revenue,359,Birketts Llp,CM2 0AP,0.00
Director Of Law & Governance,Legal Services & Data Protect,Legal Services & Data Protect,Legal Fees,PROFESSIONAL CHARGES,28/05/2021,REDACTED INVOICE NUMBER,142921,300.00,Revenue,359,Birketts Llp,CM2 0AP,0.00
Director Of Law & Governance,Legal Services & Data Protect,Legal Services & Data Protect,Legal Fees,PROFESSIONAL CHARGES,28/05/2021,REDACTED INVOICE NUMBER,143681,125.00,Revenue,359,Birketts Llp,CM2 0AP,0.00
Director Of Law & Governance,Legal Services & Data Protect,Legal Services & Data Protect,Legal Fees,PROFESSIONAL CHARGES,28/05/2021,REDACTED INVOICE NUMBER,142532,615.00,Revenue,359,Birketts Llp,CM2 0AP,0.00
Director Of Law & Governance,Legal Services & Data Protect,Legal Services & Data Protect,Legal Fees,PROFESSIONAL CHARGES,28/05/2021,REDACTED INVOICE NUMBER,143216,450.00,Revenue,359,Birketts Llp,CM2 0AP,0.00
Director Of Law & Governance,Legal Services & Data Protect,Legal Services & Data Protect,Legal Fees,PROFESSIONAL CHARGES,28/05/2021,REDACTED INVOICE NUMBER,143682,"7,803.50",Revenue,359,Birketts Llp,CM2 0AP,0.00
Director Of Law & Governance,Legal Services & Data Protect,Legal Services & Data Protect,Legal Fees,PROFESSIONAL CHARGES,28/05/2021,REDACTED INVOICE NUMBER,143187,"2,500.00",Revenue,359,Birketts Llp,CM2 0AP,0.00
Director Of Law & Governance,Legal Services & Data Protect,Legal Services & Data Protect,Legal Fees,PROFESSIONAL CHARGES,28/05/2021,REDACTED INVOICE NUMBER,143189,843.50,Revenue,359,Birketts Llp,CM2 0AP,0.00
Director Of Law & Governance,Legal Services & Data Protect,Legal Services & Data Protect,Legal Fees,PROFESSIONAL CHARGES,28/05/2021,REDACTED INVOICE NUMBER,143186,340.00,Revenue,359,Birketts Llp,CM2 0AP,0.00
Director Of Law & Governance,Electoral Services,Election Services,Election Advances,Hire Of Premises,11/05/2021,REDACTED INVOICE NUMBER,142541,355.00,Revenue,28135,Blackmore Village Hall,CM4 0QW,0.00
Director Of Law & Governance,Democratic Services & Support,Civic Services & Support,Chairmans Civic Expenditure,CONSULAR PRESS,25/05/2021,REDACTED INVOICE NUMBER,143716,395.00,Revenue,189996P,Bolsons Limited,CM13 3XL,0.00
Director Of Planning & Economy,Planning Policy Total,Planning Policy,Subscriptions,SUBS,21/05/2021,REDACTED INVOICE NUMBER,143276,"2,750.00",Revenue,391,Braintree District Council,CM7 9HB,0.00
Director Of Environment,"Communities, Health & Leisure",Sports & Social Venues,Purchases - Materials,CHEMICALS - BRENTWOOD CENTRE,21/05/2021,REDACTED INVOICE NUMBER,143400,563.73,Revenue,189490P,Brenntag Uk Limited,SE10 0QW,0.00
Director Of Law & Governance,Electoral Services,Election Services,Election Advances,ELECTIONS,11/05/2021,REDACTED INVOICE NUMBER,142744,85.00,Revenue,24466,Brentwood Baptist Church,.CM14 4DR,0.00
Director Of Law & Governance,Electoral Services,Election Services,Election Advances,ELECTIONS,18/05/2021,REDACTED INVOICE NUMBER,143367,"65,000.00",Revenue,192092P,Brentwood Borough Council Elections,.,0.00
Director Of Law & Governance,Electoral Services,Election Services,Election Advances,ELECTIONS,25/05/2021,REDACTED INVOICE NUMBER,143847,"26,785.00",Revenue,192209P,Brentwood Borough Council Elections,.,0.00
Director Of Environment,Parking,Parking Services,Telephones - General,RADIO HIRE - MSCP - APR '21,28/05/2021,REDACTED INVOICE NUMBER,142720,100.68,Revenue,415,Brentwood Communications Ltd,CM3 8EW,0.00
Director Of Environment,"Communities, Health & Leisure",Grants To Organisations,Grants - Bct,COMMUNITY TRANSPORT (1),18/05/2021,REDACTED INVOICE NUMBER,143257,"6,634.00",Revenue,418,Brentwood Community Transport,CM14 4AJ,0.00
Capex Director Of Housing,Housing - Affordable Housing,Maple Close,Enhancements,MAPLE CLOSE,14/05/2021,REDACTED INVOICE NUMBER,141953,"1,510.00",Capital,185870P,Brentwood Development Partnership Llp,EC2R 8DN,0.00
Director Of Environment,Street Services,Street Cleansing,Purchases - General Equipment,MATERIALS,04/05/2021,REDACTED INVOICE NUMBER,142195,45.00,Revenue,433,Brentwood Fencing Supplies Ltd,CM15 9JH,0.00
Balance Sheet,Balance Sheet,Balance Sheet,Agency - Csp,DOOR CHAIN,07/05/2021,REDACTED INVOICE NUMBER,142219,39.95,Revenue,444,Brentwood Lock & Safe,CM15 9DL,0.00
Director Of Environment,Grounds Maintenance,Grounds Maintenance,Purchases - General Equipment,HEAVY DUTY PADLOCK,07/05/2021,REDACTED INVOICE NUMBER,142349,29.95,Revenue,444,Brentwood Lock & Safe,CM15 9DL,0.00
Director Corporate Resources,Asset Management,Asset Management,R&M Bldgs - General,S/F KEY SAFE - NIGHTINGALE CENTRE,14/05/2021,REDACTED INVOICE NUMBER,142722,71.75,Revenue,444,Brentwood Lock & Safe,CM15 9DL,0.00
Director Corporate Resources,Office Accommodation,Office Facilities Management,R&M Bldgs - General,NEW LOCK,14/05/2021,REDACTED INVOICE NUMBER,142890,24.80,Revenue,444,Brentwood Lock & Safe,CM15 9DL,0.00
Hra Expenditure,Repairs And Maintenance,Responsive Repairs Management,Other Fees & Service,KEY CUTTING,14/05/2021,REDACTED INVOICE NUMBER,142725,10.00,Revenue,444,Brentwood Lock & Safe,CM15 9DL,0.00
Hra Expenditure,Repairs And Maintenance,Responsive Repairs Management,Other Fees & Service,REFIT INTERCOM - CANTERBURY COURT,18/05/2021,REDACTED INVOICE NUMBER,143247,186.20,Revenue,444,Brentwood Lock & Safe,CM15 9DL,0.00
Director Of Environment,Grounds Maintenance,Grounds Maintenance,Purchases - General Equipment,BIKE LOCK / PADLOCK ,21/05/2021,REDACTED INVOICE NUMBER,142520,47.75,Revenue,444,Brentwood Lock & Safe,CM15 9DL,0.00
Director Of Environment,Grounds Maintenance,Grounds Maintenance,Purchases - General Equipment,COMBINATION LOCK,28/05/2021,REDACTED INVOICE NUMBER,143371,39.95,Revenue,444,Brentwood Lock & Safe,CM15 9DL,0.00
Capex Director Of C Resources,Asset Management,Brentwood Leisure Centre,Enhancements,PLUMBING WORKS - BRENTWOOD CENTRE,21/05/2021,REDACTED INVOICE NUMBER,142669,470.75,Capital,445,Brentwood M + E Services Ltd,CM6 3HT,0.00
Capex Director Of C Resources,Asset Management,Community Halls,R&M Bldgs - General,PLUMBING WORKS - BRENTWOOD CENTRE,25/05/2021,REDACTED INVOICE NUMBER,142700,941.50,Capital,445,Brentwood M + E Services Ltd,CM6 3HT,0.00
Capex Director Of C Resources,Asset Management,Brentwood Leisure Centre,Enhancements,PLUMBING WORKS - BRENTWOOD CENTRE,28/05/2021,REDACTED INVOICE NUMBER,143379,313.25,Capital,445,Brentwood M + E Services Ltd,CM6 3HT,0.00
Director Corporate Resources,Asset Management,Asset Management,R&M Bldgs - General,BOILER REPAIRS - BISHOPS HALL,28/05/2021,REDACTED INVOICE NUMBER,143380,508.90,Revenue,445,Brentwood M + E Services Ltd,CM6 3HT,0.00
Director Corporate Resources,Asset Management,Asset Management,R&M Bldgs - General,CHLORINATION - INGATESTONE,28/05/2021,REDACTED INVOICE NUMBER,143382,355.00,Revenue,445,Brentwood M + E Services Ltd,CM6 3HT,0.00
Hra Expenditure,Repairs And Maintenance,Responsive Void Repairs,Electricity,ELECTRICITY SUPPLY,04/05/2021,REDACTED INVOICE NUMBER,142406,12.13,Revenue,492,British Gas Trading Limited (Please Use),GU95 1AB,0.00
Hra Expenditure,Repairs And Maintenance,Responsive Void Repairs,Gas,GAS SUPPLY,04/05/2021,REDACTED INVOICE NUMBER,142406,7.75,Revenue,492,British Gas Trading Limited (Please Use),GU95 1AB,0.00
Hra Expenditure,Repairs And Maintenance,Responsive Void Repairs,Gas,GAS SUPPLY,04/05/2021,REDACTED INVOICE NUMBER,142468,59.04,Revenue,492,British Gas Trading Limited (Please Use),GU95 1AB,0.00
Hra Expenditure,Repairs And Maintenance,Responsive Void Repairs,Electricity,ELECTRICITY SUPPLY,07/05/2021,REDACTED INVOICE NUMBER,142711,23.08,Revenue,492,British Gas Trading Limited (Please Use),GU95 1AB,0.00
Hra Expenditure,Repairs And Maintenance,Responsive Void Repairs,Gas,GAS SUPPLY,07/05/2021,REDACTED INVOICE NUMBER,142711,2.04,Revenue,492,British Gas Trading Limited (Please Use),GU95 1AB,0.00
Hra Expenditure,Repairs And Maintenance,Responsive Void Repairs,Electricity,ELECTRICITY SUPPLY,25/05/2021,REDACTED INVOICE NUMBER,143171,19.97,Revenue,492,British Gas Trading Limited (Please Use),GU95 1AB,0.00
Hra Expenditure,Repairs And Maintenance,Responsive Void Repairs,Electricity,ELECTRICITY SUPPLY,25/05/2021,REDACTED INVOICE NUMBER,143659,136.76,Revenue,492,British Gas Trading Limited (Please Use),GU95 1AB,0.00
Hra Expenditure,Repairs And Maintenance,Responsive Void Repairs,Gas,GAS SUPPLY,25/05/2021,REDACTED INVOICE NUMBER,143374,91.71,Revenue,492,British Gas Trading Limited (Please Use),GU95 1AB,0.00
Hra Expenditure,Repairs And Maintenance,Responsive Void Repairs,Gas,GAS SUPPLY,25/05/2021,REDACTED INVOICE NUMBER,143659,34.17,Revenue,492,British Gas Trading Limited (Please Use),GU95 1AB,0.00
Hra Expenditure,Repairs And Maintenance,Responsive Void Repairs,Gas,GAS SUPPLY,28/05/2021,REDACTED INVOICE NUMBER,131323,211.96,Revenue,492,British Gas Trading Limited (Please Use),GU95 1AB,0.00
Director Digital & Customer En,Digital Servs & Transformation,Ict Services,Telephones - General,PHONE CHARGES,14/05/2021,REDACTED INVOICE NUMBER,143169,151.82,Revenue,501,British Telecommunications Plc,DH98 1BT,0.00
Director Digital & Customer En,Digital Servs & Transformation,Ict Services,Telephones - General,PHONE CHARGES,25/05/2021,REDACTED INVOICE NUMBER,143660,27.19,Revenue,501,British Telecommunications Plc,DH98 1BT,0.00
Director Digital & Customer En,Digital Servs & Transformation,Ict Services,Telephones - General,PHONE CHARGES,25/05/2021,REDACTED INVOICE NUMBER,143750,93.70,Revenue,501,British Telecommunications Plc,DH98 1BT,0.00
Capex Director Of C Resources,Asset Management,Brentwood Leisure Centre,R&M Bldgs - General,REMEDIAL WORK - BRENTWOOD CENTRE,07/05/2021,REDACTED INVOICE NUMBER,142801,866.95,Capital,27757,Brontide Consulting Limited,CM3 1LN,0.00
Director Of Environment,Health & Food Safety,Food & Health Support,Agency Staff,PROJECT MANAGEMENT SUPPORT,07/05/2021,REDACTED INVOICE NUMBER,141554,777.87,Revenue,28337,Buckingham Futures,HA7 4AW,0.00
Director Of Environment,Health & Food Safety,Food & Health Support,Agency Staff,PROJECT MANAGEMENT SUPPORT,14/05/2021,REDACTED INVOICE NUMBER,141976,949.05,Revenue,28337,Buckingham Futures,HA7 4AW,0.00
Director Of Environment,Health & Food Safety,Food & Health Support,Agency Staff,PROJECT MANAGEMENT SUPPORT,21/05/2021,REDACTED INVOICE NUMBER,142355,731.43,Revenue,28337,Buckingham Futures,HA7 4AW,0.00
Director Corporate Resources,Corporate Management,Corporate Management Costs,Bank Charges,TRANSACTION CHARGES,14/05/2021,REDACTED INVOICE NUMBER,143153,214.09,Revenue,23084,Capita Bus. Serv Ltd (Pg Payments),DL1 9HN,0.00
Director Corporate Resources,Corporate Management,Corporate Management Costs,Bank Charges,TRANSACTION CHARGES - MAR '21,14/05/2021,REDACTED INVOICE NUMBER,141633,147.79,Revenue,23084,Capita Bus. Serv Ltd (Pg Payments),DL1 9HN,0.00
Director Corporate Resources,Corporate Management,Corporate Management Costs,Bank Charges,TRANSACTIONS,14/05/2021,REDACTED INVOICE NUMBER,141966,"6,564.81",Revenue,23084,Capita Bus. Serv Ltd (Pg Payments),DL1 9HN,0.00
Director Corporate Resources,Corporate Management,Corporate Management Costs,Bank Charges,TRANSACTIONS CHARGES,14/05/2021,REDACTED INVOICE NUMBER,143261,"7,164.46",Revenue,23084,Capita Bus. Serv Ltd (Pg Payments),DL1 9HN,0.00
Director Corporate Resources,Corporate Finance,Corporate Finance,Software Support & Maintenance,ANNUAL MAINTENANCE - 21/22,11/05/2021,REDACTED INVOICE NUMBER,142368,"19,787.50",Revenue,560,Capita Business Services Ltd,SWIH 0XA,0.00
Chief Executive,Executive Board,Senior Leadership Team,Subscriptions,ASELA Subscription - 2020/21,11/05/2021,REDACTED INVOICE NUMBER,141653,"60,000.00",Revenue,579,Castle Point Borough Council,SS7 ITF,0.00
Director Digital & Customer En,Digital Servs & Transformation,Ict Services,Computer Consumables,IT EQUIPMENT,11/05/2021,REDACTED INVOICE NUMBER,141914,38.65,Revenue,586,Ccs Media Ltd,RM1 3PJ,0.00
Capex Director Digital & C.E,Ict Services,Ict Strategy,Enhancements,IT EQUIPMENT,14/05/2021,REDACTED INVOICE NUMBER,141614,"1,926.34",Capital,586,Ccs Media Ltd,RM1 3PJ,0.00
Capex Director Digital & C.E,Ict Services,Ict Strategy,Enhancements,IT EQUIPMENT,14/05/2021,REDACTED INVOICE NUMBER,141945,98.70,Capital,586,Ccs Media Ltd,RM1 3PJ,0.00
Capex Director Digital & C.E,Ict Services,Ict Strategy,Enhancements,DPI A4 WI-FI,18/05/2021,REDACTED INVOICE NUMBER,142201,98.70,Capital,586,Ccs Media Ltd,RM1 3PJ,0.00
Capex Director Digital & C.E,Ict Services,Ict Strategy,Enhancements,IT EQUIPMENT,25/05/2021,REDACTED INVOICE NUMBER,142506,"1,823.45",Capital,586,Ccs Media Ltd,RM1 3PJ,0.00
Director Of Environment,Open Spaces,Buildings & Stakeholders,R&M Bldgs - General,MAINTENANCE,11/05/2021,REDACTED INVOICE NUMBER,142788,880.00,Revenue,191471P,Centregolf,CM11 1PU,0.00
Director Of Environment,Golf Course,Golf Course,Vehicle - Fuel,GASOIL,11/05/2021,REDACTED INVOICE NUMBER,142124,"1,105.00",Revenue,22987,Certas Energy (Trading As Butler Fuels),WA3 6XG,0.00
Director Of Planning & Economy,Planning Policy Total,Planning Policy,Project Management Support,SECONDMENT,04/05/2021,REDACTED INVOICE NUMBER,141353,"3,298.50",Revenue,636,Chelmsford Borough Council,CM1 1JE,0.00
Balance Sheet,Balance Sheet,Balance Sheet,Short Term Borrowing,Management Fee 20/21,07/05/2021,REDACTED INVOICE NUMBER,141508,"3,841.69",Revenue,636,Chelmsford Borough Council,CM1 1JE,0.00
Interest Payable - Gf,Interest Payable - Gf,Interest Payable - Gf,Interest - Transferred Debt,Management Fee 20/21,07/05/2021,REDACTED INVOICE NUMBER,141508,"15,975.72",Revenue,636,Chelmsford Borough Council,CM1 1JE,0.00
Chief Executive,Executive Board,Senior Leadership Team,Contracted Services,CONTRACTED SERVICES,28/05/2021,REDACTED INVOICE NUMBER,137574,"2,036.16",Revenue,636,Chelmsford Borough Council,CM1 1JE,0.00
Director Of Planning & Economy,Planning Policy Total,Planning Policy,Consultancy Fees,RAMS PROJECT - JAN - MAR '21,14/05/2021,REDACTED INVOICE NUMBER,141946,30.00,Revenue,28247,Chelmsford City Council,CM1 1JE,0.00
Balance Sheet,Balance Sheet,Balance Sheet,Highways Stores,CLOTHING,11/05/2021,REDACTED INVOICE NUMBER,141689,220.00,Revenue,645,Chelmsford Safety Supplies,CM1 3AG,0.00
Director Of Environment,Parking,Parking Services,Managed Services,DVLA ENQUIRY SERVICE,28/05/2021,REDACTED INVOICE NUMBER,142826,44.60,Revenue,656,Chipside Limited,SN15 5FD,0.00
Director Of Law & Governance,Electoral Services,Election Services,Election Advances,Hire Of Premises,11/05/2021,REDACTED INVOICE NUMBER,142537,350.00,Revenue,28395,Christ Church,CM13 3AA,0.00
Director Corporate Resources,Asset Management,Asset Management,R&M Bldgs - General,INTRUDER ALARM - DEPOT,25/05/2021,REDACTED INVOICE NUMBER,142530,456.68,Revenue,674,Chubb Fire And Security Limited,BB1 2PR,0.00
Director Corporate Resources,Asset Management,Asset Management,R&M Bldgs - General,INTRUDER ALARM - DEPOT,28/05/2021,REDACTED INVOICE NUMBER,142668,320.92,Revenue,674,Chubb Fire And Security Limited,BB1 2PR,0.00
Director Corporate Resources,Human Resources,Human Resources,Training Expenses,COUNTER FRAUD SPECIALIST,11/05/2021,REDACTED INVOICE NUMBER,142366,"2,400.00",Revenue,681,Cipfa Business Limited,E1W 9LN,0.00
Director Of Environment,Golf Course,Golf Course,Purchases - Materials,CONSUMABLES - HARTSWOOD,07/05/2021,REDACTED INVOICE NUMBER,141933,"7,859.32",Revenue,729,Collier Turf Care Ltd,PE32 2NA,0.00
Director Of Environment,Open Spaces,Bowling Greens,Purchases - Materials,CONSUMABLES - HARTSWOOD,07/05/2021,REDACTED INVOICE NUMBER,141934,"2,353.23",Revenue,729,Collier Turf Care Ltd,PE32 2NA,0.00
Balance Sheet,Balance Sheet,Balance Sheet,Assize Trust Account,8 - 12 CROWN STREET - JAN '21,21/05/2021,REDACTED INVOICE NUMBER,142741,170.21,Revenue,165549P,Contract Natural Gas Ltd,HG1 1EL,0.00
Balance Sheet,Balance Sheet,Balance Sheet,Assize Trust Account,8-12 CROWN STREET - JAN '21,21/05/2021,REDACTED INVOICE NUMBER,143225,107.64,Revenue,165549P,Contract Natural Gas Ltd,HG1 1EL,0.00
Director Corporate Resources,Corporate Finance,Corporate Finance,Subscriptions,STANDARD V4 UK,07/05/2021,REDACTED INVOICE NUMBER,141501,595.00,Revenue,18693,Creditsafe Business Solutions Ltd,CF83 3GG,0.00
Balance Sheet,Balance Sheet,Balance Sheet,Assize Trust Account,8-12 CROWN STREET - APR '21,28/05/2021,REDACTED INVOICE NUMBER,143025,37.50,Revenue,25468,Crown Gas And Power,BL9 7HY,0.00
Director Of Environment,Open Spaces,Countryside Recreation Mtnce,R&M Grounds - Grass Cutting,TREE WORK,14/05/2021,REDACTED INVOICE NUMBER,142534,450.00,Revenue,27170,Cut Above,CM15 0PG,0.00
Hra Expenditure,Special Services,Grounds Maintenance,R&M Grounds - Treework,TREE WORKS,14/05/2021,REDACTED INVOICE NUMBER,142543,"4,400.00",Revenue,27170,Cut Above,CM15 0PG,0.00
Hra Expenditure,Special Services,Grounds Maintenance,R&M Grounds - Treework,TREE WORKS,14/05/2021,REDACTED INVOICE NUMBER,142545,"3,000.00",Revenue,27170,Cut Above,CM15 0PG,0.00
Hra Expenditure,Special Services,Grounds Maintenance,R&M Grounds - Treework,TREE WORKS,14/05/2021,REDACTED INVOICE NUMBER,142544,650.00,Revenue,27170,Cut Above,CM15 0PG,0.00
Director Digital & Customer En,Digital Servs & Transformation,Ict Services,Mobile Phone - General,Your DUCL bill,14/05/2021,REDACTED INVOICE NUMBER,142949,"2,172.51",Revenue,23240,Daisy Updata Communications Ltd,BB9 5SR,0.00
Director Of Environment,Vehicle Fleet Management,Vehicle Fleet Management,Purchases - General Equipment,LAUNDRY,07/05/2021,REDACTED INVOICE NUMBER,142709,13.15,Revenue,817,Danes Of Colchester Limited,CO4 9RY,0.00
Director Of Environment,Vehicle Fleet Management,Vehicle Fleet Management,Purchases - General Equipment,LAUNDRY,21/05/2021,REDACTED INVOICE NUMBER,142708,19.44,Revenue,817,Danes Of Colchester Limited,CO4 9RY,0.00
Director Of Environment,Vehicle Fleet Management,Vehicle Fleet Management,Vehicle Replacement Parts,VEHICLE PARTS,11/05/2021,REDACTED INVOICE NUMBER,141961,230.85,Revenue,25512,David Huggett Mf Ltd,EM8 7NH,0.00
Director Of Environment,Vehicle Fleet Management,Vehicle Fleet Management,Vehicle Replacement Parts,VEHICLE PARTS,14/05/2021,REDACTED INVOICE NUMBER,140967,98.79,Revenue,25512,David Huggett Mf Ltd,EM8 7NH,0.00
Director Of Environment,Vehicle Fleet Management,Vehicle Fleet Management,Vehicle Replacement Parts,VEHICLE PARTS,14/05/2021,REDACTED INVOICE NUMBER,142030,209.77,Revenue,25512,David Huggett Mf Ltd,EM8 7NH,0.00
Director Of Environment,Vehicle Fleet Management,Vehicle Fleet Management,Vehicle Replacement Parts,VEHICLE PARTS,14/05/2021,REDACTED INVOICE NUMBER,142025,435.00,Revenue,25512,David Huggett Mf Ltd,EM8 7NH,0.00
Director Of Environment,Vehicle Fleet Management,Vehicle Fleet Management,Vehicle Replacement Parts,VEHICLE PARTS,14/05/2021,REDACTED INVOICE NUMBER,142060,82.28,Revenue,25512,David Huggett Mf Ltd,EM8 7NH,0.00
Director Of Environment,Vehicle Fleet Management,Vehicle Fleet Management,Vehicle Replacement Parts,VEHICLE PARTS,14/05/2021,REDACTED INVOICE NUMBER,142062,302.84,Revenue,25512,David Huggett Mf Ltd,EM8 7NH,0.00
Director Of Environment,Vehicle Fleet Management,Vehicle Fleet Management,Vehicle Replacement Parts,VEHICLE PARTS,14/05/2021,REDACTED INVOICE NUMBER,142063,92.47,Revenue,25512,David Huggett Mf Ltd,EM8 7NH,0.00
Director Of Environment,Vehicle Fleet Management,Vehicle Fleet Management,Vehicle Replacement Parts,VEHICLE PARTS,14/05/2021,REDACTED INVOICE NUMBER,142064,252.07,Revenue,25512,David Huggett Mf Ltd,EM8 7NH,0.00
Director Of Environment,Vehicle Fleet Management,Vehicle Fleet Management,Vehicle Replacement Parts,VEHICLE PARTS,14/05/2021,REDACTED INVOICE NUMBER,142065,731.51,Revenue,25512,David Huggett Mf Ltd,EM8 7NH,0.00
Director Of Environment,Grounds Maintenance,Grounds Maintenance,Vehicle Replacement Parts,VEHICLE PARTS,18/05/2021,REDACTED INVOICE NUMBER,142094,75.78,Revenue,25512,David Huggett Mf Ltd,EM8 7NH,0.00
Director Of Environment,Vehicle Fleet Management,Vehicle Fleet Management,Vehicle Replacement Parts,coolant pump,18/05/2021,REDACTED INVOICE NUMBER,142205,819.01,Revenue,25512,David Huggett Mf Ltd,EM8 7NH,0.00
Director Of Environment,Vehicle Fleet Management,Vehicle Fleet Management,Vehicle Replacement Parts,DUST SHEET,18/05/2021,REDACTED INVOICE NUMBER,142206,78.81,Revenue,25512,David Huggett Mf Ltd,EM8 7NH,0.00
Director Of Environment,Vehicle Fleet Management,Vehicle Fleet Management,Vehicle Replacement Parts,FRAME,18/05/2021,REDACTED INVOICE NUMBER,142207,647.80,Revenue,25512,David Huggett Mf Ltd,EM8 7NH,0.00
Director Of Environment,Vehicle Fleet Management,Vehicle Fleet Management,Vehicle Replacement Parts,Genuine Nox Sensor to,18/05/2021,REDACTED INVOICE NUMBER,142208,329.88,Revenue,25512,David Huggett Mf Ltd,EM8 7NH,0.00
Director Of Environment,Vehicle Fleet Management,Vehicle Fleet Management,Vehicle Replacement Parts,CREDIT NOTE,18/05/2021,REDACTED INVOICE NUMBER,142091,-45.00,Revenue,25512,David Huggett Mf Ltd,EM8 7NH,0.00
Director Of Environment,Vehicle Fleet Management,Vehicle Fleet Management,Vehicle Replacement Parts,CREDIT NOTE,18/05/2021,REDACTED INVOICE NUMBER,142381,-182.92,Revenue,25512,David Huggett Mf Ltd,EM8 7NH,0.00
Director Of Environment,Vehicle Fleet Management,Vehicle Fleet Management,Vehicle Replacement Parts,VEHICLE PARTS,18/05/2021,REDACTED INVOICE NUMBER,142346,-231.00,Revenue,25512,David Huggett Mf Ltd,EM8 7NH,0.00
Director Of Environment,Vehicle Fleet Management,Vehicle Fleet Management,Vehicle Replacement Parts,VEHICLE PARTS,18/05/2021,REDACTED INVOICE NUMBER,141173,61.95,Revenue,25512,David Huggett Mf Ltd,EM8 7NH,0.00
Director Of Environment,Vehicle Fleet Management,Vehicle Fleet Management,Vehicle Replacement Parts,VEHICLE PARTS,18/05/2021,REDACTED INVOICE NUMBER,141245,620.00,Revenue,25512,David Huggett Mf Ltd,EM8 7NH,0.00
Director Of Environment,Vehicle Fleet Management,Vehicle Fleet Management,Vehicle Replacement Parts,VEHICLE PARTS,18/05/2021,REDACTED INVOICE NUMBER,141317,100.00,Revenue,25512,David Huggett Mf Ltd,EM8 7NH,0.00
Director Of Environment,Vehicle Fleet Management,Vehicle Fleet Management,Vehicle Replacement Parts,VEHICLE PARTS,18/05/2021,REDACTED INVOICE NUMBER,141318,158.83,Revenue,25512,David Huggett Mf Ltd,EM8 7NH,0.00
Director Of Environment,Vehicle Fleet Management,Vehicle Fleet Management,Vehicle Replacement Parts,VEHICLE PARTS,18/05/2021,REDACTED INVOICE NUMBER,141319,67.82,Revenue,25512,David Huggett Mf Ltd,EM8 7NH,0.00
Director Of Environment,Vehicle Fleet Management,Vehicle Fleet Management,Vehicle Replacement Parts,VEHICLE PARTS,18/05/2021,REDACTED INVOICE NUMBER,141354,45.00,Revenue,25512,David Huggett Mf Ltd,EM8 7NH,0.00
Director Of Environment,Vehicle Fleet Management,Vehicle Fleet Management,Vehicle Replacement Parts,VEHICLE PARTS,18/05/2021,REDACTED INVOICE NUMBER,141355,250.00,Revenue,25512,David Huggett Mf Ltd,EM8 7NH,0.00
Director Of Environment,Vehicle Fleet Management,Vehicle Fleet Management,Vehicle Replacement Parts,VEHICLE PARTS,18/05/2021,REDACTED INVOICE NUMBER,141357,250.00,Revenue,25512,David Huggett Mf Ltd,EM8 7NH,0.00
Director Of Environment,Vehicle Fleet Management,Vehicle Fleet Management,Vehicle Replacement Parts,VEHICLE PARTS,18/05/2021,REDACTED INVOICE NUMBER,141488,197.80,Revenue,25512,David Huggett Mf Ltd,EM8 7NH,0.00
Director Of Environment,Vehicle Fleet Management,Vehicle Fleet Management,Vehicle Replacement Parts,VEHICLE PARTS,18/05/2021,REDACTED INVOICE NUMBER,141487,100.00,Revenue,25512,David Huggett Mf Ltd,EM8 7NH,0.00
Director Of Environment,Vehicle Fleet Management,Vehicle Fleet Management,Vehicle Replacement Parts,VEHICLE PARTS,18/05/2021,REDACTED INVOICE NUMBER,141490,215.00,Revenue,25512,David Huggett Mf Ltd,EM8 7NH,0.00
Director Of Environment,Vehicle Fleet Management,Vehicle Fleet Management,Vehicle Replacement Parts,VEHICLE PARTS,18/05/2021,REDACTED INVOICE NUMBER,141486,63.19,Revenue,25512,David Huggett Mf Ltd,EM8 7NH,0.00
Director Of Environment,Vehicle Fleet Management,Vehicle Fleet Management,Vehicle Replacement Parts,VEHICLE PARTS,18/05/2021,REDACTED INVOICE NUMBER,141965,197.15,Revenue,25512,David Huggett Mf Ltd,EM8 7NH,0.00
Director Of Environment,Vehicle Fleet Management,Vehicle Fleet Management,Vehicle Replacement Parts,VEHICLE PARTS,18/05/2021,REDACTED INVOICE NUMBER,141964,28.80,Revenue,25512,David Huggett Mf Ltd,EM8 7NH,0.00
Director Of Environment,Vehicle Fleet Management,Vehicle Fleet Management,Vehicle Replacement Parts,VEHICLE PARTS,18/05/2021,REDACTED INVOICE NUMBER,141963,26.23,Revenue,25512,David Huggett Mf Ltd,EM8 7NH,0.00
Director Of Environment,Vehicle Fleet Management,Vehicle Fleet Management,Vehicle Replacement Parts,VEHICLE PARTS,18/05/2021,REDACTED INVOICE NUMBER,141962,87.68,Revenue,25512,David Huggett Mf Ltd,EM8 7NH,0.00
Director Of Environment,Vehicle Fleet Management,Vehicle Fleet Management,Vehicle Replacement Parts,VEHICLE PARTS,18/05/2021,REDACTED INVOICE NUMBER,142031,20.00,Revenue,25512,David Huggett Mf Ltd,EM8 7NH,0.00
Director Of Environment,Vehicle Fleet Management,Vehicle Fleet Management,Vehicle Replacement Parts,VEHICLE PARTS,18/05/2021,REDACTED INVOICE NUMBER,142024,45.66,Revenue,25512,David Huggett Mf Ltd,EM8 7NH,0.00
Director Of Environment,Vehicle Fleet Management,Vehicle Fleet Management,Vehicle Replacement Parts,VEHICLE PARTS,18/05/2021,REDACTED INVOICE NUMBER,142061,32.80,Revenue,25512,David Huggett Mf Ltd,EM8 7NH,0.00
Director Of Environment,Vehicle Fleet Management,Vehicle Fleet Management,Vehicle Replacement Parts,VEHICLE PARTS,18/05/2021,REDACTED INVOICE NUMBER,142092,43.84,Revenue,25512,David Huggett Mf Ltd,EM8 7NH,0.00
Director Of Environment,Vehicle Fleet Management,Vehicle Fleet Management,Vehicle Replacement Parts,VEHICLE PARTS,18/05/2021,REDACTED INVOICE NUMBER,142093,14.20,Revenue,25512,David Huggett Mf Ltd,EM8 7NH,0.00
Director Of Environment,Vehicle Fleet Management,Vehicle Fleet Management,Vehicle Replacement Parts,VEHICLE PARTS,18/05/2021,REDACTED INVOICE NUMBER,142095,155.88,Revenue,25512,David Huggett Mf Ltd,EM8 7NH,0.00
Director Of Environment,Vehicle Fleet Management,Vehicle Fleet Management,Vehicle Replacement Parts,VEHICLE PARTS,18/05/2021,REDACTED INVOICE NUMBER,142096,473.47,Revenue,25512,David Huggett Mf Ltd,EM8 7NH,0.00
Director Of Environment,Vehicle Fleet Management,Vehicle Fleet Management,Vehicle Replacement Parts,VEHICLE PARTS,18/05/2021,REDACTED INVOICE NUMBER,142098,16.23,Revenue,25512,David Huggett Mf Ltd,EM8 7NH,0.00
Director Of Environment,Vehicle Fleet Management,Vehicle Fleet Management,Vehicle Replacement Parts,VEHICLE PARTS,18/05/2021,REDACTED INVOICE NUMBER,142097,218.62,Revenue,25512,David Huggett Mf Ltd,EM8 7NH,0.00
Director Of Environment,Vehicle Fleet Management,Vehicle Fleet Management,Vehicle Replacement Parts,VEHICLE PARTS,18/05/2021,REDACTED INVOICE NUMBER,142099,406.50,Revenue,25512,David Huggett Mf Ltd,EM8 7NH,0.00
Director Of Environment,Vehicle Fleet Management,Vehicle Fleet Management,Vehicle Replacement Parts,VEHICLE PARTS,18/05/2021,REDACTED INVOICE NUMBER,142100,315.00,Revenue,25512,David Huggett Mf Ltd,EM8 7NH,0.00
Director Of Environment,Vehicle Fleet Management,Vehicle Fleet Management,Vehicle Replacement Parts,VEHICLE PARTS,21/05/2021,REDACTED INVOICE NUMBER,142226,231.00,Revenue,25512,David Huggett Mf Ltd,EM8 7NH,0.00
Director Of Environment,Vehicle Fleet Management,Vehicle Fleet Management,Vehicle Replacement Parts,VEHICLE PARTS,21/05/2021,REDACTED INVOICE NUMBER,142225,229.56,Revenue,25512,David Huggett Mf Ltd,EM8 7NH,0.00
Director Of Environment,Vehicle Fleet Management,Vehicle Fleet Management,Vehicle Replacement Parts,VEHICLE PARTS,21/05/2021,REDACTED INVOICE NUMBER,142224,14.88,Revenue,25512,David Huggett Mf Ltd,EM8 7NH,0.00
Director Of Environment,Vehicle Fleet Management,Vehicle Fleet Management,Vehicle Replacement Parts,VEHICLE PARTS,21/05/2021,REDACTED INVOICE NUMBER,142345,135.80,Revenue,25512,David Huggett Mf Ltd,EM8 7NH,0.00
Director Of Environment,Vehicle Fleet Management,Vehicle Fleet Management,Vehicle Replacement Parts,VEHICLE PARTS,21/05/2021,REDACTED INVOICE NUMBER,142344,43.20,Revenue,25512,David Huggett Mf Ltd,EM8 7NH,0.00
Director Of Environment,Vehicle Fleet Management,Vehicle Fleet Management,Vehicle Replacement Parts,VEHICLE PARTS,21/05/2021,REDACTED INVOICE NUMBER,142343,49.50,Revenue,25512,David Huggett Mf Ltd,EM8 7NH,0.00
Director Of Environment,Vehicle Fleet Management,Vehicle Fleet Management,Vehicle Replacement Parts,VEHICLE PARTS,21/05/2021,REDACTED INVOICE NUMBER,142342,25.00,Revenue,25512,David Huggett Mf Ltd,EM8 7NH,0.00
Director Of Environment,Vehicle Fleet Management,Vehicle Fleet Management,Vehicle Replacement Parts,VEHICLE PARTS,21/05/2021,REDACTED INVOICE NUMBER,142341,74.50,Revenue,25512,David Huggett Mf Ltd,EM8 7NH,0.00
Director Of Environment,Vehicle Fleet Management,Vehicle Fleet Management,Vehicle Replacement Parts,VEHICLE PARTS,21/05/2021,REDACTED INVOICE NUMBER,142382,268.00,Revenue,25512,David Huggett Mf Ltd,EM8 7NH,0.00
Director Of Environment,Vehicle Fleet Management,Vehicle Fleet Management,Vehicle Replacement Parts,VEHICLE PARTS,21/05/2021,REDACTED INVOICE NUMBER,142386,182.92,Revenue,25512,David Huggett Mf Ltd,EM8 7NH,0.00
Director Of Environment,Vehicle Fleet Management,Vehicle Fleet Management,Vehicle Replacement Parts,VEHICLE PARTS,21/05/2021,REDACTED INVOICE NUMBER,142387,32.46,Revenue,25512,David Huggett Mf Ltd,EM8 7NH,0.00
Director Of Environment,Vehicle Fleet Management,Vehicle Fleet Management,Vehicle Replacement Parts,VEHICLE PARTS,21/05/2021,REDACTED INVOICE NUMBER,142388,182.92,Revenue,25512,David Huggett Mf Ltd,EM8 7NH,0.00
Director Of Environment,Vehicle Fleet Management,Vehicle Fleet Management,Vehicle Replacement Parts,VEHICLE PARTS,21/05/2021,REDACTED INVOICE NUMBER,142385,50.53,Revenue,25512,David Huggett Mf Ltd,EM8 7NH,0.00
Director Of Environment,Vehicle Fleet Management,Vehicle Fleet Management,Vehicle Replacement Parts,VEHICLE PARTS,21/05/2021,REDACTED INVOICE NUMBER,142383,287.64,Revenue,25512,David Huggett Mf Ltd,EM8 7NH,0.00
Director Of Environment,Vehicle Fleet Management,Vehicle Fleet Management,Vehicle Replacement Parts,VEHICLE PARTS,21/05/2021,REDACTED INVOICE NUMBER,142384,67.82,Revenue,25512,David Huggett Mf Ltd,EM8 7NH,0.00
Director Of Environment,Vehicle Fleet Management,Vehicle Fleet Management,Vehicle Replacement Parts,VEHICLE PARTS,25/05/2021,REDACTED INVOICE NUMBER,142399,323.12,Revenue,25512,David Huggett Mf Ltd,EM8 7NH,0.00
Director Of Environment,Vehicle Fleet Management,Vehicle Fleet Management,Vehicle Replacement Parts,VEHICLE PARTS,25/05/2021,REDACTED INVOICE NUMBER,142492,750.00,Revenue,25512,David Huggett Mf Ltd,EM8 7NH,0.00
Director Of Environment,Vehicle Fleet Management,Vehicle Fleet Management,Vehicle Replacement Parts,VEHICLE PARTS,25/05/2021,REDACTED INVOICE NUMBER,142398,37.43,Revenue,25512,David Huggett Mf Ltd,EM8 7NH,0.00
Director Of Environment,Vehicle Fleet Management,Vehicle Fleet Management,Vehicle Replacement Parts,VEHICLE PARTS,25/05/2021,REDACTED INVOICE NUMBER,142493,42.52,Revenue,25512,David Huggett Mf Ltd,EM8 7NH,0.00
Director Of Environment,Vehicle Fleet Management,Vehicle Fleet Management,Vehicle Replacement Parts,VEHICLE PARTS,25/05/2021,REDACTED INVOICE NUMBER,142494,50.92,Revenue,25512,David Huggett Mf Ltd,EM8 7NH,0.00
Director Of Environment,Vehicle Fleet Management,Vehicle Fleet Management,Vehicle Replacement Parts,VEHICLE PARTS,28/05/2021,REDACTED INVOICE NUMBER,142527,71.60,Revenue,25512,David Huggett Mf Ltd,EM8 7NH,0.00
Director Of Environment,Vehicle Fleet Management,Vehicle Fleet Management,Vehicle Replacement Parts,VEHICLE PARTS,28/05/2021,REDACTED INVOICE NUMBER,142659,36.50,Revenue,25512,David Huggett Mf Ltd,EM8 7NH,0.00
Director Of Environment,Vehicle Fleet Management,Vehicle Fleet Management,Vehicle Replacement Parts,VEHICLE PARTS,28/05/2021,REDACTED INVOICE NUMBER,142658,112.27,Revenue,25512,David Huggett Mf Ltd,EM8 7NH,0.00
Director Of Environment,Vehicle Fleet Management,Vehicle Fleet Management,Vehicle Replacement Parts,VEHICLE PARTS,28/05/2021,REDACTED INVOICE NUMBER,142655,37.20,Revenue,25512,David Huggett Mf Ltd,EM8 7NH,0.00
Director Of Environment,Vehicle Fleet Management,Vehicle Fleet Management,Vehicle Replacement Parts,VEHICLE PARTS,28/05/2021,REDACTED INVOICE NUMBER,142779,615.00,Revenue,25512,David Huggett Mf Ltd,EM8 7NH,0.00
Director Of Environment,Vehicle Fleet Management,Vehicle Fleet Management,Vehicle Replacement Parts,VEHICLE PARTS,28/05/2021,REDACTED INVOICE NUMBER,142778,17.31,Revenue,25512,David Huggett Mf Ltd,EM8 7NH,0.00
Director Of Environment,Vehicle Fleet Management,Vehicle Fleet Management,Vehicle Replacement Parts,VEHICLE PARTS,28/05/2021,REDACTED INVOICE NUMBER,142780,83.14,Revenue,25512,David Huggett Mf Ltd,EM8 7NH,0.00
Director Of Environment,Vehicle Fleet Management,Vehicle Fleet Management,Vehicle Replacement Parts,VEHICLE PARTS,28/05/2021,REDACTED INVOICE NUMBER,142781,38.31,Revenue,25512,David Huggett Mf Ltd,EM8 7NH,0.00
Director Of Environment,Vehicle Fleet Management,Vehicle Fleet Management,Vehicle Replacement Parts,VEHICLE PARTS,28/05/2021,REDACTED INVOICE NUMBER,142782,15.19,Revenue,25512,David Huggett Mf Ltd,EM8 7NH,0.00
Director Of Environment,Vehicle Fleet Management,Vehicle Fleet Management,Vehicle Replacement Parts,VEHICLE PARTS,28/05/2021,REDACTED INVOICE NUMBER,142783,13.37,Revenue,25512,David Huggett Mf Ltd,EM8 7NH,0.00
Director Of Environment,Vehicle Fleet Management,Vehicle Fleet Management,Vehicle Replacement Parts,VEHICLE PARTS,28/05/2021,REDACTED INVOICE NUMBER,142784,10.07,Revenue,25512,David Huggett Mf Ltd,EM8 7NH,0.00
Director Of Environment,Vehicle Fleet Management,Vehicle Fleet Management,Vehicle Replacement Parts,VEHICLE PARTS,28/05/2021,REDACTED INVOICE NUMBER,142739,41.49,Revenue,25512,David Huggett Mf Ltd,EM8 7NH,0.00
Director Of Environment,Vehicle Fleet Management,Vehicle Fleet Management,Vehicle Replacement Parts,VEHICLE PARTS,28/05/2021,REDACTED INVOICE NUMBER,142657,108.66,Revenue,25512,David Huggett Mf Ltd,EM8 7NH,0.00
Director Of Environment,Vehicle Fleet Management,Vehicle Fleet Management,Vehicle Replacement Parts,VEHICLE PARTS,28/05/2021,REDACTED INVOICE NUMBER,142785,240.00,Revenue,25512,David Huggett Mf Ltd,EM8 7NH,0.00
Director Of Environment,Vehicle Fleet Management,Vehicle Fleet Management,Vehicle Replacement Parts,VEHICLE PARTS,28/05/2021,REDACTED INVOICE NUMBER,142654,602.00,Revenue,25512,David Huggett Mf Ltd,EM8 7NH,0.00
Director Of Environment,Vehicle Fleet Management,Vehicle Fleet Management,Vehicle Replacement Parts,VEHICLE PARTS,28/05/2021,REDACTED INVOICE NUMBER,142661,265.00,Revenue,25512,David Huggett Mf Ltd,EM8 7NH,0.00
Director Of Environment,Vehicle Fleet Management,Vehicle Fleet Management,Vehicle Replacement Parts,VEHICLE PARTS,28/05/2021,REDACTED INVOICE NUMBER,142656,134.00,Revenue,25512,David Huggett Mf Ltd,EM8 7NH,0.00
Director Of Environment,Vehicle Fleet Management,Vehicle Fleet Management,Vehicle Replacement Parts,VEHICLE PARTS,28/05/2021,REDACTED INVOICE NUMBER,142662,581.50,Revenue,25512,David Huggett Mf Ltd,EM8 7NH,0.00
Director Of Environment,Vehicle Fleet Management,Vehicle Fleet Management,Vehicle Replacement Parts,VEHICLE PARTS,28/05/2021,REDACTED INVOICE NUMBER,142660,300.00,Revenue,25512,David Huggett Mf Ltd,EM8 7NH,0.00
Director Of Environment,Vehicle Fleet Management,Vehicle Fleet Management,Vehicle Replacement Parts,VEHICLE PARTS,28/05/2021,REDACTED INVOICE NUMBER,142791,5.33,Revenue,25512,David Huggett Mf Ltd,EM8 7NH,0.00
Director Of Environment,Vehicle Fleet Management,Vehicle Fleet Management,Vehicle R&M - External,VEHICLE PARTS,14/05/2021,REDACTED INVOICE NUMBER,142047,898.34,Revenue,861,Dennis Eagle Ltd,CV34 6TE,0.00
Director Of Environment,Vehicle Fleet Management,Vehicle Fleet Management,Vehicle Replacement Parts,VEHICLE PARTS,18/05/2021,REDACTED INVOICE NUMBER,141560,57.96,Revenue,861,Dennis Eagle Ltd,CV34 6TE,0.00
Director Of Environment,Vehicle Fleet Management,Vehicle Fleet Management,Vehicle Replacement Parts,VEHICLE PARTS,18/05/2021,REDACTED INVOICE NUMBER,142101,594.67,Revenue,861,Dennis Eagle Ltd,CV34 6TE,0.00
Director Of Environment,Vehicle Fleet Management,Vehicle Fleet Management,Vehicle Replacement Parts,VEHICLE PARTS,18/05/2021,REDACTED INVOICE NUMBER,142102,146.29,Revenue,861,Dennis Eagle Ltd,CV34 6TE,0.00
Director Of Environment,Vehicle Fleet Management,Vehicle Fleet Management,Vehicle Replacement Parts,VEHICLE PARTS,21/05/2021,REDACTED INVOICE NUMBER,142353,54.60,Revenue,861,Dennis Eagle Ltd,CV34 6TE,0.00
Director Of Environment,Vehicle Fleet Management,Vehicle Fleet Management,Vehicle Replacement Parts,VEHICLE PARTS,21/05/2021,REDACTED INVOICE NUMBER,142354,358.26,Revenue,861,Dennis Eagle Ltd,CV34 6TE,0.00
Director Of Environment,Vehicle Fleet Management,Vehicle Fleet Management,Vehicle Replacement Parts,VEHICLE PARTS,21/05/2021,REDACTED INVOICE NUMBER,142389,45.01,Revenue,861,Dennis Eagle Ltd,CV34 6TE,0.00
Director Of Environment,Vehicle Fleet Management,Vehicle Fleet Management,Vehicle Replacement Parts,VEHICLE PARTS,28/05/2021,REDACTED INVOICE NUMBER,142525,48.94,Revenue,861,Dennis Eagle Ltd,CV34 6TE,0.00
Chief Executive,Executive Board,Senior Leadership Team,Subscriptions,Annual Membership Fee 2021/202,21/05/2021,REDACTED INVOICE NUMBER,142356,"1,147.00",Revenue,879,District Councils Network,SW1P 3HZ,0.00
Director Of Law & Governance,Electoral Services,Election Services,Election Advances,Hire Of Premises,11/05/2021,REDACTED INVOICE NUMBER,142536,350.00,Revenue,23855,Doddinghurst Road Church,CM15 9EH,0.00
Director Of Law & Governance,Electoral Services,Election Services,Election Advances,Hire Of Premises,11/05/2021,REDACTED INVOICE NUMBER,142646,240.00,Revenue,5614,Doddinghurst Village Hall,CM15 ONJ,0.00
Director Of Environment,"Communities, Health & Leisure",Family Fun Days,Rent/Hire Of Buildings,HALL HIRE - FAMILY FUN DAY,14/05/2021,REDACTED INVOICE NUMBER,143268,125.00,Revenue,5614,Doddinghurst Village Hall,CM15 ONJ,0.00
Director Of Environment,Golf Course,Golf Course,Agency Staff,PROJECT MANAGEMENT SUPPORT,04/05/2021,REDACTED INVOICE NUMBER,142198,632.88,Revenue,28029,Driver Hire (Chelmsford & Harlow),CM8 1BA,0.00
Director Of Environment,Grounds Maintenance,Grounds Maintenance,Agency Staff,PROJECT MANAGEMENT SUPPORT,04/05/2021,REDACTED INVOICE NUMBER,142198,"1,441.13",Revenue,28029,Driver Hire (Chelmsford & Harlow),CM8 1BA,0.00
Director Of Environment,Street Services,Street Cleansing,Agency Staff,PROJECT MANAGEMENT SUPPORT,04/05/2021,REDACTED INVOICE NUMBER,142199,526.13,Revenue,28029,Driver Hire (Chelmsford & Harlow),CM8 1BA,0.00
Director Of Environment,Waste Management,Waste Collection Support,Agency Staff,PROJECT MANAGEMENT SUPPORT,04/05/2021,REDACTED INVOICE NUMBER,142199,"4,507.05",Revenue,28029,Driver Hire (Chelmsford & Harlow),CM8 1BA,0.00
Director Of Environment,Parking,Parking Services,Agency Staff,PROJECT MANAGEMENT SUPPORT,07/05/2021,REDACTED INVOICE NUMBER,142200,664.15,Revenue,28029,Driver Hire (Chelmsford & Harlow),CM8 1BA,0.00
Director Of Environment,Parking,Parking Services,Agency Staff,PROJECT MANAGEMENT SUPPORT,11/05/2021,REDACTED INVOICE NUMBER,142488,818.65,Revenue,28029,Driver Hire (Chelmsford & Harlow),CM8 1BA,0.00
Director Of Environment,Street Services,Street Cleansing,Agency Staff,PROJECT MANAGEMENT SUPPORT,11/05/2021,REDACTED INVOICE NUMBER,142489,"1,387.75",Revenue,28029,Driver Hire (Chelmsford & Harlow),CM8 1BA,0.00
Director Of Environment,Waste Management,Waste Collection Support,Agency Staff,PROJECT MANAGEMENT SUPPORT,11/05/2021,REDACTED INVOICE NUMBER,142489,"4,781.99",Revenue,28029,Driver Hire (Chelmsford & Harlow),CM8 1BA,0.00
Director Of Environment,Golf Course,Golf Course,Agency Staff,PROJECT MANAGEMENT SUPPORT,21/05/2021,REDACTED INVOICE NUMBER,142490,"2,188.38",Revenue,28029,Driver Hire (Chelmsford & Harlow),CM8 1BA,0.00
Director Of Environment,Golf Course,Golf Course,Agency Staff,PROJECT MANAGEMENT SUPPORT,21/05/2021,REDACTED INVOICE NUMBER,142900,602.38,Revenue,28029,Driver Hire (Chelmsford & Harlow),CM8 1BA,0.00
Director Of Environment,Grounds Maintenance,Grounds Maintenance,Agency Staff,PROJECT MANAGEMENT SUPPORT,21/05/2021,REDACTED INVOICE NUMBER,142900,"1,578.38",Revenue,28029,Driver Hire (Chelmsford & Harlow),CM8 1BA,0.00
Director Of Environment,Street Services,Street Cleansing,Agency Staff,PROJECT MANAGEMENT SUPPORT,21/05/2021,REDACTED INVOICE NUMBER,142907,"1,692.75",Revenue,28029,Driver Hire (Chelmsford & Harlow),CM8 1BA,0.00
Director Of Environment,Waste Management,Waste Collection Support,Agency Staff,PROJECT MANAGEMENT SUPPORT,21/05/2021,REDACTED INVOICE NUMBER,142907,"4,555.93",Revenue,28029,Driver Hire (Chelmsford & Harlow),CM8 1BA,0.00
Director Of Environment,Golf Course,Golf Course,Agency Staff,PROJECT MANAGEMENT SUPPORT,25/05/2021,REDACTED INVOICE NUMBER,143165,480.38,Revenue,28029,Driver Hire (Chelmsford & Harlow),CM8 1BA,0.00
Director Of Environment,Grounds Maintenance,Grounds Maintenance,Agency Staff,PROJECT MANAGEMENT SUPPORT,25/05/2021,REDACTED INVOICE NUMBER,143165,"1,242.89",Revenue,28029,Driver Hire (Chelmsford & Harlow),CM8 1BA,0.00
Director Of Environment,Street Services,Street Cleansing,Agency Staff,PROJECT MANAGEMENT SUPPORT,25/05/2021,REDACTED INVOICE NUMBER,143164,"1,349.64",Revenue,28029,Driver Hire (Chelmsford & Harlow),CM8 1BA,0.00
Director Of Environment,Waste Management,Waste Collection Support,Agency Staff,PROJECT MANAGEMENT SUPPORT,25/05/2021,REDACTED INVOICE NUMBER,143163,125.65,Revenue,28029,Driver Hire (Chelmsford & Harlow),CM8 1BA,0.00
Director Of Environment,Waste Management,Waste Collection Support,Agency Staff,PROJECT MANAGEMENT SUPPORT,25/05/2021,REDACTED INVOICE NUMBER,143164,"5,556.52",Revenue,28029,Driver Hire (Chelmsford & Harlow),CM8 1BA,0.00
Director Of Environment,Parking,Parking Services,Agency Staff,PROJECT MANAGEMENT SUPPORT,28/05/2021,REDACTED INVOICE NUMBER,142901,529.53,Revenue,28029,Driver Hire (Chelmsford & Harlow),CM8 1BA,0.00
Director Of Environment,Parking,Parking Services,Agency Staff,PROJECT MANAGEMENT SUPPORT,28/05/2021,REDACTED INVOICE NUMBER,143166,269.25,Revenue,28029,Driver Hire (Chelmsford & Harlow),CM8 1BA,0.00
Capex Director Of Housing,Housing - Hra,Housing Stock -Health & Safety,Enhancements,ASBESTOS REMOVAL - JUNIPER COURT,28/05/2021,REDACTED INVOICE NUMBER,143139,980.00,Capital,28327,Ductclean Uk Ltd,AI7 1JQ,0.00
Hra Expenditure,Repairs And Maintenance,Responsive Void Repairs,Electricity,ELECTRICITY SUPPLY,04/05/2021,REDACTED INVOICE NUMBER,142480,40.68,Revenue,959,E.On,NG1 6HD,0.00
Hra Expenditure,Repairs And Maintenance,Responsive Void Repairs,Electricity,ELECTRICITY SUPPLY,04/05/2021,REDACTED INVOICE NUMBER,142479,14.69,Revenue,959,E.On,NG1 6HD,0.00
Hra Expenditure,Repairs And Maintenance,Responsive Void Repairs,Gas,GAS SUPPLY,04/05/2021,REDACTED INVOICE NUMBER,142479,9.69,Revenue,959,E.On,NG1 6HD,0.00
Hra Expenditure,Repairs And Maintenance,Responsive Void Repairs,Electricity,ELECTRICITY SUPPLY,07/05/2021,REDACTED INVOICE NUMBER,142844,75.88,Revenue,959,E.On,NG1 6HD,0.00
Director Of Law & Governance,Electoral Services,Election Services,Election Advances,HIRE OF PREMISES,11/05/2021,REDACTED INVOICE NUMBER,142647,235.00,Revenue,966,East + West Horndon Village Hall Cttee,CM13 3TS,0.00
Director Of Law & Governance,Electoral Services,Register Of Electors,External Printing,PROJECT SET UP,14/05/2021,REDACTED INVOICE NUMBER,141948,"1,407.38",Revenue,1000,Electoral Reform Services,N8 0NW,0.00
Director Of Environment,Grounds Maintenance,Grounds Maintenance,Purchases - General Equipment,MACHINERY,21/05/2021,REDACTED INVOICE NUMBER,142228,430.00,Revenue,1050,Ernest Doe & Sons Ltd,CM9 6QH,0.00
Director Of Environment,Grounds Maintenance,Grounds Maintenance,Purchases - General Equipment,VEHICLE PARTS,25/05/2021,REDACTED INVOICE NUMBER,142411,275.00,Revenue,1050,Ernest Doe & Sons Ltd,CM9 6QH,0.00
Capex Director Of Environment,Vehicle Fleet Management,Vehicle Replacement Programme,Vehicle Purchase,MACHINERY,28/05/2021,REDACTED INVOICE NUMBER,142705,"3,875.00",Capital,1050,Ernest Doe & Sons Ltd,CM9 6QH,0.00
Hra Expenditure,"Rents, Rates & Other Charges","Rents, Rates & Other Charges",Cleaning & Dom. Supplies-Other,"GARAGES, DOUNSELL COURT.OCT'20-APR'21",14/05/2021,REDACTED INVOICE NUMBER,142913,14.95,Revenue,1058,Essex + Suffolk Water,DH1 9TX,0.00
Director Corporate Resources,Asset Management,Asset Management,Water,WATER SUPPLY,28/05/2021,REDACTED INVOICE NUMBER,142864,"1,605.72",Revenue,1058,Essex + Suffolk Water,DH1 9TX,0.00
Director Of Planning & Economy,Building Control,Building Control - Chargeable,Other Fees & Service,SUBSCRIPTION - 21/22,21/05/2021,REDACTED INVOICE NUMBER,142365,90.00,Revenue,1065,Essex Building Surveyors Association,CM1 1XP,0.00
Director Of Law & Governance,Legal Services & Data Protect,Legal Services & Data Protect,Subscriptions,PUBLIC LAW SUBSCRIPTION - 21/22,14/05/2021,REDACTED INVOICE NUMBER,141922,840.00,Revenue,1075,Essex County Council,CM1 1JZ,0.00
Director Of Planning & Economy,Land Charges,Land Charges,Search Fees,SEARCHES - MAR '21,14/05/2021,REDACTED INVOICE NUMBER,142054,196.00,Revenue,1075,Essex County Council,CM1 1JZ,0.00
Director Of Planning & Economy,Land Charges,Land Charges,Search Fees,SEARCHES. AUG '20 - FEB '21,25/05/2021,REDACTED INVOICE NUMBER,142463,868.00,Revenue,1075,Essex County Council,CM1 1JZ,0.00
Director Of Law & Governance,Electoral Services,Election Services,Election Advances,Hire Of Premises,11/05/2021,REDACTED INVOICE NUMBER,142678,102.00,Revenue,1070,Essex County Council Shenfield Library,CM1 1JZ,0.00
Director Corporate Resources,Asset Management,Asset Management,R&M Bldgs - General,DRY RISER TESTING - MSCP,25/05/2021,REDACTED INVOICE NUMBER,142518,315.00,Revenue,1083,Essex County Fire + Rescue Service,CM13 1AL,0.00
Capex Director Of C Resources,Asset Management,Brentwood Leisure Centre,Enhancements,LIGHTING - BRENTWOOD CENTRE,07/05/2021,REDACTED INVOICE NUMBER,142231,"2,042.50",Capital,1087,Essex Energy Services,CM14 5DH,0.00
Director Corporate Resources,Asset Management,Asset Management,R&M Bldgs - General,LIGHTING - DEPOT,07/05/2021,REDACTED INVOICE NUMBER,142238,780.00,Revenue,1087,Essex Energy Services,CM14 5DH,0.00
Director Corporate Resources,Asset Management,Asset Management,R&M Bldgs - General,"EICR - CEMETERY LODGE, LONDON ROAD",18/05/2021,REDACTED INVOICE NUMBER,142800,140.00,Revenue,1087,Essex Energy Services,CM14 5DH,0.00
Director Corporate Resources,Asset Management,Asset Management,R&M Bldgs - General,EICR THE KEYS,25/05/2021,REDACTED INVOICE NUMBER,142837,180.00,Revenue,1087,Essex Energy Services,CM14 5DH,0.00
Director Corporate Resources,Asset Management,Asset Management,R&M Bldgs - General,ELECTRICAL WORK - THE KEYS,28/05/2021,REDACTED INVOICE NUMBER,143036,290.00,Revenue,1087,Essex Energy Services,CM14 5DH,0.00
Director Of Environment,Street Services,Street Cleansing,Purchases - General Equipment,HAMMER DRILL HIRE,04/05/2021,REDACTED INVOICE NUMBER,142111,25.00,Revenue,1096,Essex Hire + Sales Ltd,CM15 9DZ,0.00
Director Of Environment,Cemeteries,Cemeteries,Purchases - General Equipment,PRESSURE WASHER HIRE,25/05/2021,REDACTED INVOICE NUMBER,143699,176.00,Revenue,1096,Essex Hire + Sales Ltd,CM15 9DZ,0.00
Capex Director Of C Resources,Asset Management,Asset Management Strategy,Enhancements,NIGHTINGALE CENTRE,04/05/2021,REDACTED INVOICE NUMBER,142077,"13,831.22",Capital,27991,Etec Contract Services,E18 2QH,0.00
Capex Director Of C Resources,Asset Management,Asset Management Strategy,Enhancements,WORKS - BRENTWOOD CENTRE,04/05/2021,REDACTED INVOICE NUMBER,142073,"2,956.10",Capital,27991,Etec Contract Services,E18 2QH,0.00
Director Corporate Resources,Corporate Fraud,Fraud,Software Support & Maintenance,SEARCHES - APR '21,28/05/2021,REDACTED INVOICE NUMBER,142840,138.50,Revenue,1126,Experian Ltd,NG80 1ZZ,0.00
Capex Director Of Environment,S106 Former Elliots Nightclub,S106 Former Elliots Nightclub,Enhancements,INSTALL NEW DRAINS - KGPF - BOWLS PAVILL,04/05/2021,REDACTED INVOICE NUMBER,141303,800.00,Capital,1134,F.J.Britten Landscapes Ltd,CM3 8BG,0.00
Director Corporate Resources,Office Accommodation,Office Facilities Management,R&M Bldgs - General,REMOVE / REPAIR NOTICEBOARDS - TOWN HALL,11/05/2021,REDACTED INVOICE NUMBER,141612,520.00,Revenue,1134,F.J.Britten Landscapes Ltd,CM3 8BG,0.00
Capex Director Of Environment,Environmental Initiatives,S106 Mountnessing Scrap Yard,Enhancements,INSTALL BENCHES - COURAGES PARK,18/05/2021,REDACTED INVOICE NUMBER,142090,380.00,Capital,1134,F.J.Britten Landscapes Ltd,CM3 8BG,0.00
Hra Expenditure,Special Services,Sheltered Welfare Services,Equipment & Tools - R&M,REPAIR WASHING MACHINE - ST GEORGES COUR,11/05/2021,REDACTED INVOICE NUMBER,142110,130.80,Revenue,1160,First Choice Marshalls,UB9 4DN,0.00
Hra Expenditure,Special Services,Sheltered Welfare Services,Equipment & Tools - R&M,REPAIR WASHING MACHINE - ST GEORGES COUR,11/05/2021,REDACTED INVOICE NUMBER,142109,84.13,Revenue,1160,First Choice Marshalls,UB9 4DN,0.00
Director Of Environment,Golf Course,Golf Course,Bank Charges,Closure Fee,14/05/2021,REDACTED INVOICE NUMBER,143220,631.50,Revenue,27884,First Data Global Leasing (Dd Payments),SS14 3WF,0.00
Director Of Environment,Golf Course,Golf Course,Bank Charges,DIRECT DEBIT MAY 21,14/05/2021,REDACTED INVOICE NUMBER,142919,23.19,Revenue,27884,First Data Global Leasing (Dd Payments),SS14 3WF,0.00
Director Of Environment,"Communities, Health & Leisure",Sports & Social Venues,Bank Charges,DIRECT DEBIT MAY 21,21/05/2021,REDACTED INVOICE NUMBER,143574,40.00,Revenue,27884,First Data Global Leasing (Dd Payments),SS14 3WF,0.00
Director Of Environment,"Communities, Health & Leisure",Sports & Social Venues,Bank Charges,INTERIM RENT - KGPF,25/05/2021,REDACTED INVOICE NUMBER,143221,12.03,Revenue,27884,First Data Global Leasing (Dd Payments),SS14 3WF,0.00
Director Of Law & Governance,Legal Services & Data Protect,Legal Services & Data Protect,Legal Fees,VALUATION ADVICE,07/05/2021,REDACTED INVOICE NUMBER,142944,"1,762.00",Revenue,28557,Fisher German,LE65 2UZ,0.00
Capex Director Of C Resources,Asset Management,Community Halls,R&M Bldgs - General,BUILDING MAINTENANCE - HUTTON POPLARS HA,07/05/2021,REDACTED INVOICE NUMBER,141690,"15,410.00",Capital,1163,Fisk Building Contractors Ltd,CM11 1PW,0.00
Director Corporate Resources,Office Accommodation,Office Facilities Management,R&M Bldgs - General,PLUMBING WORKS - TOWN HALL APARTMENTS,07/05/2021,REDACTED INVOICE NUMBER,141691,985.00,Revenue,1163,Fisk Building Contractors Ltd,CM11 1PW,0.00
Director Corporate Resources,Office Accommodation,Office Facilities Management,R&M Bldgs - General,SBAGGING - TOWN HALL APARTMENTS,18/05/2021,REDACTED INVOICE NUMBER,142364,"1,780.00",Revenue,1163,Fisk Building Contractors Ltd,CM11 1PW,0.00
Director Corporate Resources,Office Accommodation,Office Facilities Management,R&M Bldgs - General,SNAGGING - TOWN HALL APARTMENTS,18/05/2021,REDACTED INVOICE NUMBER,142363,250.00,Revenue,1163,Fisk Building Contractors Ltd,CM11 1PW,0.00
Director Of Environment,Cemeteries,Cemeteries,R&M Bldgs - General,"BUILDING MAINTENANCE- CEMETERY, LONDON R",18/05/2021,REDACTED INVOICE NUMBER,142361,420.00,Revenue,1163,Fisk Building Contractors Ltd,CM11 1PW,0.00
Director Of Environment,Parking,Parking Services,Equipment & Tools - R&M,MAINTENANCE CONTRACT - APR - JUL '21,11/05/2021,REDACTED INVOICE NUMBER,141910,"3,370.96",Revenue,4187,Flowbird Smart City Uk Ltd (Was Parkeon),BH12 5AG,0.00
Director Of Environment,Parking,Parking Services,Equipment & Tools - R&M,SERVICES FOR PARKING EQUIPMENT - MAR'21,18/05/2021,REDACTED INVOICE NUMBER,142515,125.28,Revenue,4187,Flowbird Smart City Uk Ltd (Was Parkeon),BH12 5AG,0.00
Director Of Environment,Parking,Parking Services,Equipment & Tools - R&M,SERVICES FOR PARKING EQUIPMENT - MAY'21,21/05/2021,REDACTED INVOICE NUMBER,142514,342.00,Revenue,4187,Flowbird Smart City Uk Ltd (Was Parkeon),BH12 5AG,0.00
Director Of Law & Governance,Electoral Services,Election Services,Election Advances,Hire Of Premises,11/05/2021,REDACTED INVOICE NUMBER,142651,375.00,Revenue,18702,Fryerning Parish Room Association,CM4 0HW,0.00
Director Of Law & Governance,Electoral Services,Election Services,Election Advances,Hire Of Premises,18/05/2021,REDACTED INVOICE NUMBER,143393,375.00,Revenue,18702,Fryerning Parish Room Association,CM4 0HW,0.00
Director Corporate Resources,Design And Print Services,Design & Print Services,Stationery - Paper,PRINTING SUPPLIES,14/05/2021,REDACTED INVOICE NUMBER,142378,73.74,Revenue,1199,Fulton Paper,CM11 2PY,0.00
Director Corporate Resources,Design And Print Services,Design & Print Services,Stationery - Paper,PRINTING SUPPLIES,21/05/2021,REDACTED INVOICE NUMBER,142377,805.56,Revenue,1199,Fulton Paper,CM11 2PY,0.00
Hra Expenditure,Repairs And Maintenance,Planned Maintenance,Contracted Services,DOMESTIC INSTALLATION AUDIT - APR '21,28/05/2021,REDACTED INVOICE NUMBER,142710,"1,449.00",Revenue,27976,Gas Contract Services Ltd,ME2 4NZ,0.00
Hra Expenditure,Repairs And Maintenance,Planned Maintenance,Contracted Services,ELECTRICAL AUDIT VALIDATION - APR '21,28/05/2021,REDACTED INVOICE NUMBER,142863,253.00,Revenue,27976,Gas Contract Services Ltd,ME2 4NZ,0.00
Director Of Environment,Depot Management & Admin,Depot Management & Admin,Gas,GAS SUPPLY,04/05/2021,REDACTED INVOICE NUMBER,142176,108.55,Revenue,1222,Gazprom Energy,M3 3GY,0.00
Hra Expenditure,Special Services,Communal Heating,Gas,GAS SUPPLY,14/05/2021,REDACTED INVOICE NUMBER,142407,7.77,Revenue,1222,Gazprom Energy,M3 3GY,0.00
Hra Expenditure,Special Services,The Gables,Gas,GAS SUPPLY,14/05/2021,REDACTED INVOICE NUMBER,142407,28.78,Revenue,1222,Gazprom Energy,M3 3GY,0.00
Hra Expenditure,Special Services,Communal Heating,Gas,GAS SUPPLY,18/05/2021,REDACTED INVOICE NUMBER,143170,338.58,Revenue,1222,Gazprom Energy,M3 3GY,0.00
Hra Expenditure,Special Services,Oldfields,Gas,GAS SUPPLY,18/05/2021,REDACTED INVOICE NUMBER,143170,782.97,Revenue,1222,Gazprom Energy,M3 3GY,0.00
Hra Expenditure,Special Services,Victoria Court,Gas,GAS SUPPLY,18/05/2021,REDACTED INVOICE NUMBER,143170,994.51,Revenue,1222,Gazprom Energy,M3 3GY,0.00
Hra Expenditure,Repairs And Maintenance,Responsive Void Repairs,Gas,GAS SUPPLY,25/05/2021,REDACTED INVOICE NUMBER,143838,129.99,Revenue,1222,Gazprom Energy,M3 3GY,0.00
Hra Expenditure,Special Services,Communal Heating,Gas,GAS SUPPLY,25/05/2021,REDACTED INVOICE NUMBER,143744,37.84,Revenue,1222,Gazprom Energy,M3 3GY,0.00
Hra Expenditure,Special Services,Communal Heating,Gas,GAS SUPPLY,25/05/2021,REDACTED INVOICE NUMBER,143741,5.37,Revenue,1222,Gazprom Energy,M3 3GY,0.00
Hra Expenditure,Special Services,Four Oaks,Gas,GAS SUPPLY,25/05/2021,REDACTED INVOICE NUMBER,143731,428.93,Revenue,1222,Gazprom Energy,M3 3GY,0.00
Director Corporate Resources,Asset Management,Asset Management,Gas,GAS SUPPLY,28/05/2021,REDACTED INVOICE NUMBER,143745,59.68,Revenue,1222,Gazprom Energy,M3 3GY,0.00
Director Corporate Resources,Office Accommodation,Office Facilities Management,Gas,GAS SUPPLY,28/05/2021,REDACTED INVOICE NUMBER,143902,49.73,Revenue,1222,Gazprom Energy,M3 3GY,0.00
Director Of Environment,Open Spaces,Buildings & Stakeholders,Gas,GAS SUPPLY,28/05/2021,REDACTED INVOICE NUMBER,143848,221.57,Revenue,1222,Gazprom Energy,M3 3GY,0.00
Hra Expenditure,Special Services,Chichester House,Gas,GAS SUPPLY,28/05/2021,REDACTED INVOICE NUMBER,143898,777.76,Revenue,1222,Gazprom Energy,M3 3GY,0.00
Hra Expenditure,Special Services,Communal Heating,Gas,GAS SUPPLY,28/05/2021,REDACTED INVOICE NUMBER,143898,333.32,Revenue,1222,Gazprom Energy,M3 3GY,0.00
Hra Expenditure,Special Services,Communal Heating,Gas,GAS SUPPLY,28/05/2021,REDACTED INVOICE NUMBER,143906,8.30,Revenue,1222,Gazprom Energy,M3 3GY,0.00
Hra Expenditure,Special Services,Communal Heating,Gas,GAS SUPPLY,28/05/2021,REDACTED INVOICE NUMBER,143897,781.55,Revenue,1222,Gazprom Energy,M3 3GY,0.00
Hra Expenditure,Special Services,Communal Heating,Gas,GAS SUPPLY,28/05/2021,REDACTED INVOICE NUMBER,143896,214.62,Revenue,1222,Gazprom Energy,M3 3GY,0.00
Hra Expenditure,Special Services,Communal Lighting,Electricity,ELECTRICITY SUPPLY,28/05/2021,REDACTED INVOICE NUMBER,143905,6.67,Revenue,1222,Gazprom Energy,M3 3GY,0.00
Hra Expenditure,Special Services,St Georges Court,Gas,GAS SUPPLY,28/05/2021,REDACTED INVOICE NUMBER,143897,"1,451.76",Revenue,1222,Gazprom Energy,M3 3GY,0.00
Hra Expenditure,Special Services,The Gables,Gas,GAS SUPPLY,28/05/2021,REDACTED INVOICE NUMBER,143896,807.32,Revenue,1222,Gazprom Energy,M3 3GY,0.00
Director Of Environment,Waste Management,Refuse Waste,Equipment & Tools - R&M,WASTE BAGS,28/05/2021,REDACTED INVOICE NUMBER,143152,399.50,Revenue,25265,General Business Holdings Ltd,CM8 3DH,0.00
Director Digital & Customer En,Digital Servs & Transformation,Ict Services,Internet Services,RENEWAL CHARGE - MAY'21 -APR'22,14/05/2021,REDACTED INVOICE NUMBER,142053,"4,200.00",Revenue,22008,Granicus-Firmstep Ltd,EC2A 2DT,0.00
Balance Sheet,Balance Sheet,Balance Sheet,Fuel Stores,ADBLUE,21/05/2021,REDACTED INVOICE NUMBER,142393,580.87,Revenue,26119,Greenchem Solutions Limited,HP19 8HL,0.00
Director Corporate Resources,Asset Management,Asset Management,Search Fees,LAND REG DD'S APRIL 2021,11/05/2021,REDACTED INVOICE NUMBER,142867,90.00,Revenue,22013,H M Land Registry,.,0.00
Director Of Environment,Open Spaces,Amenity Greens,Search Fees,LAND REG DD'S APRIL 2021,11/05/2021,REDACTED INVOICE NUMBER,142867,12.00,Revenue,22013,H M Land Registry,.,0.00
Director Of Planning & Economy,Planning Development Managemt,Planning Development Managemt,Search Fees,LAND REG DD'S APRIL 2021,11/05/2021,REDACTED INVOICE NUMBER,142867,6.00,Revenue,22013,H M Land Registry,.,0.00
Hra Expenditure,Supervision And Management,Rent Collection & Recovery,Search Fees,LAND REG DD'S APRIL 2021,11/05/2021,REDACTED INVOICE NUMBER,142867,24.00,Revenue,22013,H M Land Registry,.,0.00
Capex Director Of Environment,Corporate Services,Play Area Refurbishments,Contracted Services,INSTALL PLAY EQUIPMENT,21/05/2021,REDACTED INVOICE NUMBER,142234,"51,135.89",Capital,1310,Hags Smp,YO8 8AP,0.00
Capex Director Of Housing,Housing - Affordable Housing,17 Crescent Road,Enhancements,ENHANCEMENT,28/05/2021,REDACTED INVOICE NUMBER,142724,"4,017.25",Capital,28405,Hamson Barron Smith Ltd,NR6 6EQ,0.00
Director Of Environment,Vehicle Fleet Management,Vehicle Fleet Management,Purchases - General Equipment,COMPRESSOR SERVICING,04/05/2021,REDACTED INVOICE NUMBER,141610,595.00,Revenue,1322,Haps Garage Equipment Ltd,SS7 3YT,0.00
Director Of Environment,Vehicle Fleet Management,Vehicle Fleet Management,Vehicle R&M - External,VEHICLE REPAIRS,18/05/2021,REDACTED INVOICE NUMBER,142250,683.46,Revenue,1329,Harris Commercial Repairs Limited,RM20 4AU,0.00
Director Of Environment,Vehicle Fleet Management,Vehicle Fleet Management,Vehicle R&M - External,MOT,25/05/2021,REDACTED INVOICE NUMBER,142552,213.00,Revenue,1329,Harris Commercial Repairs Limited,RM20 4AU,0.00
Director Of Planning & Economy,Planning Development Managemt,Planning Development Managemt,Subscriptions,MAGAZINE SUBSCRIPTION - 21/22,04/05/2021,REDACTED INVOICE NUMBER,142523,350.00,Revenue,1343,Haymarket Media Group Limited,TW1 3SP,0.00
Hra Expenditure,Supervision And Management,Policy And Management,Contracted Services,SEC GUARDS - DRAKE HOUSE - W/C 26.4.21,04/05/2021,REDACTED INVOICE NUMBER,142392,"2,070.00",Revenue,1353,Headline Security Limited,CM14 4RA,0.00
Hra Expenditure,Supervision And Management,Policy And Management,Contracted Services,2 Guards 2100-0600,18/05/2021,REDACTED INVOICE NUMBER,142951,"2,160.00",Revenue,1353,Headline Security Limited,CM14 4RA,0.00
Hra Expenditure,Repairs And Maintenance,Planned Maintenance,Contracted Services,SEC GUARDS - DRAKE HOUSE - W/C 10.5.21,21/05/2021,REDACTED INVOICE NUMBER,143399,"1,890.00",Revenue,1353,Headline Security Limited,CM14 4RA,0.00
Director Corporate Resources,Asset Management,Asset Management,R&M Bldgs - General,FIRE ALARM SERVICE - MERRYMEAD HOUSE,04/05/2021,REDACTED INVOICE NUMBER,141315,201.44,Revenue,24088,Hewes Security,CM3 5WA,0.00
Director Of Law & Governance,Electoral Services,Election Services,Election Advances,HIRE OF PREMISES,11/05/2021,REDACTED INVOICE NUMBER,142737,33.00,Revenue,163251P,Hogarth Primary School,CM15 8BG,0.00
Director Of Law & Governance,Electoral Services,Election Services,Election Advances,Hire Of Premises,11/05/2021,REDACTED INVOICE NUMBER,142648,650.00,Revenue,28161,Holly Trees Primary School,CM14 5RY,0.00
Director Of Environment,Golf Course,Golf Course,Vehicle R&M - External,TRACTOR REPAIRS ,07/05/2021,REDACTED INVOICE NUMBER,142357,170.00,Revenue,1419,Hopedima Engineering Ltd,CM14 5SU,0.00
Director Of Environment,Grounds Maintenance,Grounds Maintenance,Vehicle R&M - External,SERVICING,21/05/2021,REDACTED INVOICE NUMBER,142510,625.00,Revenue,1419,Hopedima Engineering Ltd,CM14 5SU,0.00
Director Of Environment,Golf Course,Golf Course,Vehicle R&M - External,John Deere unit repair,28/05/2021,REDACTED INVOICE NUMBER,143235,167.25,Revenue,1419,Hopedima Engineering Ltd,CM14 5SU,0.00
Director Of Environment,Dog Control,Dog Control,Kennel & Vet Fees,VET FEES,18/05/2021,REDACTED INVOICE NUMBER,143256,291.67,Revenue,1423,House & Jackson,CM4 0LE,0.00
Hra Expenditure,Supervision And Management,Managing Tenancies,Subscriptions,ANNUAL SUPPORT - AUG '21 - JUL '22,28/05/2021,REDACTED INVOICE NUMBER,142701,"6,637.51",Revenue,1425,Housing Partners Limited,WR5 2ZX,0.00
Director Housing & Enforcement,Homelessness,Homelessness Admin,Training Expenses,TRAINING,14/05/2021,REDACTED INVOICE NUMBER,142706,280.00,Revenue,1426,Housing Reviews Ltd,N13 9BD,0.00
Director Housing & Enforcement,Homelessness,Homelessness Prevention,Contracted Services,REVIEW CASES,14/05/2021,REDACTED INVOICE NUMBER,142513,26.00,Revenue,1426,Housing Reviews Ltd,N13 9BD,0.00
Director Housing & Enforcement,Housing Advice & Enabling,Housing Advice,Medical Reports,REVIEW CASES,14/05/2021,REDACTED INVOICE NUMBER,142513,220.00,Revenue,1426,Housing Reviews Ltd,N13 9BD,0.00
Director Housing & Enforcement,Community Safety,Corporate Enforcement,Enforcement,REBILLING OF VAT ,04/05/2021,REDACTED INVOICE NUMBER,139804,0.00,Revenue,28449,Hsg Facilities Management Ltd,CF24 5EL,0.00
Director Housing & Enforcement,Community Safety,Corporate Enforcement,Enforcement,REBILLING OF VAT - MARCH '21,04/05/2021,REDACTED INVOICE NUMBER,141322,0.00,Revenue,28449,Hsg Facilities Management Ltd,CF24 5EL,0.00
Director Housing & Enforcement,Community Safety,Corporate Enforcement,Enforcement,REBILLING OF VAT - APR '21,28/05/2021,REDACTED INVOICE NUMBER,142909,0.00,Revenue,28449,Hsg Facilities Management Ltd,CF24 5EL,0.00
Director Of Environment,Env Health & Licensing Admin,Env Health & Licensing Admin,Agency Staff,PROJECT MANAGEMENT SUPPORT,28/05/2021,REDACTED INVOICE NUMBER,142899,"7,040.00",Revenue,28449,Hsg Facilities Management Ltd,CF24 5EL,0.00
Director Of Environment,Grounds Maintenance,Grounds Maintenance,Purchases - General Equipment,DOCUMENT COPIES,25/05/2021,REDACTED INVOICE NUMBER,143128,15.00,Revenue,25054,Hussey Knights,CM13 1TN,0.00
Director Of Law & Governance,Electoral Services,Election Services,Election Advances,Hire Of Premises,18/05/2021,REDACTED INVOICE NUMBER,142650,250.00,Revenue,22516,Hutton Community Partnership,CM13 1NH,0.00
Director Of Law & Governance,Electoral Services,Election Services,Election Advances,Hire Of Premises,11/05/2021,REDACTED INVOICE NUMBER,142677,175.00,Revenue,28149,Hutton Seventh Day Adventist Church,SS0 0PB,0.00
Director Of Environment,Cemeteries,Cemeteries,Subscriptions,CORPORATE MEMBERSHIPS,04/05/2021,REDACTED INVOICE NUMBER,142081,455.00,Revenue,1478,Iccm,E12 5DQ,0.00
Director Corporate Resources,Corporate Management,Corporate Management Costs,Treasury - Brokerage Fees Gen,BROKERAGE FEES,28/05/2021,REDACTED INVOICE NUMBER,142736,"12,216.44",Revenue,27847,Imperial Treasury Services Ltd,SG14 1PJ,0.00
Director Of Environment,"Communities, Health & Leisure",Family Fun Days,Rent/Hire Of Buildings,HIRE OF FIELD AND PAVILLION,18/05/2021,REDACTED INVOICE NUMBER,143253,240.00,Revenue,1503,Ingatestone And Fryerning Parish Council,CM4 0BE,0.00
Director Of Environment,Vehicle Fleet Management,Vehicle Fleet Management,Vehicle Replacement Parts,VEHICLE PARTS,18/05/2021,REDACTED INVOICE NUMBER,141885,829.66,Revenue,1533,Interwaste Municipal Limited,WV10 7PA,0.00
Director Of Environment,Vehicle Fleet Management,Vehicle Fleet Management,Vehicle Replacement Parts,VEHICLE PARTS,18/05/2021,REDACTED INVOICE NUMBER,141917,262.00,Revenue,1533,Interwaste Municipal Limited,WV10 7PA,0.00
Director Of Planning & Economy,Planning Development Managemt,Planning Enforcement,Other Fees & Service,COURT STANDBY FEE,21/05/2021,REDACTED INVOICE NUMBER,142232,250.00,Revenue,28484,Invicta Investigation Ltd,CT12 6SJ,0.00
Director Of Environment,Grounds Maintenance,Grounds Maintenance,Vehicle Hire,15T HI-SWIVEL DUMPER,21/05/2021,REDACTED INVOICE NUMBER,142917,150.00,Revenue,28509,J Matthews Plant Hire Ltd,CM4 0LJ,0.00
Director Of Environment,"Communities, Health & Leisure",Sports & Social Venues,Purchases - Materials,FLOATS,11/05/2021,REDACTED INVOICE NUMBER,141645,197.60,Revenue,28396,J P Lennard Ltd,CV21 1PX,0.00
Director Of Environment,"Communities, Health & Leisure",Sports & Social Venues,Purchases - Materials,WATERING CANS,11/05/2021,REDACTED INVOICE NUMBER,141644,73.00,Revenue,28396,J P Lennard Ltd,CV21 1PX,0.00
Director Of Environment,Street Services,Street Cleansing,Advertising - General,ANTI LITTER POSTERS,28/05/2021,REDACTED INVOICE NUMBER,143224,154.00,Revenue,173968P,J S Creates,CM1 4EP,0.00
Capex Director Of Environment,Other Environmental Services,Disabled Facilities Grant,Grants - General,DISABLED FACILITIES GRANT,21/05/2021,REDACTED INVOICE NUMBER,143132,"3,890.00",Capital,1570,J W Commons + Sons,CM15 9QB,0.00
Director Of Environment,Golf Course,Golf Course,Agency Staff,PROJECT MANAGEMENT SUPPORT,28/05/2021,REDACTED INVOICE NUMBER,144006,860.00,Revenue,192542P,Jack Farendon,.,0.00
Hra Expenditure,Supervision And Management,Managing Tenancies,Decant Costs,REMOVALS,11/05/2021,REDACTED INVOICE NUMBER,141705,"3,600.00",Revenue,1623,Jeakins Domestic + Comm Removals Ltd,SS15 6PZ,0.00
Hra Expenditure,Supervision And Management,Managing Tenancies,Decant Costs,REMOVAL COSTS,18/05/2021,REDACTED INVOICE NUMBER,142173,400.00,Revenue,1623,Jeakins Domestic + Comm Removals Ltd,SS15 6PZ,0.00
Hra Expenditure,Supervision And Management,Managing Tenancies,Decant Costs,STORAGE COSTS,21/05/2021,REDACTED INVOICE NUMBER,142466,42.50,Revenue,1623,Jeakins Domestic + Comm Removals Ltd,SS15 6PZ,0.00
Director Of Environment,Grounds Maintenance,Grounds Maintenance,Purchases - General Equipment,VEHICLE PARTS,07/05/2021,REDACTED INVOICE NUMBER,142252,204.80,Revenue,25305,Jennings Engineering Supplies Ltd,CM3 6LG,0.00
Director Of Environment,Vehicle Fleet Management,Vehicle Fleet Management,Vehicle Replacement Parts,VEHICLE PARTS,07/05/2021,REDACTED INVOICE NUMBER,142253,227.60,Revenue,25305,Jennings Engineering Supplies Ltd,CM3 6LG,0.00
Director Of Environment,Vehicle Fleet Management,Vehicle Fleet Management,Vehicle Replacement Parts,VEHICLE PARTS,14/05/2021,REDACTED INVOICE NUMBER,142120,321.35,Revenue,25305,Jennings Engineering Supplies Ltd,CM3 6LG,0.00
Director Of Environment,Vehicle Fleet Management,Vehicle Fleet Management,Vehicle Replacement Parts,VEHICLE PARTS,14/05/2021,REDACTED INVOICE NUMBER,142649,265.55,Revenue,25305,Jennings Engineering Supplies Ltd,CM3 6LG,0.00
Director Of Environment,Vehicle Fleet Management,Vehicle Fleet Management,Vehicle Replacement Parts,VEHICLE PARTS,25/05/2021,REDACTED INVOICE NUMBER,142898,384.20,Revenue,25305,Jennings Engineering Supplies Ltd,CM3 6LG,0.00
Director Of Environment,Golf Course,Golf Course,Vehicle - Lease Rentals,DD MAY 21,11/05/2021,REDACTED INVOICE NUMBER,142777,"1,659.52",Revenue,23424,John Deere Financial,GL4 3GG,0.00
Director Of Environment,Open Spaces,Bowling Greens,Vehicle - Lease Rentals,DD MAY 21,11/05/2021,REDACTED INVOICE NUMBER,142777,711.24,Revenue,23424,John Deere Financial,GL4 3GG,0.00
Capex Director Of C Resources,Asset Management,Strategic Prop Acquisitions,Surveyors/Estate Agent Fees,PREPARATION OF REINSTATEMENT COST,14/05/2021,REDACTED INVOICE NUMBER,142268,500.00,Capital,184925P,Jones Hargreaves Uk Ltd,W1C 2AP,0.00
Director Of Planning & Economy,Planning Development Managemt,Planning Development Managemt,Project Management Support,CONSERVATION & URBAN DESIGN ADVICE,14/05/2021,REDACTED INVOICE NUMBER,143023,"6,057.00",Revenue,28185,Joseph Hardy & Company Ltd,CM4 9BU,0.00
Capex Director Of Housing,Housing - Affordable Housing,Brookfield Project,Enhancements,SHDP PROJECT MANAGEMENT,18/05/2021,REDACTED INVOICE NUMBER,143024,"3,221.00",Capital,28185,Joseph Hardy & Company Ltd,CM4 9BU,0.00
Director Corporate Resources,Human Resources,Human Resources,Training Expenses,TRAINING COURSES,25/05/2021,REDACTED INVOICE NUMBER,143858,"1,980.00",Revenue,28532,Jw Training Limited,CT9 3QT,0.00
Capex Director Of Housing,Housing - Hra,Sewerage & Water Treatment Pla,Enhancements,P-19-PM0079 - BRENTWOOD,28/05/2021,REDACTED INVOICE NUMBER,142942,"1,491.92",Capital,27613,Keegans Ltd,SE1 4PU,0.00
Director Of Law & Governance,Electoral Services,Election Services,Election Advances,ELECTIONS,11/05/2021,REDACTED INVOICE NUMBER,142743,339.95,Revenue,22475,Kelvedon Hatch Village Hall Charitable Trust,CM15 0DH,0.00
Capex Director Of Environment,Other Environmental Services,Disabled Facilities Grant,Grants - General,DISABLED FACILITIES GRANT,18/05/2021,REDACTED INVOICE NUMBER,142174,"9,700.00",Capital,28494,Kg Building Services,RM13 9BJ,0.00
Director Of Environment,"Communities, Health & Leisure",Sports & Social Venues,Purchases - General Equipment,Pool/spa bacterial sample 2 sy,28/05/2021,REDACTED INVOICE NUMBER,143167,78.97,Revenue,28394,Kingfisher Environmental Service Ltd T/A Wcs,SW1X 7HN,0.00
Capex Director Of C Resources,Asset Management,Brentwood Leisure Centre,Enhancements,BRENTWOOD CENTRE STAFF ROOM,28/05/2021,REDACTED INVOICE NUMBER,143861,280.00,Capital,28495,L Bryan Flooring,SS15 5FU,0.00
Capex Director Of C Resources,Asset Management,Brentwood Leisure Centre,Enhancements,FLOORING - BRENTWOOD CENTRE,28/05/2021,REDACTED INVOICE NUMBER,143009,"2,440.00",Capital,28495,L Bryan Flooring,SS15 5FU,0.00
Director Of Planning & Economy,Building Control,Building Control - Chargeable,Other Fees & Service,Subscription,28/05/2021,REDACTED INVOICE NUMBER,143222,285.00,Revenue,1768,Labc East Anglia,CO10 7JP,0.00
Director Housing & Enforcement,Homelessness,B&B Accommodation,B & B Charges (Homelessness),HOMELESSNESS PREVENTION,11/05/2021,REDACTED INVOICE NUMBER,142839,350.00,Revenue,24333,Lampwick Care,SS1 2AS,0.00
Director Housing & Enforcement,Homelessness,B&B Accommodation,B & B Charges (Homelessness),HOMELESSNESS PREVENTION,21/05/2021,REDACTED INVOICE NUMBER,143044,530.00,Revenue,24333,Lampwick Care,SS1 2AS,0.00
Director Housing & Enforcement,Homelessness,B&B Accommodation,B & B Charges (Homelessness),HOMELESSNESS PREVENTION,25/05/2021,REDACTED INVOICE NUMBER,143760,700.00,Revenue,24333,Lampwick Care,SS1 2AS,0.00
Director Housing & Enforcement,Homelessness,B&B Accommodation,B & B Charges (Homelessness),HOMELESSNESS PREVENTION,25/05/2021,REDACTED INVOICE NUMBER,143643,665.00,Revenue,24333,Lampwick Care,SS1 2AS,0.00
Director Of Environment,Grounds Maintenance,Grounds Maintenance,Purchases - General Equipment,Fiskars Powergear Lopper,21/05/2021,REDACTED INVOICE NUMBER,142204,"1,231.34",Revenue,1780,Landscape Supply Company,ME5 7NP,0.00
Director Of Law & Governance,Electoral Services,Election Services,Election Advances,Hire Of Premises,11/05/2021,REDACTED INVOICE NUMBER,142548,46.20,Revenue,1785,Larchwood Primary School,CM15 9NG,0.00
Director Corporate Resources,Corporate Finance,Corporate Finance,Subscriptions,SUBSCRIPTION - 21/22,11/05/2021,REDACTED INVOICE NUMBER,142457,"4,240.00",Revenue,1824,Lg Futures Ltd,LU7 0JL,0.00
Director Of Law & Governance,Electoral Services,Election Services,Election Advances,Hire Of Premises,11/05/2021,REDACTED INVOICE NUMBER,142673,250.00,Revenue,1846,Little Warley + Childerditch Village Hall,CM13 3EX,0.00
Director Of Environment,Golf Course,Golf Course,Bank Charges,CHIP & PIN - APR '21,14/05/2021,REDACTED INVOICE NUMBER,143018,528.87,Revenue,27902,Lloyds Bank (Pg),.,0.00
Director Of Environment,"Communities, Health & Leisure",Sports & Social Venues,Bank Charges,BRENTWOOD CENTRE - MAR '21,21/05/2021,REDACTED INVOICE NUMBER,143575,126.95,Revenue,27902,Lloyds Bank (Pg),.,0.00
Director Corporate Resources,Corporate Management,Corporate Management Costs,Subscriptions,MEMBERSHIP 21-22,07/05/2021,REDACTED INVOICE NUMBER,142048,"7,613.48",Revenue,1853,Local Government Association,SW1P 3HZ,0.00
Director Corporate Resources,Corporate Management,Corporate Management Costs,Subscriptions,MEMBERSHIP 2021,14/05/2021,REDACTED INVOICE NUMBER,143131,"2,925.00",Revenue,1857,Local Government Information Unit,WC1H 0TB,0.00
Hra Expenditure,Supervision And Management,Managing Tenancies,Subscriptions,CBL SUPPORT - JAN '21 - MAR '21,04/05/2021,REDACTED INVOICE NUMBER,142484,"4,750.00",Revenue,1862,Locata (Housing Services) Ltd,HA4 7LF,0.00
Hra Expenditure,Supervision And Management,Managing Tenancies,Surveyors/Estate Agent Fees,LEASE EXTENSION,04/05/2021,REDACTED INVOICE NUMBER,112566,"2,000.00",Revenue,22463,London Borough Of Barking And Dagenham,IG11 7LU,0.00
Director Of Law & Governance,Legal Services & Data Protect,Legal Services & Data Protect,Legal Fees,SALARIES - MAR '21,18/05/2021,REDACTED INVOICE NUMBER,141474,"1,000.00",Revenue,22463,London Borough Of Barking And Dagenham,IG11 7LU,0.00
Director Of Law & Governance,Legal Services & Data Protect,Legal Services & Data Protect,Legal Fees,SHARED SERVICES - FIXED FEE,18/05/2021,REDACTED INVOICE NUMBER,141469,750.00,Revenue,22463,London Borough Of Barking And Dagenham,IG11 7LU,0.00
Director Of Law & Governance,Legal Services & Data Protect,Legal Services & Data Protect,Legal Fees,SHARED SERVICES - FIXED FEE,18/05/2021,REDACTED INVOICE NUMBER,141471,750.00,Revenue,22463,London Borough Of Barking And Dagenham,IG11 7LU,0.00
Director Of Law & Governance,Legal Services & Data Protect,Legal Services & Data Protect,Legal Fees,SHARED SERVICES - FIXED FEE,18/05/2021,REDACTED INVOICE NUMBER,141470,750.00,Revenue,22463,London Borough Of Barking And Dagenham,IG11 7LU,0.00
Director Of Law & Governance,Legal Services & Data Protect,Legal Services & Data Protect,Legal Fees,SHARED SERVICES - FIXED FEE,18/05/2021,REDACTED INVOICE NUMBER,141473,750.00,Revenue,22463,London Borough Of Barking And Dagenham,IG11 7LU,0.00
Director Of Law & Governance,Legal Services & Data Protect,Legal Services & Data Protect,Legal Fees,SHARED SERVICES - FIXED FEE,18/05/2021,REDACTED INVOICE NUMBER,141472,750.00,Revenue,22463,London Borough Of Barking And Dagenham,IG11 7LU,0.00
Director Of Law & Governance,Legal Services & Data Protect,Legal Services & Data Protect,Legal Fees,SHARED SERVICES - MAR '21,18/05/2021,REDACTED INVOICE NUMBER,141475,906.00,Revenue,22463,London Borough Of Barking And Dagenham,IG11 7LU,0.00
Director Of Law & Governance,Electoral Services,Election Services,Election Advances,Hire Of Premises,11/05/2021,REDACTED INVOICE NUMBER,142675,50.00,Revenue,28157,Long Ridings Primary School,CM13 1DU,0.00
Director Of Environment,Dog Control,Dog Control,Kennel & Vet Fees,KENNEL COSTS - APR '21,18/05/2021,REDACTED INVOICE NUMBER,143041,735.00,Revenue,1913,M.A. Robinson,CM15 0LH,0.00
Hra Expenditure,Supervision And Management,Managing Tenancies,Computer Software Licences,LICENCE - JUL '21 - JUN '21,25/05/2021,REDACTED INVOICE NUMBER,143264,"1,870.00",Revenue,1917,M3 Housing Ltd,CR4 2QA,0.00
Hra Expenditure,Supervision And Management,Managing Tenancies,Decant Costs,DECANT COSTS,28/05/2021,REDACTED INVOICE NUMBER,143394,"6,479.66",Revenue,192098P,REDACTED PERSONAL DATA,REDACTED,0.00
Director Of Environment,Parking,Parking Services,Cleaning & Dom. Supplies-Other,SURGICAL GLOVES,21/05/2021,REDACTED INVOICE NUMBER,142347,22.50,Revenue,1967,Maskearaid Ltd,PE29 6EF,0.00
Director Of Environment,Parking,Parking Services,Cleaning & Dom. Supplies-Other,TOILET ROLLS,21/05/2021,REDACTED INVOICE NUMBER,142348,84.90,Revenue,1967,Maskearaid Ltd,PE29 6EF,0.00
Hra Expenditure,Supervision And Management,Right To Buy Admin,Other Professional Fees,PROFESSIONAL FEES,21/05/2021,REDACTED INVOICE NUMBER,142957,250.00,Revenue,1969,Mass & Co Ltd,CM14 4RG,0.00
Director Of Environment,Vehicle Fleet Management,Vehicle Fleet Management,Equipment - Lease Rentals,DEFIT,21/05/2021,REDACTED INVOICE NUMBER,142897,100.00,Revenue,1971,Masternaut (Uk) Ltd,LS25 3DF,0.00
Director Of Environment,Open Spaces,Countryside Recreation Mtnce,Income - Sale Of Produce,TREE PLANTING,28/05/2021,REDACTED INVOICE NUMBER,142823,"8,200.00",Revenue,28555,Maydencroft Limited,SG4 7QA,0.00
Hra Expenditure,Supervision And Management,Managing Tenancies,Decant Costs,DECANT COSTS,28/05/2021,REDACTED INVOICE NUMBER,144086,35.00,Revenue,192610P,REDACTED PERSONAL DATA,REDACTED,0.00
Capex Director Of C Resources,Asset Management,Brentwood Leisure Centre,Enhancements,FILM / GRAPHICS - BRENTWOOD CENTRE,04/05/2021,REDACTED INVOICE NUMBER,142362,"1,270.75",Capital,2313,Morgan Signs Limited,CM14 4LF,0.00
Director Of Environment,Waste Management,Recycling - Dry,Purchases - General Equipment,BIN STICKERS,18/05/2021,REDACTED INVOICE NUMBER,142491,409.50,Revenue,2313,Morgan Signs Limited,CM14 4LF,0.00
Capex Director Of Environment,Corporate Services,King George'S Redevelopment,Enhancements,SIGNS - KGPF,25/05/2021,REDACTED INVOICE NUMBER,142734,375.09,Capital,2313,Morgan Signs Limited,CM14 4LF,0.00
Director Corporate Resources,Office Accommodation,Office Facilities Management,R&M Bldgs - General,Freestanding Office Partition,25/05/2021,REDACTED INVOICE NUMBER,143168,698.96,Revenue,2313,Morgan Signs Limited,CM14 4LF,0.00
Hra Expenditure,Supervision And Management,Managing Tenancies,Decant Costs,DECANT COSTS,14/05/2021,REDACTED INVOICE NUMBER,143147,"6,998.77",Revenue,191993P,REDACTED PERSONAL DATA,REDACTED,0.00
Hra Expenditure,Supervision And Management,Managing Tenancies,Decant Costs,DECANT COSTS,18/05/2021,REDACTED INVOICE NUMBER,143146,"6,345.26",Revenue,191976P,REDACTED PERSONAL DATA,REDACTED,0.00
Director Of Environment,Vehicle Fleet Management,Vehicle Fleet Management,Vehicle R&M - External,VEHICLE REPAIRS,07/05/2021,REDACTED INVOICE NUMBER,142212,268.47,Revenue,1382,Mr K Neame,CM15 0PJ,0.00
Director Of Environment,Vehicle Fleet Management,Vehicle Fleet Management,Vehicle R&M - External,VEHICLE REPAIRS,18/05/2021,REDACTED INVOICE NUMBER,142738,300.75,Revenue,1382,Mr K Neame,CM15 0PJ,0.00
Director Of Environment,Vehicle Fleet Management,Vehicle Fleet Management,Vehicle R&M - External,VEHICLE REPAIRS,25/05/2021,REDACTED INVOICE NUMBER,143038,102.50,Revenue,1382,Mr K Neame,CM15 0PJ,0.00
Hra Expenditure,Supervision And Management,Managing Tenancies,Decant Costs,DECANT COSTS,18/05/2021,REDACTED INVOICE NUMBER,143148,"6,577.83",Revenue,191994P,REDACTED PERSONAL DATA,REDACTED,0.00
Hra Expenditure,Supervision And Management,Managing Tenancies,Decant Costs,DECANT COSTS,18/05/2021,REDACTED INVOICE NUMBER,142859,"5,801.80",Revenue,191472P,REDACTED PERSONAL DATA,REDACTED,0.00
Director Of Law & Governance,Legal Services & Data Protect,Legal Services & Data Protect,Legal Fees,ECON FUTURES UPDATE,14/05/2021,REDACTED INVOICE NUMBER,142193,"2,970.00",Revenue,23049,Nathaniel Lichfield & Partners,N19RL,0.00
Director Of Law & Governance,Electoral Services,Election Services,Election Advances,Hire Of Premises,21/05/2021,REDACTED INVOICE NUMBER,142676,176.00,Revenue,4057,Navestock Village Hall,CM14 5UN,0.00
Director Of Environment,Cemeteries,Cemeteries,R&M Grounds - Treework,Woodman Road Cemetery,18/05/2021,REDACTED INVOICE NUMBER,142956,425.00,Revenue,4063,Neil Carter Arblog Ltd,CM14 5NJ,0.00
Director Of Environment,Cemeteries,Cemeteries,Purchases - Materials,TOPSOIL,25/05/2021,REDACTED INVOICE NUMBER,142486,500.00,Revenue,28241,Neil Sullivan And Sons Ltd,CM0 7LY,0.00
Director Of Planning & Economy,Economic Development Total,Economic Development,Other Fees & Service,ESSEX WIAB - APR '21,14/05/2021,REDACTED INVOICE NUMBER,142122,305.00,Revenue,24872,New Vision Group Ltd,L3 4BQ,0.00
Director Of Environment,Vehicle Fleet Management,Vehicle Fleet Management,Vehicle - Tyres,VEHICLE REPAIRS,04/05/2021,REDACTED INVOICE NUMBER,141635,55.00,Revenue,4083,Nicks Tyre Services Ltd,CM15 9SB,0.00
Director Of Environment,Vehicle Fleet Management,Vehicle Fleet Management,Vehicle Replacement Parts,VEHICLE REPAIRS,18/05/2021,REDACTED INVOICE NUMBER,142404,105.00,Revenue,4083,Nicks Tyre Services Ltd,CM15 9SB,0.00
Director Of Environment,Vehicle Fleet Management,Vehicle Fleet Management,Vehicle - Tyres,VEHICLE REPAIRS,18/05/2021,REDACTED INVOICE NUMBER,142531,55.00,Revenue,4083,Nicks Tyre Services Ltd,CM15 9SB,0.00
Director Of Environment,Vehicle Fleet Management,Vehicle Fleet Management,Vehicle - Tyres,VEHICLE REPAIRS,25/05/2021,REDACTED INVOICE NUMBER,143192,55.00,Revenue,4083,Nicks Tyre Services Ltd,CM15 9SB,0.00
Director Housing & Enforcement,Community Alarms,Community Alarms Service,Contracted Services,MONITORING OF CARELINE,11/05/2021,REDACTED INVOICE NUMBER,141911,"15,670.50",Revenue,4093,North Hertfordshire District Council,SG6 3JF,0.00
Hra Expenditure,Special Services,Sheltered Welfare Services,Contracted Services,MONITORING OF CARELINE,11/05/2021,REDACTED INVOICE NUMBER,141911,"6,980.70",Revenue,4093,North Hertfordshire District Council,SG6 3JF,0.00
Director Housing & Enforcement,Community Alarms,Community Alarms Service,Contracted Services,MONITORING OF CARELINE,25/05/2021,REDACTED INVOICE NUMBER,142465,"2,565.42",Revenue,4093,North Hertfordshire District Council,SG6 3JF,0.00
Director Housing & Enforcement,Housing Advice & Enabling,Housing Advice,Medical Reports,MEDICAL ADVICE - HOUSING - APR '21,28/05/2021,REDACTED INVOICE NUMBER,142795,225.00,Revenue,4103,Nowmedical,W4 5LH,0.00
Director Of Environment,Open Spaces,Buildings & Stakeholders,Water,WATER SUPPLY,07/05/2021,REDACTED INVOICE NUMBER,142471,"5,825.39",Revenue,26560,Nwg Business Ltd - Now Wave,DH1 5FJ,0.00
Capex Director Of Housing,Housing - Hra,Boiler/ Heating  Replacement,Enhancements,HEATING AND ELECTRICAL REPAIRS,25/05/2021,REDACTED INVOICE NUMBER,112833,"2,014.06",Capital,4113,Oakray Ltd,EN2 9DY,0.00
Capex Director Of Housing,Housing - Hra,Housing Stock - Showers,Enhancements,HEATING AND ELECTRICAL REPAIRS,25/05/2021,REDACTED INVOICE NUMBER,114718,"3,056.56",Capital,4113,Oakray Ltd,EN2 9DY,0.00
Hra Expenditure,Repairs And Maintenance,Responsive Repairs Management,R&M Fix & Fit - Electrical,HEATING AND ELECTRICAL REPAIRS,25/05/2021,REDACTED INVOICE NUMBER,120928,"2,633.57",Revenue,4113,Oakray Ltd,EN2 9DY,0.00
Hra Expenditure,Repairs And Maintenance,Responsive Void Repairs,R&M Bldgs - General,HEATING AND ELECTRICAL REPAIRS,25/05/2021,REDACTED INVOICE NUMBER,120927,"3,372.46",Revenue,4113,Oakray Ltd,EN2 9DY,0.00
Director Housing & Enforcement,Homelessness,B&B Accommodation,B & B Charges (Homelessness),HOMELESSNESS PREVENTION,21/05/2021,REDACTED INVOICE NUMBER,142858,"1,180.00",Revenue,22829,Oasis Hotel Harlow Ltd,CM17 0HL,0.00
Director Housing & Enforcement,Homelessness,B&B Accommodation,B & B Charges (Homelessness),HOMELESSNESS PREVENTION,21/05/2021,REDACTED INVOICE NUMBER,143027,"1,157.14",Revenue,22829,Oasis Hotel Harlow Ltd,CM17 0HL,0.00
Director Housing & Enforcement,Homelessness,B&B Accommodation,B & B Charges (Homelessness),HOMELESSNESS PREVENTION,21/05/2021,REDACTED INVOICE NUMBER,142852,154.29,Revenue,22829,Oasis Hotel Harlow Ltd,CM17 0HL,0.00
Director Housing & Enforcement,Homelessness,B&B Accommodation,B & B Charges (Homelessness),HOMELESSNESS PREVENTION,21/05/2021,REDACTED INVOICE NUMBER,142853,"1,157.14",Revenue,22829,Oasis Hotel Harlow Ltd,CM17 0HL,0.00
Director Housing & Enforcement,Homelessness,B&B Accommodation,B & B Charges (Homelessness),HOMELESSNESS PREVENTION,21/05/2021,REDACTED INVOICE NUMBER,142854,38.57,Revenue,22829,Oasis Hotel Harlow Ltd,CM17 0HL,0.00
Director Housing & Enforcement,Homelessness,B&B Accommodation,B & B Charges (Homelessness),HOMELESSNESS PREVENTION,21/05/2021,REDACTED INVOICE NUMBER,142855,925.71,Revenue,22829,Oasis Hotel Harlow Ltd,CM17 0HL,0.00
Director Housing & Enforcement,Homelessness,B&B Accommodation,B & B Charges (Homelessness),HOMELESSNESS PREVENTION,21/05/2021,REDACTED INVOICE NUMBER,142856,"1,157.14",Revenue,22829,Oasis Hotel Harlow Ltd,CM17 0HL,0.00
Director Housing & Enforcement,Homelessness,B&B Accommodation,B & B Charges (Homelessness),HOMELESSNESS PREVENTION,21/05/2021,REDACTED INVOICE NUMBER,142857,"2,705.24",Revenue,22829,Oasis Hotel Harlow Ltd,CM17 0HL,0.00
Director Corporate Resources,Asset Management,Asset Management,Electricity,ELECTRICITY SUPPLY,11/05/2021,REDACTED INVOICE NUMBER,142702,229.38,Revenue,4145,Opus Energy (Corporate) Ltd,OX2 7JH,0.00
Director Corporate Resources,Asset Management,Asset Management,Electricity,ELECTRICITY SUPPLY,11/05/2021,REDACTED INVOICE NUMBER,142703,41.67,Revenue,4145,Opus Energy (Corporate) Ltd,OX2 7JH,0.00
Director Of Environment,Parking,Parking Services,Electricity,ELECTRICITY SUPPLY,21/05/2021,REDACTED INVOICE NUMBER,143623,21.00,Revenue,4145,Opus Energy (Corporate) Ltd,OX2 7JH,0.00
Director Of Environment,Parking,Parking Services,Electricity,ELECTRICITY SUPPLY,21/05/2021,REDACTED INVOICE NUMBER,143626,21.00,Revenue,4145,Opus Energy (Corporate) Ltd,OX2 7JH,0.00
Director Housing & Enforcement,Cctv,Community Safety - Cctv,Electricity,ELECTRICITY SUPPLY,25/05/2021,REDACTED INVOICE NUMBER,143622,69.06,Revenue,4145,Opus Energy (Corporate) Ltd,OX2 7JH,0.00
Hra Expenditure,Special Services,Communal Lighting,Electricity,ELECTRICITY SUPPLY,25/05/2021,REDACTED INVOICE NUMBER,143518,25.59,Revenue,4145,Opus Energy (Corporate) Ltd,OX2 7JH,0.00
Hra Expenditure,Special Services,Communal Lighting,Electricity,ELECTRICITY SUPPLY,25/05/2021,REDACTED INVOICE NUMBER,143441,47.54,Revenue,4145,Opus Energy (Corporate) Ltd,OX2 7JH,0.00
Hra Expenditure,Special Services,Communal Lighting,Electricity,ELECTRICITY SUPPLY,25/05/2021,REDACTED INVOICE NUMBER,143531,26.56,Revenue,4145,Opus Energy (Corporate) Ltd,OX2 7JH,0.00
Hra Expenditure,Special Services,Communal Lighting,Electricity,ELECTRICITY SUPPLY,25/05/2021,REDACTED INVOICE NUMBER,143532,22.71,Revenue,4145,Opus Energy (Corporate) Ltd,OX2 7JH,0.00
Hra Expenditure,Special Services,Communal Lighting,Electricity,ELECTRICITY SUPPLY,25/05/2021,REDACTED INVOICE NUMBER,143542,1.16,Revenue,4145,Opus Energy (Corporate) Ltd,OX2 7JH,0.00
Hra Expenditure,Special Services,Communal Lighting,Electricity,ELECTRICITY SUPPLY,25/05/2021,REDACTED INVOICE NUMBER,143607,31.92,Revenue,4145,Opus Energy (Corporate) Ltd,OX2 7JH,0.00
Hra Expenditure,Special Services,Communal Lighting,Electricity,ELECTRICITY SUPPLY,25/05/2021,REDACTED INVOICE NUMBER,143528,13.88,Revenue,4145,Opus Energy (Corporate) Ltd,OX2 7JH,0.00
Hra Expenditure,Special Services,Communal Lighting,Electricity,ELECTRICITY SUPPLY,25/05/2021,REDACTED INVOICE NUMBER,143562,-100.92,Revenue,4145,Opus Energy (Corporate) Ltd,OX2 7JH,0.00
Hra Expenditure,Special Services,Communal Lighting,Electricity,ELECTRICITY SUPPLY,25/05/2021,REDACTED INVOICE NUMBER,143522,24.64,Revenue,4145,Opus Energy (Corporate) Ltd,OX2 7JH,0.00
Hra Expenditure,Special Services,Communal Lighting,Electricity,ELECTRICITY SUPPLY,25/05/2021,REDACTED INVOICE NUMBER,143417,44.87,Revenue,4145,Opus Energy (Corporate) Ltd,OX2 7JH,0.00
Hra Expenditure,Special Services,Communal Lighting,Electricity,ELECTRICITY SUPPLY,25/05/2021,REDACTED INVOICE NUMBER,143539,41.52,Revenue,4145,Opus Energy (Corporate) Ltd,OX2 7JH,0.00
Hra Expenditure,Special Services,Communal Lighting,Electricity,ELECTRICITY SUPPLY,25/05/2021,REDACTED INVOICE NUMBER,143425,22.75,Revenue,4145,Opus Energy (Corporate) Ltd,OX2 7JH,0.00
Hra Expenditure,Special Services,Communal Lighting,Electricity,ELECTRICITY SUPPLY,25/05/2021,REDACTED INVOICE NUMBER,143529,18.74,Revenue,4145,Opus Energy (Corporate) Ltd,OX2 7JH,0.00
Hra Expenditure,Special Services,Communal Lighting,Electricity,ELECTRICITY SUPPLY,25/05/2021,REDACTED INVOICE NUMBER,143514,28.95,Revenue,4145,Opus Energy (Corporate) Ltd,OX2 7JH,0.00
Hra Expenditure,Special Services,Communal Lighting,Electricity,ELECTRICITY SUPPLY,25/05/2021,REDACTED INVOICE NUMBER,143548,17.02,Revenue,4145,Opus Energy (Corporate) Ltd,OX2 7JH,0.00
Hra Expenditure,Special Services,Communal Lighting,Electricity,ELECTRICITY SUPPLY,25/05/2021,REDACTED INVOICE NUMBER,143585,630.44,Revenue,4145,Opus Energy (Corporate) Ltd,OX2 7JH,0.00
Hra Expenditure,Special Services,Communal Lighting,Electricity,ELECTRICITY SUPPLY,25/05/2021,REDACTED INVOICE NUMBER,143587,86.58,Revenue,4145,Opus Energy (Corporate) Ltd,OX2 7JH,0.00
Hra Expenditure,Special Services,Communal Lighting,Electricity,ELECTRICITY SUPPLY,25/05/2021,REDACTED INVOICE NUMBER,143584,26.16,Revenue,4145,Opus Energy (Corporate) Ltd,OX2 7JH,0.00
Hra Expenditure,Special Services,Communal Lighting,Electricity,ELECTRICITY SUPPLY,25/05/2021,REDACTED INVOICE NUMBER,143610,5.56,Revenue,4145,Opus Energy (Corporate) Ltd,OX2 7JH,0.00
Hra Expenditure,Special Services,Communal Lighting,Electricity,ELECTRICITY SUPPLY,25/05/2021,REDACTED INVOICE NUMBER,143590,112.21,Revenue,4145,Opus Energy (Corporate) Ltd,OX2 7JH,0.00
Hra Expenditure,Special Services,Communal Lighting,Electricity,ELECTRICITY SUPPLY,25/05/2021,REDACTED INVOICE NUMBER,143511,49.88,Revenue,4145,Opus Energy (Corporate) Ltd,OX2 7JH,0.00
Hra Expenditure,Special Services,Communal Lighting,Electricity,ELECTRICITY SUPPLY,25/05/2021,REDACTED INVOICE NUMBER,143599,323.82,Revenue,4145,Opus Energy (Corporate) Ltd,OX2 7JH,0.00
Hra Expenditure,Special Services,Communal Lighting,Electricity,ELECTRICITY SUPPLY,25/05/2021,REDACTED INVOICE NUMBER,143538,69.80,Revenue,4145,Opus Energy (Corporate) Ltd,OX2 7JH,0.00
Hra Expenditure,Special Services,Communal Lighting,Electricity,ELECTRICITY SUPPLY,25/05/2021,REDACTED INVOICE NUMBER,143617,31.08,Revenue,4145,Opus Energy (Corporate) Ltd,OX2 7JH,0.00
Hra Expenditure,Special Services,Sheltered Welfare Services,Electricity,ELECTRICITY SUPPLY,25/05/2021,REDACTED INVOICE NUMBER,143620,8.40,Revenue,4145,Opus Energy (Corporate) Ltd,OX2 7JH,0.00
Director Corporate Resources,Asset Management,Asset Management,Electricity,ELECTRICITY SUPPLY,28/05/2021,REDACTED INVOICE NUMBER,143594,45.92,Revenue,4145,Opus Energy (Corporate) Ltd,OX2 7JH,0.00
Director Corporate Resources,Asset Management,Asset Management,Electricity,ELECTRICITY SUPPLY,28/05/2021,REDACTED INVOICE NUMBER,143928,-109.34,Revenue,4145,Opus Energy (Corporate) Ltd,OX2 7JH,0.00
Director Corporate Resources,Asset Management,Asset Management,Electricity,ELECTRICITY SUPPLY,28/05/2021,REDACTED INVOICE NUMBER,143566,33.63,Revenue,4145,Opus Energy (Corporate) Ltd,OX2 7JH,0.00
Director Corporate Resources,Asset Management,Asset Management,Electricity,ELECTRICITY SUPPLY,28/05/2021,REDACTED INVOICE NUMBER,143618,6.40,Revenue,4145,Opus Energy (Corporate) Ltd,OX2 7JH,0.00
Director Corporate Resources,Office Accommodation,Office Facilities Management,Electricity,ELECTRICITY SUPPLY,28/05/2021,REDACTED INVOICE NUMBER,143629,51.11,Revenue,4145,Opus Energy (Corporate) Ltd,OX2 7JH,0.00
Director Corporate Resources,Office Accommodation,Office Facilities Management,Electricity,ELECTRICITY SUPPLY,28/05/2021,REDACTED INVOICE NUMBER,143567,30.07,Revenue,4145,Opus Energy (Corporate) Ltd,OX2 7JH,0.00
Director Of Environment,Cemeteries,Cemeteries,Electricity,ELECTRICITY SUPPLY,28/05/2021,REDACTED INVOICE NUMBER,143560,288.79,Revenue,4145,Opus Energy (Corporate) Ltd,OX2 7JH,0.00
Director Of Environment,Cemeteries,Cemeteries,Electricity,ELECTRICITY SUPPLY,28/05/2021,REDACTED INVOICE NUMBER,143561,7.64,Revenue,4145,Opus Energy (Corporate) Ltd,OX2 7JH,0.00
Director Of Environment,Cemeteries,Cemeteries,Electricity,ELECTRICITY SUPPLY,28/05/2021,REDACTED INVOICE NUMBER,143577,33.31,Revenue,4145,Opus Energy (Corporate) Ltd,OX2 7JH,0.00
Director Of Environment,Golf Course,Golf Course,Electricity,ELECTRICITY SUPPLY,28/05/2021,REDACTED INVOICE NUMBER,143625,4.78,Revenue,4145,Opus Energy (Corporate) Ltd,OX2 7JH,0.00
Director Of Environment,Open Spaces,Buildings & Stakeholders,Electricity,ELECTRICITY SUPPLY,28/05/2021,REDACTED INVOICE NUMBER,143576,26.35,Revenue,4145,Opus Energy (Corporate) Ltd,OX2 7JH,0.00
Director Of Environment,Open Spaces,Buildings & Stakeholders,Electricity,ELECTRICITY SUPPLY,28/05/2021,REDACTED INVOICE NUMBER,143592,"2,718.01",Revenue,4145,Opus Energy (Corporate) Ltd,OX2 7JH,0.00
Director Of Environment,Open Spaces,Buildings & Stakeholders,Electricity,ELECTRICITY SUPPLY,28/05/2021,REDACTED INVOICE NUMBER,143605,8.48,Revenue,4145,Opus Energy (Corporate) Ltd,OX2 7JH,0.00
Director Of Environment,Parking,Parking Services,Electricity,ELECTRICITY SUPPLY,28/05/2021,REDACTED INVOICE NUMBER,143581,"3,283.58",Revenue,4145,Opus Energy (Corporate) Ltd,OX2 7JH,0.00
Hra Expenditure,Special Services,Communal Lighting,Electricity,ELECTRICITY SUPPLY,28/05/2021,REDACTED INVOICE NUMBER,143418,21.22,Revenue,4145,Opus Energy (Corporate) Ltd,OX2 7JH,0.00
Hra Expenditure,Special Services,Communal Lighting,Electricity,ELECTRICITY SUPPLY,28/05/2021,REDACTED INVOICE NUMBER,143434,24.86,Revenue,4145,Opus Energy (Corporate) Ltd,OX2 7JH,0.00
Hra Expenditure,Special Services,Communal Lighting,Electricity,ELECTRICITY SUPPLY,28/05/2021,REDACTED INVOICE NUMBER,143431,21.53,Revenue,4145,Opus Energy (Corporate) Ltd,OX2 7JH,0.00
Hra Expenditure,Special Services,Communal Lighting,Electricity,ELECTRICITY SUPPLY,28/05/2021,REDACTED INVOICE NUMBER,143564,5.54,Revenue,4145,Opus Energy (Corporate) Ltd,OX2 7JH,0.00
Hra Expenditure,Special Services,Communal Lighting,Electricity,ELECTRICITY SUPPLY,28/05/2021,REDACTED INVOICE NUMBER,143924,-8.69,Revenue,4145,Opus Energy (Corporate) Ltd,OX2 7JH,0.00
Hra Expenditure,Special Services,Communal Lighting,Electricity,ELECTRICITY SUPPLY,28/05/2021,REDACTED INVOICE NUMBER,143922,-8.19,Revenue,4145,Opus Energy (Corporate) Ltd,OX2 7JH,0.00
Hra Expenditure,Special Services,Communal Lighting,Electricity,ELECTRICITY SUPPLY,28/05/2021,REDACTED INVOICE NUMBER,143419,22.82,Revenue,4145,Opus Energy (Corporate) Ltd,OX2 7JH,0.00
Hra Expenditure,Special Services,Communal Lighting,Electricity,ELECTRICITY SUPPLY,28/05/2021,REDACTED INVOICE NUMBER,143420,34.47,Revenue,4145,Opus Energy (Corporate) Ltd,OX2 7JH,0.00
Hra Expenditure,Special Services,Communal Lighting,Electricity,ELECTRICITY SUPPLY,28/05/2021,REDACTED INVOICE NUMBER,143540,31.44,Revenue,4145,Opus Energy (Corporate) Ltd,OX2 7JH,0.00
Hra Expenditure,Special Services,Communal Lighting,Electricity,ELECTRICITY SUPPLY,28/05/2021,REDACTED INVOICE NUMBER,143432,16.68,Revenue,4145,Opus Energy (Corporate) Ltd,OX2 7JH,0.00
Hra Expenditure,Special Services,Communal Lighting,Electricity,ELECTRICITY SUPPLY,28/05/2021,REDACTED INVOICE NUMBER,144080,15.15,Revenue,4145,Opus Energy (Corporate) Ltd,OX2 7JH,0.00
Hra Expenditure,Special Services,Communal Lighting,Electricity,ELECTRICITY SUPPLY,28/05/2021,REDACTED INVOICE NUMBER,143547,28.51,Revenue,4145,Opus Energy (Corporate) Ltd,OX2 7JH,0.00
Hra Expenditure,Special Services,Communal Lighting,Electricity,ELECTRICITY SUPPLY,28/05/2021,REDACTED INVOICE NUMBER,143549,15.19,Revenue,4145,Opus Energy (Corporate) Ltd,OX2 7JH,0.00
Hra Expenditure,Special Services,Communal Lighting,Electricity,ELECTRICITY SUPPLY,28/05/2021,REDACTED INVOICE NUMBER,143578,18.71,Revenue,4145,Opus Energy (Corporate) Ltd,OX2 7JH,0.00
Hra Expenditure,Special Services,Communal Lighting,Electricity,ELECTRICITY SUPPLY,28/05/2021,REDACTED INVOICE NUMBER,143923,-28.66,Revenue,4145,Opus Energy (Corporate) Ltd,OX2 7JH,0.00
Hra Expenditure,Special Services,Communal Lighting,Electricity,ELECTRICITY SUPPLY,28/05/2021,REDACTED INVOICE NUMBER,143602,5.56,Revenue,4145,Opus Energy (Corporate) Ltd,OX2 7JH,0.00
Hra Expenditure,Special Services,Communal Lighting,Electricity,ELECTRICITY SUPPLY,28/05/2021,REDACTED INVOICE NUMBER,143597,16.31,Revenue,4145,Opus Energy (Corporate) Ltd,OX2 7JH,0.00
Hra Expenditure,Special Services,Communal Lighting,Electricity,ELECTRICITY SUPPLY,28/05/2021,REDACTED INVOICE NUMBER,143565,259.80,Revenue,4145,Opus Energy (Corporate) Ltd,OX2 7JH,0.00
Hra Expenditure,Special Services,Communal Lighting,Electricity,ELECTRICITY SUPPLY,28/05/2021,REDACTED INVOICE NUMBER,143600,28.58,Revenue,4145,Opus Energy (Corporate) Ltd,OX2 7JH,0.00
Hra Expenditure,Special Services,Communal Lighting,Electricity,ELECTRICITY SUPPLY,28/05/2021,REDACTED INVOICE NUMBER,143601,5.56,Revenue,4145,Opus Energy (Corporate) Ltd,OX2 7JH,0.00
Hra Expenditure,Special Services,Communal Lighting,Electricity,ELECTRICITY SUPPLY,28/05/2021,REDACTED INVOICE NUMBER,143608,73.77,Revenue,4145,Opus Energy (Corporate) Ltd,OX2 7JH,0.00
Hra Expenditure,Special Services,Communal Lighting,Electricity,ELECTRICITY SUPPLY,28/05/2021,REDACTED INVOICE NUMBER,143609,93.33,Revenue,4145,Opus Energy (Corporate) Ltd,OX2 7JH,0.00
Hra Expenditure,Special Services,Communal Lighting,Electricity,ELECTRICITY SUPPLY,28/05/2021,REDACTED INVOICE NUMBER,143927,-31.13,Revenue,4145,Opus Energy (Corporate) Ltd,OX2 7JH,0.00
Hra Expenditure,Special Services,Communal Lighting,Electricity,ELECTRICITY SUPPLY,28/05/2021,REDACTED INVOICE NUMBER,143926,-70.29,Revenue,4145,Opus Energy (Corporate) Ltd,OX2 7JH,0.00
Hra Expenditure,Special Services,Communal Lighting,Electricity,ELECTRICITY SUPPLY,28/05/2021,REDACTED INVOICE NUMBER,143925,-112.34,Revenue,4145,Opus Energy (Corporate) Ltd,OX2 7JH,0.00
Hra Expenditure,Special Services,Communal Lighting,Electricity,ELECTRICITY SUPPLY,28/05/2021,REDACTED INVOICE NUMBER,143593,104.16,Revenue,4145,Opus Energy (Corporate) Ltd,OX2 7JH,0.00
Hra Expenditure,Special Services,Other Special Services,Electricity,ELECTRICITY SUPPLY,28/05/2021,REDACTED INVOICE NUMBER,143580,12.83,Revenue,4145,Opus Energy (Corporate) Ltd,OX2 7JH,0.00
Director Of Environment,"Communities, Health & Leisure",Sports & Social Venues,Contracted Services,VARIOUS STAFF,11/05/2021,REDACTED INVOICE NUMBER,142553,"13,912.61",Revenue,28444,Opus People Solutions Group Limited,IP1 2BX,0.00
Director Of Environment,"Communities, Health & Leisure",Sports & Social Venues,Contracted Services,VARIOUS STAFF,14/05/2021,REDACTED INVOICE NUMBER,142938,"12,433.86",Revenue,28444,Opus People Solutions Group Limited,IP1 2BX,0.00
Director Of Environment,"Communities, Health & Leisure",Sports & Social Venues,Agency Staff,PROJECT MANAGEMENT SUPPORT,25/05/2021,REDACTED INVOICE NUMBER,143373,"12,432.72",Revenue,28444,Opus People Solutions Group Limited,IP1 2BX,0.00
Director Of Environment,"Communities, Health & Leisure",Sports & Social Venues,Agency Staff,PROJECT MANAGEMENT SUPPORT,28/05/2021,REDACTED INVOICE NUMBER,143765,"16,370.67",Revenue,28444,Opus People Solutions Group Limited,IP1 2BX,0.00
Director Of Environment,Waste Management,Refuse Waste,Purchases - Bins,PO 360L JA BASE,18/05/2021,REDACTED INVOICE NUMBER,143231,"1,760.00",Revenue,4282,Orwak Easi Uk Ltd (Was Plastic Omnium),YO61 1ST,0.00
Director Of Environment,Golf Course,Golf Course,Vehicle - Lease Rentals,MAINTENANCE INVOICE - APR '21,11/05/2021,REDACTED INVOICE NUMBER,142728,305.90,Revenue,26919,P Tuckwell Ltd (Pg Payments Only),CO7 7LG,0.00
Director Of Environment,Golf Course,Golf Course,Vehicle - Lease Rentals,WARRANTY - APR '21,11/05/2021,REDACTED INVOICE NUMBER,142727,31.50,Revenue,26919,P Tuckwell Ltd (Pg Payments Only),CO7 7LG,0.00
Director Of Environment,Open Spaces,Bowling Greens,Vehicle - Lease Rentals,MAINTENANCE INVOICE - APR '21,11/05/2021,REDACTED INVOICE NUMBER,142728,131.10,Revenue,26919,P Tuckwell Ltd (Pg Payments Only),CO7 7LG,0.00
Director Of Environment,Open Spaces,Bowling Greens,Vehicle - Lease Rentals,WARRANTY - APR '21,11/05/2021,REDACTED INVOICE NUMBER,142727,13.50,Revenue,26919,P Tuckwell Ltd (Pg Payments Only),CO7 7LG,0.00
Director Of Environment,Street Services,Street Cleansing,Sub-Contractors,GRAB HIRE,25/05/2021,REDACTED INVOICE NUMBER,142462,600.00,Revenue,27959,P W Keen Ltd,CM5 9RB,0.00
Director Of Environment,Waste Management,Recycling - Dry,Waste Disposal,Transport Charge,28/05/2021,REDACTED INVOICE NUMBER,143219,750.00,Revenue,28490,P.W. Commercial T/A Printwaste Recycling,GL51 9AN,0.00
Director Of Planning & Economy,Planning Development Managemt,Planning Development Managemt,Agency Staff,PROJECT MANAGEMENT SUPPORT,14/05/2021,REDACTED INVOICE NUMBER,141960,841.50,Revenue,26959,Park Avenue Recruitment Ltd,EC1V 9EE,0.00
Director Of Planning & Economy,Planning Development Managemt,Planning Development Managemt,Agency Staff,PROJECT MANAGEMENT SUPPORT,18/05/2021,REDACTED INVOICE NUMBER,142213,"1,581.00",Revenue,26959,Park Avenue Recruitment Ltd,EC1V 9EE,0.00
Director Of Planning & Economy,Planning Development Managemt,Planning Development Managemt,Agency Staff,PROJECT MANAGEMENT SUPPORT,25/05/2021,REDACTED INVOICE NUMBER,142405,"1,912.50",Revenue,26959,Park Avenue Recruitment Ltd,EC1V 9EE,0.00
Director Housing & Enforcement,Homelessness,B&B Accommodation,B & B Charges (Homelessness),HOMELESSNESS PREVENTION,28/05/2021,REDACTED INVOICE NUMBER,144017,45.83,Revenue,21736,Park Hotel,IG1 4UE,0.00
Capex Director Of Environment,Other Environmental Services,Disabled Facilities Grant,Grants - General,Level Access Shower and Associ,25/05/2021,REDACTED INVOICE NUMBER,143176,"1,357.65",Capital,26573,Paul Weightman,CM14 4PL,0.00
Director Of Environment,Licensing,Taxi Drivers Account,Dvla Checks,DBS ENHANCED CHECKS,07/05/2021,REDACTED INVOICE NUMBER,141553,147.00,Revenue,24446,Personnel Checks,.,0.00
Director Corporate Resources,Human Resources,Human Resources,Occupational Health,PRE-EMPLOYMENT QUESTIONNAIRE,28/05/2021,REDACTED INVOICE NUMBER,142842,57.00,Revenue,25288,Petersfield Screening,RM3 9PD,0.00
Director Digital & Customer En,Digital Servs & Transformation,Ict Services,Managed Services,AZURE OVERAGE - MAR '21,21/05/2021,REDACTED INVOICE NUMBER,142222,"19,662.67",Revenue,4250,Phoenix Software Limited,YO42 1NS,0.00
Director Of Environment,Vehicle Fleet Management,Vehicle Fleet Management,Vehicle Replacement Parts,VEHICLE PARTS,21/05/2021,REDACTED INVOICE NUMBER,143050,35.71,Revenue,4270,Pirtek (Basildon),SS14 3DY,0.00
Director Of Environment,Depot Management & Admin,Depot Management & Admin,Plant & Mcy - Repairs & Maint,PRESSURE WASHER REPAIRS,25/05/2021,REDACTED INVOICE NUMBER,143051,189.70,Revenue,4270,Pirtek (Basildon),SS14 3DY,0.00
Director Of Environment,Vehicle Fleet Management,Vehicle Fleet Management,Vehicle R&M - External,VEHICLE REPAIRS,25/05/2021,REDACTED INVOICE NUMBER,143052,234.17,Revenue,4270,Pirtek (Basildon),SS14 3DY,0.00
Director Of Law & Governance,Electoral Services,Register Of Electors,Stationery - General,STATIONERY,14/05/2021,REDACTED INVOICE NUMBER,140373,330.90,Revenue,4273,Pitney Bowes Ltd,CM19 5LS,0.00
Director Of Planning & Economy,Economic Development Total,Economic Development,Other Fees & Service,DISCOVER BRENTWOOD MICROSITE,21/05/2021,REDACTED INVOICE NUMBER,141530,"5,700.00",Revenue,28375,Placecube Ltd,RG1 4PN,0.00
Director Of Planning & Economy,Planning Development Managemt,Planning Development Managemt,Agency Staff,PROJECT MANAGEMENT SUPPORT,07/05/2021,REDACTED INVOICE NUMBER,141370,"2,800.00",Revenue,26594,Plumb Associates Ltd,CM3 6NF,0.00
Director Corporate Resources,Asset Management,Asset Management,R&M Bldgs - General,CLEANING MATERIALS,11/05/2021,REDACTED INVOICE NUMBER,141643,35.00,Revenue,4300,Power Hygiene + Safety Products Limited,SS6 7UY,0.00
Director Corporate Resources,Asset Management,Asset Management,R&M Bldgs - General,CLEANING MATERIALS,14/05/2021,REDACTED INVOICE NUMBER,141940,77.89,Revenue,4300,Power Hygiene + Safety Products Limited,SS6 7UY,0.00
Director Corporate Resources,Asset Management,Asset Management,R&M Bldgs - General,CLOTHING,14/05/2021,REDACTED INVOICE NUMBER,142045,12.50,Revenue,4300,Power Hygiene + Safety Products Limited,SS6 7UY,0.00
Hra Expenditure,Special Services,Caretaking,Cleaning & Dom. Supplies-Other,CLEANING MATERIALS,14/05/2021,REDACTED INVOICE NUMBER,142057,200.91,Revenue,4300,Power Hygiene + Safety Products Limited,SS6 7UY,0.00
Hra Expenditure,Special Services,Caretaking,Cleaning & Dom. Supplies-Other,CLEANING MATERIALS,25/05/2021,REDACTED INVOICE NUMBER,142397,55.00,Revenue,4300,Power Hygiene + Safety Products Limited,SS6 7UY,0.00
Director Of Environment,Vehicle Fleet Management,Vehicle Fleet Management,Vehicle Replacement Parts,VEHICLE PARTS,14/05/2021,REDACTED INVOICE NUMBER,141928,691.20,Revenue,4304,Ppk Services Ltd,GU14 6HF,0.00
Director Of Environment,Vehicle Fleet Management,Vehicle Fleet Management,Vehicle Replacement Parts,VEHICLE PARTS,18/05/2021,REDACTED INVOICE NUMBER,141558,"1,172.20",Revenue,4304,Ppk Services Ltd,GU14 6HF,0.00
Director Of Environment,Vehicle Fleet Management,Vehicle Fleet Management,Vehicle Replacement Parts,VEHICLE PARTS,28/05/2021,REDACTED INVOICE NUMBER,142516,944.00,Revenue,4304,Ppk Services Ltd,GU14 6HF,0.00
Director Corporate Resources,Asset Management,Asset Management,R&M Bldgs - General,LIFT MAINTENANCE - MAR '21,07/05/2021,REDACTED INVOICE NUMBER,141564,952.00,Revenue,4308,Precision Lift Services Ltd,SS14 3BZ,0.00
Director Of Environment,Open Spaces,Countryside Recreation Mtnce,Income - Sale Of Produce,TREE WORKS,21/05/2021,REDACTED INVOICE NUMBER,142359,"11,500.61",Revenue,22830,Prees Heath Forest Nurseries,SY13 2HR,0.00
Hra Expenditure,Supervision And Management,Policy And Management,Training Expenses,SOCIAL HOUSING CONFERENCE,21/05/2021,REDACTED INVOICE NUMBER,143130,867.00,Revenue,28543,Prof. Development Grp T/A Government Events,SK9 4LY,0.00
Director Corporate Resources,Human Resources,Human Resources,Training Expenses,Peer into the Future Programme - 2021,28/05/2021,REDACTED INVOICE NUMBER,143863,"1,750.00",Revenue,28531,Public Sector Peoples Managers Association,BB3 2SS,0.00
Director Of Environment,Open Spaces,Countryside Recreation Mtnce,R&M Grounds - Grass Cutting,WORKS - HATCH ROAD COUNTRY PARK,14/05/2021,REDACTED INVOICE NUMBER,142535,"1,945.00",Revenue,4380,R P + J Gaymer,CM4 ONJ,0.00
Director Of Environment,Open Spaces,Countryside Recreation Mtnce,Income - Sale Of Produce,WATERING OF TREES,18/05/2021,REDACTED INVOICE NUMBER,142815,"2,700.00",Revenue,4380,R P + J Gaymer,CM4 ONJ,0.00
Director Of Law & Governance,Legal Services & Data Protect,Legal Services & Data Protect,Legal Fees,PROFESSIONAL FEES,18/05/2021,REDACTED INVOICE NUMBER,143213,750.00,Revenue,2809,Radcliffe Chambers,WC2A 3QB,0.00
Director Of Planning & Economy,Planning Development Managemt,Planning Development Managemt,Advertising - General,ADVERT PLACEMENT,11/05/2021,REDACTED INVOICE NUMBER,141915,605.00,Revenue,27928,Reach Publishing Services Ltd,E14 5AP,0.00
Director Of Planning & Economy,Planning Development Managemt,Planning Development Managemt,Advertising - General,ADVERT PLACEMENT,18/05/2021,REDACTED INVOICE NUMBER,142203,290.40,Revenue,27928,Reach Publishing Services Ltd,E14 5AP,0.00
Director Of Planning & Economy,Planning Development Managemt,Planning Development Managemt,Advertising - General,ADVERT PLACEMENT,28/05/2021,REDACTED INVOICE NUMBER,142954,459.80,Revenue,27928,Reach Publishing Services Ltd,E14 5AP,0.00
Director Housing & Enforcement,Homelessness,Private Sector Acc Leased,Rent/Hire Of Buildings,PRIVATE SECTOR LEASING,04/05/2021,REDACTED INVOICE NUMBER,141313,700.00,Revenue,2929,REDACTED PERSONAL DATA,REDACTED,0.00
Director Housing & Enforcement,Homelessness,Private Sector Acc Leased,Rent/Hire Of Buildings,PRIVATE SECTOR LEASING,14/05/2021,REDACTED INVOICE NUMBER,142929,600.00,Revenue,2339,REDACTED PERSONAL DATA,REDACTED,0.00
Director Housing & Enforcement,Homelessness,Private Sector Acc Leased,Rent/Hire Of Buildings,PRIVATE SECTOR LEASING,21/05/2021,REDACTED INVOICE NUMBER,143177,725.00,Revenue,2472,REDACTED PERSONAL DATA,REDACTED,0.00
Director Housing & Enforcement,Homelessness,Private Sector Acc Leased,Rent/Hire Of Buildings,PRIVATE SECTOR LEASING,28/05/2021,REDACTED INVOICE NUMBER,142937,725.00,Revenue,2968,REDACTED PERSONAL DATA,REDACTED,0.00
Director Of Environment,Golf Course,Golf Course,Agency Staff,PROJECT MANAGEMENT SUPPORT,28/05/2021,REDACTED INVOICE NUMBER,144005,"1,365.00",Revenue,174437P,REDACTED PERSONAL DATA,REDACTED,0.00
Hra Expenditure,Supervision And Management,Policy And Management,Project Management Support,ADVANCED CONSULTANCY CREDITS,07/05/2021,REDACTED INVOICE NUMBER,141555,"6,920.00",Revenue,26765,Right Data Ltd,IG4 5EX,0.00
Balance Sheet,Balance Sheet,Balance Sheet,Fuel Stores,DIESEL,14/05/2021,REDACTED INVOICE NUMBER,142087,"9,680.00",Revenue,28483,Rix Petroleum Ltd,HU8 7JR,0.00
Balance Sheet,Balance Sheet,Balance Sheet,Fuel Stores,DIESEL,14/05/2021,REDACTED INVOICE NUMBER,142088,"9,706.00",Revenue,28483,Rix Petroleum Ltd,HU8 7JR,0.00
Balance Sheet,Balance Sheet,Balance Sheet,Fuel Stores,DIESEL,28/05/2021,REDACTED INVOICE NUMBER,142723,"9,796.00",Revenue,28483,Rix Petroleum Ltd,HU8 7JR,0.00
Director Of Environment,"Communities, Health & Leisure",Sports & Social Venues,Purchases - General Equipment,SPORTS EQUIPMENT,21/05/2021,REDACTED INVOICE NUMBER,142517,380.95,Revenue,28408,Rlss Uk Enterprises Limited,WR5 2JG,0.00
Director Of Environment,"Communities, Health & Leisure",Sports & Social Venues,Purchases - General Equipment,BUOY / SLEEVE,28/05/2021,REDACTED INVOICE NUMBER,142697,352.10,Revenue,28408,Rlss Uk Enterprises Limited,WR5 2JG,0.00
Director Of Environment,Vehicle Fleet Management,Vehicle Fleet Management,Purchases - General Equipment,SERVICE CHARGE - APR / MAY '21,11/05/2021,REDACTED INVOICE NUMBER,141655,247.68,Revenue,4527,Safetykleen Uk Ltd,SS15 6TR,0.00
Hra Expenditure,Supervision And Management,Managing Tenancies,Decant Costs,DECANT COSTS,28/05/2021,REDACTED INVOICE NUMBER,143395,"6,419.12",Revenue,192099P,REDACTED PERSONAL DATA,REDACTED,0.00
Director Of Environment,Open Spaces,Recreation Areas,R&M Grounds - Treework,TREE WORK,07/05/2021,REDACTED INVOICE NUMBER,141621,150.00,Revenue,26018,Scott Williams,RM18 8SU,0.00
Hra Expenditure,Repairs And Maintenance,Responsive Void Repairs,Electricity,ELECTRICITY SUPPLY,28/05/2021,REDACTED INVOICE NUMBER,143259,827.96,Revenue,4568,Scottish Power,BN11 9LT,0.00
Director Of Law & Governance,Legal Services & Data Protect,Legal Services & Data Protect,Project Management Support,PROJECT MANAGEMENT SUPPORT,18/05/2021,REDACTED INVOICE NUMBER,143137,"1,092.40",Revenue,4582,Sellick Partnership Group Ltd,M2 5HX,0.00
Director Of Law & Governance,Legal Services & Data Protect,Legal Services & Data Protect,Project Management Support,PROJECT MANAGEMENT SUPPORT,18/05/2021,REDACTED INVOICE NUMBER,143392,"1,365.50",Revenue,4582,Sellick Partnership Group Ltd,M2 5HX,0.00
Director Of Environment,Street Services,Street Cleansing,Agency Staff,PROJECT MANAGEMENT SUPPORT,14/05/2021,REDACTED INVOICE NUMBER,142699,785.34,Revenue,4575,Sewell Staffing Limited T/A Sector Recruitme,CM15 0AU,0.00
Director Of Environment,Street Services,Street Cleansing,Agency Staff,PROJECT MANAGEMENT SUPPORT,14/05/2021,REDACTED INVOICE NUMBER,142664,"5,485.83",Revenue,4575,Sewell Staffing Limited T/A Sector Recruitme,CM15 0AU,0.00
Director Of Environment,Street Services,Street Cleansing,Agency Staff,PROJECT MANAGEMENT SUPPORT,14/05/2021,REDACTED INVOICE NUMBER,142698,784.08,Revenue,4575,Sewell Staffing Limited T/A Sector Recruitme,CM15 0AU,0.00
Director Of Environment,Waste Management,Waste Collection Support,Agency Staff,PROJECT MANAGEMENT SUPPORT,14/05/2021,REDACTED INVOICE NUMBER,142664,605.32,Revenue,4575,Sewell Staffing Limited T/A Sector Recruitme,CM15 0AU,0.00
Director Of Environment,Waste Management,Waste Collection Support,Agency Staff,PROJECT MANAGEMENT SUPPORT,14/05/2021,REDACTED INVOICE NUMBER,142663,"5,406.43",Revenue,4575,Sewell Staffing Limited T/A Sector Recruitme,CM15 0AU,0.00
Director Of Environment,Street Services,Street Cleansing,Agency Staff,PROJECT MANAGEMENT SUPPORT,18/05/2021,REDACTED INVOICE NUMBER,142904,"1,093.59",Revenue,4575,Sewell Staffing Limited T/A Sector Recruitme,CM15 0AU,0.00
Director Of Environment,Waste Management,Waste Collection Support,Agency Staff,PROJECT MANAGEMENT SUPPORT,18/05/2021,REDACTED INVOICE NUMBER,142902,"6,157.78",Revenue,4575,Sewell Staffing Limited T/A Sector Recruitme,CM15 0AU,0.00
Director Of Environment,Street Services,Street Cleansing,Agency Staff,PROJECT MANAGEMENT SUPPORT,28/05/2021,REDACTED INVOICE NUMBER,143280,"1,139.22",Revenue,4575,Sewell Staffing Limited T/A Sector Recruitme,CM15 0AU,0.00
Director Of Environment,Waste Management,Waste Collection Support,Agency Staff,PROJECT MANAGEMENT SUPPORT,28/05/2021,REDACTED INVOICE NUMBER,143279,"6,586.29",Revenue,4575,Sewell Staffing Limited T/A Sector Recruitme,CM15 0AU,0.00
Director Of Planning & Economy,Planning Policy Total,Planning Policy,Legal Fees,PROFESSIONAL SERVICES,18/05/2021,REDACTED INVOICE NUMBER,143384,773.00,Revenue,4599,Sharpe Pritchard,WC1X 0BJ,0.00
Director Of Environment,Vehicle Fleet Management,Vehicle Fleet Management,Vehicle R&M - External,VEHICLE REPAIRS,28/05/2021,REDACTED INVOICE NUMBER,142802,285.00,Revenue,4635,Smart Glass Essex,RM14 1HS,0.00
Balance Sheet,Balance Sheet,Balance Sheet,Highways Stores,CLOTHING,11/05/2021,REDACTED INVOICE NUMBER,141658,"1,155.52",Revenue,24887,Smi Group,GU27 2QH,0.00
Balance Sheet,Balance Sheet,Balance Sheet,Highways Stores,GLOVES,11/05/2021,REDACTED INVOICE NUMBER,141916,323.08,Revenue,24887,Smi Group,GU27 2QH,0.00
Balance Sheet,Balance Sheet,Balance Sheet,Highways Stores,CLOTHING ,28/05/2021,REDACTED INVOICE NUMBER,142653,85.90,Revenue,24887,Smi Group,GU27 2QH,0.00
Director Corporate Resources,Human Resources,Human Resources,Subs To Professional Bodies,MEMBERSHIP MAY '21 - MAY '22,14/05/2021,REDACTED INVOICE NUMBER,142044,350.00,Revenue,4648,Solace Group,WF8 1NT,0.00
Capex Director Digital & C.E,Ict Services,Ict Strategy,Enhancements,SENIOR ENGINEER DAY,25/05/2021,REDACTED INVOICE NUMBER,142667,"4,000.00",Capital,25036,Sol-Tec Ltd,RG1 8EQ,0.00
Director Digital & Customer En,Digital Servs & Transformation,Ict Services,Managed Services,VELOCITY POINTS TOP UP,28/05/2021,REDACTED INVOICE NUMBER,142885,"1,750.00",Revenue,25036,Sol-Tec Ltd,RG1 8EQ,0.00
Director Digital & Customer En,Digital Servs & Transformation,Ict Services,Managed Services,WVD LICENSE,28/05/2021,REDACTED INVOICE NUMBER,142886,740.74,Revenue,25036,Sol-Tec Ltd,RG1 8EQ,0.00
Director Of Environment,"Communities, Health & Leisure",Sports & Social Venues,Computer & Software Purchases,EXTERNAL ENGINEER DAY,28/05/2021,REDACTED INVOICE NUMBER,142665,"3,892.50",Revenue,25036,Sol-Tec Ltd,RG1 8EQ,0.00
Hra Expenditure,Supervision And Management,Policy And Management,Project Management Support,PROFESSIONAL SERVICES,28/05/2021,REDACTED INVOICE NUMBER,142666,800.00,Revenue,25036,Sol-Tec Ltd,RG1 8EQ,0.00
Director Of Law & Governance,Electoral Services,Election Services,Election Advances,Hire Of Premises,11/05/2021,REDACTED INVOICE NUMBER,142679,160.00,Revenue,14584,South Weald Parish Hall,.,0.00
Hra Expenditure,Repairs And Maintenance,Responsive Void Repairs,Electricity,ELECTRICITY SUPPLY,04/05/2021,REDACTED INVOICE NUMBER,142469,18.62,Revenue,4674,Southern Electric Plc,PO9 5JB,0.00
Hra Expenditure,Repairs And Maintenance,Responsive Void Repairs,Gas,GAS SUPPLY,04/05/2021,REDACTED INVOICE NUMBER,142470,19.92,Revenue,4674,Southern Electric Plc,PO9 5JB,0.00
Director Of Law & Governance,Electoral Services,Election Services,Election Advances,Hire Of Premises,11/05/2021,REDACTED INVOICE NUMBER,142680,250.00,Revenue,28159,St Georges Church Hall,CM15 9HR,0.00
Director Corporate Resources,Asset Management,Asset Management,R&M Bldgs - General,BEE TREATMENT - HARTSWOOD GOLF CLUB,28/05/2021,REDACTED INVOICE NUMBER,142533,80.00,Revenue,26057,St George'S Pest Control Ltd,CM3 8AB,0.00
Director Of Law & Governance,Electoral Services,Election Services,Election Advances,Hire Of Premises,11/05/2021,REDACTED INVOICE NUMBER,142681,200.00,Revenue,28127,St Johns Hall,CM15 0TH,0.00
Director Of Law & Governance,Electoral Services,Election Services,Election Advances,Hire Of Premises,11/05/2021,REDACTED INVOICE NUMBER,142652,120.00,Revenue,28129,St Nicholas Church Hall,CM13 3RB,0.00
Director Of Law & Governance,Electoral Services,Election Services,Election Advances,Hire Of Premises,11/05/2021,REDACTED INVOICE NUMBER,142683,160.00,Revenue,28158,St Peters Church,CM14 5QJ,0.00
Director Of Law & Governance,Electoral Services,Election Services,Election Advances,Hire Of Premises,11/05/2021,REDACTED INVOICE NUMBER,142546,300.00,Revenue,28308,St Stephens Ingrave,CM13 2AT,0.00
Director Of Environment,Grounds Maintenance,Grounds Maintenance,Purchases - General Equipment,VEHICLE PARTS,18/05/2021,REDACTED INVOICE NUMBER,143134,8.75,Revenue,4739,Steve Allan,RM3 0QS,0.00
Director Of Environment,Vehicle Fleet Management,Vehicle Fleet Management,Vehicle Replacement Parts,VEHICLE PARTS,21/05/2021,REDACTED INVOICE NUMBER,143133,33.40,Revenue,4739,Steve Allan,RM3 0QS,0.00
Hra Expenditure,Supervision And Management,Managing Tenancies,Decant Costs,DECANT COSTS,18/05/2021,REDACTED INVOICE NUMBER,143145,"6,126.71",Revenue,191959P,REDACTED PERSONAL DATA,REDACTED,0.00
Director Of Law & Governance,Electoral Services,Election Services,Election Advances,Hire Of Premises,11/05/2021,REDACTED INVOICE NUMBER,142682,120.00,Revenue,28160,Stondon Massey Village Hall,CM15 0EQ,0.00
Director Of Environment,Street Services,Street Cleansing,Purchases - General Equipment,LOCKING POST FOR CONTAINER,14/05/2021,REDACTED INVOICE NUMBER,142046,"1,331.30",Revenue,4750,Storm Environmental Ltd,DY10 9BH,0.00
Director Corporate Resources,Asset Management,Asset Management,R&M Bldgs - General,"PLUMBING WORK - GATE HOUSE, WOODMAN RD",11/05/2021,REDACTED INVOICE NUMBER,142487,239.00,Revenue,4791,T Jones,CM13 1NS,0.00
Director Of Environment,Cemeteries,Cemeteries,R&M Bldgs - General,"BUILDING REPAIRS - CEMETERY, LONDON ROAD",21/05/2021,REDACTED INVOICE NUMBER,143127,166.00,Revenue,4791,T Jones,CM13 1NS,0.00
Capex Director Of C Resources,Asset Management,Community Halls,Enhancements,INTRUDER ALARM - HUTTON POPLARS HALL,25/05/2021,REDACTED INVOICE NUMBER,142394,745.65,Capital,28358,T R Fire And Security Ltd,CO12 5AH,0.00
Capex Director Of C Resources,Asset Management,Community Halls,Enhancements,INTRUDER ALARM - MERRYMEADE HOUSE,25/05/2021,REDACTED INVOICE NUMBER,142395,"1,417.65",Capital,28358,T R Fire And Security Ltd,CO12 5AH,0.00
Capex Director Of C Resources,Asset Management,Community Halls,Enhancements,INTRUDER ALARM - NIGHTINGALE CENTRE,25/05/2021,REDACTED INVOICE NUMBER,142396,745.65,Capital,28358,T R Fire And Security Ltd,CO12 5AH,0.00
Director Of Environment,Cemeteries,Cemeteries,Plant & Mcy - Repairs & Maint,CEMETERY INSPECTIONS / MAINTENANCE,25/05/2021,REDACTED INVOICE NUMBER,142485,"1,184.44",Revenue,4815,Teleshore (Uk) Ltd,NP12 4AD,0.00
Hra Expenditure,Supervision And Management,Managing Tenancies,Decant Costs,DECANT COSTS,18/05/2021,REDACTED INVOICE NUMBER,143144,"6,559.38",Revenue,191958P,REDACTED PERSONAL DATA,REDACTED,0.00
Director Of Law & Governance,Electoral Services,Election Services,Election Advances,Hire Of Premises,11/05/2021,REDACTED INVOICE NUMBER,142542,305.00,Revenue,28126,The Christy Hall Charitable Trust,CM12 0AP,0.00
Balance Sheet,Balance Sheet,Balance Sheet,Highways Stores,COMPOSTABLE LINERS,21/05/2021,REDACTED INVOICE NUMBER,142367,"1,840.00",Revenue,357,The Compost Bag Company Limited,PR26 7PF,0.00
Director Of Environment,"Communities, Health & Leisure",Health & Wellbeing,Grants - General,GRANT,14/05/2021,REDACTED INVOICE NUMBER,143001,600.00,Revenue,187651P,The Essex Community Tree Network Organisation,CM12 OXP,0.00
Director Of Planning & Economy,Planning Development Managemt,Planning Development Managemt,Agency Staff,PROJECT MANAGEMENT SUPPORT,07/05/2021,REDACTED INVOICE NUMBER,141457,684.00,Revenue,4890,The Oyster Partnership,SW1Y 4QX,0.00
Director Of Planning & Economy,Planning Development Managemt,Planning Development Managemt,Agency Staff,PROJECT MANAGEMENT SUPPORT,07/05/2021,REDACTED INVOICE NUMBER,141453,342.00,Revenue,4890,The Oyster Partnership,SW1Y 4QX,0.00
Director Of Planning & Economy,Planning Development Managemt,Planning Development Managemt,Agency Staff,PROJECT MANAGEMENT SUPPORT,07/05/2021,REDACTED INVOICE NUMBER,141451,"1,484.38",Revenue,4890,The Oyster Partnership,SW1Y 4QX,0.00
Director Of Planning & Economy,Planning Development Managemt,Planning Development Managemt,Agency Staff,PROJECT MANAGEMENT SUPPORT,07/05/2021,REDACTED INVOICE NUMBER,141455,75.05,Revenue,4890,The Oyster Partnership,SW1Y 4QX,0.00
Director Of Planning & Economy,Planning Development Managemt,Planning Development Managemt,Agency Staff,PROJECT MANAGEMENT SUPPORT,07/05/2021,REDACTED INVOICE NUMBER,141452,"1,358.50",Revenue,4890,The Oyster Partnership,SW1Y 4QX,0.00
Director Of Planning & Economy,Planning Development Managemt,Planning Development Managemt,Agency Staff,PROJECT MANAGEMENT SUPPORT,07/05/2021,REDACTED INVOICE NUMBER,141456,380.00,Revenue,4890,The Oyster Partnership,SW1Y 4QX,0.00
Director Of Planning & Economy,Planning Policy Total,Planning Policy,Project Management Support,PROJECT MANAGEMENT SUPPORT,07/05/2021,REDACTED INVOICE NUMBER,141458,201.00,Revenue,4890,The Oyster Partnership,SW1Y 4QX,0.00
Director Of Planning & Economy,Planning Policy Total,Planning Policy,Project Management Support,PROJECT MANAGEMENT SUPPORT,07/05/2021,REDACTED INVOICE NUMBER,141459,"1,702.00",Revenue,4890,The Oyster Partnership,SW1Y 4QX,0.00
Director Of Planning & Economy,Planning Policy Total,Planning Policy,Project Management Support,PROJECT MANAGEMENT SUPPORT,07/05/2021,REDACTED INVOICE NUMBER,141454,518.00,Revenue,4890,The Oyster Partnership,SW1Y 4QX,0.00
Director Of Planning & Economy,Planning Policy Total,Planning Policy,Project Management Support,PROJECT MANAGEMENT SUPPORT,07/05/2021,REDACTED INVOICE NUMBER,141450,217.00,Revenue,4890,The Oyster Partnership,SW1Y 4QX,0.00
Director Of Planning & Economy,Planning Development Managemt,Planning Development Managemt,Agency Staff,PROJECT MANAGEMENT SUPPORT,14/05/2021,REDACTED INVOICE NUMBER,142189,"1,512.00",Revenue,4890,The Oyster Partnership,SW1Y 4QX,0.00
Director Of Planning & Economy,Planning Development Managemt,Planning Development Managemt,Agency Staff,PROJECT MANAGEMENT SUPPORT,14/05/2021,REDACTED INVOICE NUMBER,142191,225.63,Revenue,4890,The Oyster Partnership,SW1Y 4QX,0.00
Director Of Planning & Economy,Planning Development Managemt,Planning Development Managemt,Agency Staff,PROJECT MANAGEMENT SUPPORT,14/05/2021,REDACTED INVOICE NUMBER,142192,"1,767.00",Revenue,4890,The Oyster Partnership,SW1Y 4QX,0.00
Director Of Planning & Economy,Planning Policy Total,Planning Policy,Project Management Support,PROJECT MANAGEMENT SUPPORT,14/05/2021,REDACTED INVOICE NUMBER,142190,"1,591.00",Revenue,4890,The Oyster Partnership,SW1Y 4QX,0.00
Director Of Planning & Economy,Planning Development Managemt,Planning Development Managemt,Agency Staff,PROJECT MANAGEMENT SUPPORT,21/05/2021,REDACTED INVOICE NUMBER,142477,"1,170.00",Revenue,4890,The Oyster Partnership,SW1Y 4QX,0.00
Director Of Planning & Economy,Planning Development Managemt,Planning Development Managemt,Agency Staff,PROJECT MANAGEMENT SUPPORT,21/05/2021,REDACTED INVOICE NUMBER,142473,"1,511.93",Revenue,4890,The Oyster Partnership,SW1Y 4QX,0.00
Director Of Planning & Economy,Planning Development Managemt,Planning Development Managemt,Agency Staff,PROJECT MANAGEMENT SUPPORT,21/05/2021,REDACTED INVOICE NUMBER,142474,"1,919.00",Revenue,4890,The Oyster Partnership,SW1Y 4QX,0.00
Director Of Planning & Economy,Planning Policy Total,Planning Policy,Project Management Support,PROJECT MANAGEMENT SUPPORT,21/05/2021,REDACTED INVOICE NUMBER,142478,"2,479.00",Revenue,4890,The Oyster Partnership,SW1Y 4QX,0.00
Director Of Planning & Economy,Planning Policy Total,Planning Policy,Project Management Support,PROJECT MANAGEMENT SUPPORT,21/05/2021,REDACTED INVOICE NUMBER,142476,"2,010.00",Revenue,4890,The Oyster Partnership,SW1Y 4QX,0.00
Director Of Planning & Economy,Planning Policy Total,Planning Policy,Project Management Support,PROJECT MANAGEMENT SUPPORT,21/05/2021,REDACTED INVOICE NUMBER,142472,"1,961.00",Revenue,4890,The Oyster Partnership,SW1Y 4QX,0.00
Director Of Planning & Economy,Planning Policy Total,Planning Policy,Project Management Support,PROJECT MANAGEMENT SUPPORT,21/05/2021,REDACTED INVOICE NUMBER,142475,465.00,Revenue,4890,The Oyster Partnership,SW1Y 4QX,0.00
Director Of Planning & Economy,Planning Development Managemt,Planning Development Managemt,Agency Staff,PROJECT MANAGEMENT SUPPORT,28/05/2021,REDACTED INVOICE NUMBER,142732,"1,260.00",Revenue,4890,The Oyster Partnership,SW1Y 4QX,0.00
Director Of Planning & Economy,Planning Development Managemt,Planning Development Managemt,Agency Staff,PROJECT MANAGEMENT SUPPORT,28/05/2021,REDACTED INVOICE NUMBER,142730,593.75,Revenue,4890,The Oyster Partnership,SW1Y 4QX,0.00
Director Of Planning & Economy,Planning Development Managemt,Planning Development Managemt,Agency Staff,PROJECT MANAGEMENT SUPPORT,28/05/2021,REDACTED INVOICE NUMBER,142735,"2,004.50",Revenue,4890,The Oyster Partnership,SW1Y 4QX,0.00
Director Of Planning & Economy,Planning Policy Total,Planning Policy,Project Management Support,PROJECT MANAGEMENT SUPPORT,28/05/2021,REDACTED INVOICE NUMBER,142731,"2,479.00",Revenue,4890,The Oyster Partnership,SW1Y 4QX,0.00
Director Of Planning & Economy,Planning Policy Total,Planning Policy,Project Management Support,PROJECT MANAGEMENT SUPPORT,28/05/2021,REDACTED INVOICE NUMBER,142733,"2,775.00",Revenue,4890,The Oyster Partnership,SW1Y 4QX,0.00
Director Of Planning & Economy,Planning Policy Total,Planning Policy,Project Management Support,PROJECT MANAGEMENT SUPPORT,28/05/2021,REDACTED INVOICE NUMBER,142729,"1,147.00",Revenue,4890,The Oyster Partnership,SW1Y 4QX,0.00
Director Of Planning & Economy,Planning Policy Total,Planning Policy,Contracted Services,LOCAL PLAN PREP,14/05/2021,REDACTED INVOICE NUMBER,141947,"87,689.17",Revenue,28488,The Planning Inspectorate,BS1 6PN,0.00
Director Of Environment,Open Spaces,Recreation Areas,R&M Grounds - Play Equipment,OUTDOOR ANNUAL INSPECTIONS,14/05/2021,REDACTED INVOICE NUMBER,142055,"1,498.75",Revenue,4896,The Play Inspection Company Ltd,BH16 6NL,0.00
Director Of Environment,Open Spaces,Recreation Areas,R&M Grounds - Play Equipment,PLAY INSPECTION LICENSE RENEWAL,25/05/2021,REDACTED INVOICE NUMBER,142391,"3,525.00",Revenue,4896,The Play Inspection Company Ltd,BH16 6NL,0.00
Director Of Law & Governance,Legal Services & Data Protect,Legal Services & Data Protect,Subscriptions,SUBSCRIPTIONS - LEGAL. 21/22,18/05/2021,REDACTED INVOICE NUMBER,142930,"7,587.00",Revenue,4926,Thomson Reuters,EC3N 1DL,0.00
Director Of Law & Governance,Electoral Services,Election Services,Election Advances,ELECTIONS,11/05/2021,REDACTED INVOICE NUMBER,142745,120.00,Revenue,23274,Three Arch Bridge Community Club,.,0.00
Director Of Environment,Env Health & Licensing Admin,Env Health & Licensing Admin,Contracted Services,COVID ENFORCEMENT. JAN- MAR '21,07/05/2021,REDACTED INVOICE NUMBER,142893,"4,176.00",Revenue,4931,Thurrock Borough Council,RM17 6LT,0.00
Director Corporate Resources,Human Resources,Human Resources,Contracted Services,PAYROLL SERVICE. JAN - MAR '21,11/05/2021,REDACTED INVOICE NUMBER,142892,414.54,Revenue,4931,Thurrock Borough Council,RM17 6LT,0.00
Director Of Planning & Economy,Land Charges,Land Charges,Contracted Services,SHARED SERVICE - PLANNING. JAN-MAR'21,14/05/2021,REDACTED INVOICE NUMBER,142908,"3,625.00",Revenue,4931,Thurrock Borough Council,RM17 6LT,0.00
Director Of Planning & Economy,Planning Development Managemt,Planning Development Managemt,Contracted Services,SHARED SERVICE - PLANNING. JAN-MAR'21,14/05/2021,REDACTED INVOICE NUMBER,142908,"19,125.00",Revenue,4931,Thurrock Borough Council,RM17 6LT,0.00
Director Of Environment,"Communities, Health & Leisure",Sports & Social Venues,Purchases - Materials,VACUUM / CHARGER,11/05/2021,REDACTED INVOICE NUMBER,141647,352.97,Revenue,28496,Thurrock Engineering Supplies,RM20 3XD,0.00
Director Of Law & Governance,Electoral Services,Election Services,Election Advances,Hire Of Premises,11/05/2021,REDACTED INVOICE NUMBER,142550,385.00,Revenue,4940,Tipps Cross Remembrance Hall Trust Fund,CM15 0DX,0.00
Director Corporate Resources,Corporate Management,Corporate Management Costs,Treasury - Brokerage Fees Gen,DARLINGTON BOROUGH COUNCIL,18/05/2021,REDACTED INVOICE NUMBER,142797,"4,986.30",Revenue,4975,Tradition (Uk) Limited,EC3A 7QX,0.00
Balance Sheet,Balance Sheet,Balance Sheet,Agency - Active Brentwood,ONLINE WALK FORM,25/05/2021,REDACTED INVOICE NUMBER,143003,300.00,Revenue,4979,Trailnet C.I.C,CM13 3PZ,0.00
Director Of Environment,"Communities, Health & Leisure",Health & Wellbeing,Grants - General,ACTIVE TRAVEL GRANT,25/05/2021,REDACTED INVOICE NUMBER,143002,"3,500.00",Revenue,4979,Trailnet C.I.C,CM13 3PZ,0.00
Director Of Environment,Vehicle Fleet Management,Vehicle Fleet Management,Vehicle Replacement Parts,Insurance Excess,18/05/2021,REDACTED INVOICE NUMBER,142696,250.00,Revenue,28554,Transweld Commercial Services Ltd,RM20 4DH,0.00
Director Of Environment,Street Services,Street Cleansing,Purchases - General Equipment,MATERIALS,04/05/2021,REDACTED INVOICE NUMBER,141634,77.76,Revenue,4983,Travis Perkins Trading Co. Ltd,CM14 5PN,0.00
Director Of Environment,Street Services,Street Cleansing,Purchases - General Equipment,MATERIALS,04/05/2021,REDACTED INVOICE NUMBER,141660,60.23,Revenue,4983,Travis Perkins Trading Co. Ltd,CM14 5PN,0.00
Director Of Environment,Street Services,Street Cleansing,Purchases - General Equipment,MATERIALS,18/05/2021,REDACTED INVOICE NUMBER,142798,55.36,Revenue,4983,Travis Perkins Trading Co. Ltd,CM14 5PN,0.00
Director Of Environment,Street Services,Street Cleansing,Purchases - General Equipment,MATERIALS,25/05/2021,REDACTED INVOICE NUMBER,143138,88.75,Revenue,4983,Travis Perkins Trading Co. Ltd,CM14 5PN,0.00
Hra Expenditure,Special Services,Sheltered Welfare Services,Miscellaneous Expenses,TAXI CHARGE,04/05/2021,REDACTED INVOICE NUMBER,142216,18.60,Revenue,4984,Treble Twenty Cars + Couriers Ltd,CM14 4LF,0.00
Balance Sheet,Balance Sheet,Balance Sheet,Highways Stores,TISSUE ROLLS / GLOVES,07/05/2021,REDACTED INVOICE NUMBER,141609,622.90,Revenue,4993,Tuddick Mill Ltd,PL4 6EX,0.00
Capex Director Of Housing,Housing - Hra,Housing Stock -Health & Safety,Enhancements,EQUIPMENT REPAIR,04/05/2021,REDACTED INVOICE NUMBER,135175,534.29,Capital,4994,Tunstall Telecom Ltd,DN14 0HR,0.00
Capex Director Of Housing,Housing - Hra,Housing Stock -Health & Safety,Enhancements,REFIT HEAT SENSOR - JUNIPER COURT,04/05/2021,REDACTED INVOICE NUMBER,136733,425.61,Capital,4994,Tunstall Telecom Ltd,DN14 0HR,0.00
Hra Expenditure,Repairs And Maintenance,Planned Maintenance,R&M Fix & Fit - Alarms,MAINTENANCE CONTRACT - 21/22,14/05/2021,REDACTED INVOICE NUMBER,142251,"3,840.34",Revenue,4994,Tunstall Telecom Ltd,DN14 0HR,0.00
Director Of Planning & Economy,Planning Policy Total,Planning Policy,Other Fees & Service,FEES - DUNTON HILLS GARDEN VILLAGE,07/05/2021,REDACTED INVOICE NUMBER,141909,900.00,Revenue,28538,Uds Planning Ltd,SW19 8RY,0.00
Director Corporate Resources,Office Accommodation,Office Accommodation,Postage Costs Direct,IMail Premium Class Mono Lette,07/05/2021,REDACTED INVOICE NUMBER,142920,21.76,Revenue,5008,Ukmail,SL1 4LZ,0.00
Director Corporate Resources,Office Accommodation,Office Accommodation,Postage Costs Direct,POSTAL CHARGES - MAY '21,18/05/2021,REDACTED INVOICE NUMBER,143263,23.48,Revenue,5008,Ukmail,SL1 4LZ,0.00
Director Corporate Resources,Office Accommodation,Office Accommodation,Postage Costs Direct,IMail Premium Class Colour Let,21/05/2021,REDACTED INVOICE NUMBER,143740,5.34,Revenue,5008,Ukmail,SL1 4LZ,0.00
Director Corporate Resources,Office Accommodation,Office Accommodation,Postage Costs Direct,POSTAL CHARGES,28/05/2021,REDACTED INVOICE NUMBER,144044,19.14,Revenue,5008,Ukmail,SL1 4LZ,0.00
Director Of Environment,Vehicle Fleet Management,Vehicle Fleet Management,Vehicle - Tyres,TYRE CONTRACT - APR '21,28/05/2021,REDACTED INVOICE NUMBER,142862,"5,592.93",Revenue,5026,Vaculug Technologies Ltd,NG31 8HE,0.00
Director Of Environment,Street Services,Street Cleansing,Waste Disposal,WASTE DISPOSAL,28/05/2021,REDACTED INVOICE NUMBER,143693,"2,632.52",Revenue,27396,Veolia Es Uk,N1 9JY,0.00
Director Of Environment,Env Health Team & Support,Env Health Team & Support,Agency Staff,PROJECT MANAGEMENT SUPPORT,07/05/2021,REDACTED INVOICE NUMBER,142509,"1,617.00",Revenue,25948,Vivid Resourcing Limited,EC1V 4QJ,0.00
Director Of Environment,Env Health Team & Support,Env Health Team & Support,Agency Staff,PROJECT MANAGEMENT SUPPORT,14/05/2021,REDACTED INVOICE NUMBER,142915,"1,617.00",Revenue,25948,Vivid Resourcing Limited,EC1V 4QJ,0.00
Director Of Environment,Env Health Team & Support,Env Health Team & Support,Agency Staff,PROJECT MANAGEMENT SUPPORT,18/05/2021,REDACTED INVOICE NUMBER,143233,"1,333.50",Revenue,25948,Vivid Resourcing Limited,EC1V 4QJ,0.00
Director Of Environment,Env Health Team & Support,Env Health Team & Support,Agency Staff,PROJECT MANAGEMENT SUPPORT,28/05/2021,REDACTED INVOICE NUMBER,143705,"1,638.00",Revenue,25948,Vivid Resourcing Limited,EC1V 4QJ,0.00
Director Of Environment,Env Health Team & Support,Env Health Team & Support,Agency Staff,PROJECT MANAGEMENT SUPPORT,28/05/2021,REDACTED INVOICE NUMBER,144034,"1,627.50",Revenue,25948,Vivid Resourcing Limited,EC1V 4QJ,0.00
Director Digital & Customer En,Digital Servs & Transformation,Ict Services,Network Maintenance,GSi Convergence Framework,04/05/2021,REDACTED INVOICE NUMBER,142712,-738.55,Revenue,5056,Vodafone Limited,M22 5RR,0.00
Director Digital & Customer En,Digital Servs & Transformation,Ict Services,Network Maintenance,PHONE CHARGES,04/05/2021,REDACTED INVOICE NUMBER,142707,"1,355.74",Revenue,5056,Vodafone Limited,M22 5RR,0.00
Director Digital & Customer En,Digital Servs & Transformation,Ict Services,Network Maintenance,PHONE CHARGES,04/05/2021,REDACTED INVOICE NUMBER,142713,"1,355.74",Revenue,5056,Vodafone Limited,M22 5RR,0.00
Director Digital & Customer En,Digital Servs & Transformation,Ict Services,Network Maintenance,GSi Convergence Framework,14/05/2021,REDACTED INVOICE NUMBER,143212,-738.55,Revenue,5056,Vodafone Limited,M22 5RR,0.00
Director Digital & Customer En,Digital Servs & Transformation,Ict Services,Network Maintenance,GSi Convergence Framework (GCF,14/05/2021,REDACTED INVOICE NUMBER,143211,"2,711.48",Revenue,5056,Vodafone Limited,M22 5RR,0.00
Director Digital & Customer En,Digital Servs & Transformation,Ict Services,Network Maintenance,GSi Convergence Framework (GCF,14/05/2021,REDACTED INVOICE NUMBER,143208,"1,355.74",Revenue,5056,Vodafone Limited,M22 5RR,0.00
Director Digital & Customer En,Digital Servs & Transformation,Ict Services,Network Maintenance,GSi Convergence Framework (GCF,14/05/2021,REDACTED INVOICE NUMBER,143209,"1,355.74",Revenue,5056,Vodafone Limited,M22 5RR,0.00
Director Digital & Customer En,Digital Servs & Transformation,Ict Services,Network Maintenance,GSi Convergence Framework (GCF,14/05/2021,REDACTED INVOICE NUMBER,143210,"4,067.22",Revenue,5056,Vodafone Limited,M22 5RR,0.00
Director Digital & Customer En,Digital Servs & Transformation,Ict Services,Network Maintenance,GSi Convergence Framework (GCF,14/05/2021,REDACTED INVOICE NUMBER,143207,"1,355.74",Revenue,5056,Vodafone Limited,M22 5RR,0.00
Director Digital & Customer En,Digital Servs & Transformation,Ict Services,Network Maintenance,GSi Convergence Framework (GCF,14/05/2021,REDACTED INVOICE NUMBER,143205,"1,355.74",Revenue,5056,Vodafone Limited,M22 5RR,0.00
Director Digital & Customer En,Digital Servs & Transformation,Ict Services,Network Maintenance,TOWN HALL,14/05/2021,REDACTED INVOICE NUMBER,143206,"2,096.04",Revenue,5056,Vodafone Limited,M22 5RR,0.00
Director Of Environment,Street Services,Street Cleansing,Sub-Contractors,EXCHANGE WASTE BIN,25/05/2021,REDACTED INVOICE NUMBER,142551,250.00,Revenue,5061,W Martin + Son,CM7 8QS,0.00
Director Of Law & Governance,Electoral Services,Election Services,Election Advances,Hire Of Premises,11/05/2021,REDACTED INVOICE NUMBER,142549,100.00,Revenue,5070,Warley Primary School,CM14 5LF,0.00
Director Of Environment,Vehicle Fleet Management,Vehicle Fleet Management,Vehicle R&M - External,VEHICLE REPAIRS,07/05/2021,REDACTED INVOICE NUMBER,141615,"1,679.78",Revenue,25911,Watling Jcb Ltd,LE8 6LJ,0.00
Director Of Environment,Vehicle Fleet Management,Vehicle Fleet Management,Vehicle R&M - External,Periodic maintenance,21/05/2021,REDACTED INVOICE NUMBER,142402,151.84,Revenue,25911,Watling Jcb Ltd,LE8 6LJ,0.00
Director Corporate Resources,Asset Management,Asset Management,Water,WATER SUPPLY,11/05/2021,REDACTED INVOICE NUMBER,142843,23.47,Revenue,171,Wave - Business. Was Anglian Water,CM20 9HA,0.00
Hra Expenditure,"Rents, Rates & Other Charges","Rents, Rates & Other Charges",Water,WATER SUPPLY,14/05/2021,REDACTED INVOICE NUMBER,142866,731.21,Revenue,171,Wave - Business. Was Anglian Water,CM20 9HA,0.00
Hra Expenditure,"Rents, Rates & Other Charges","Rents, Rates & Other Charges",Water,WATER SUPPLY,18/05/2021,REDACTED INVOICE NUMBER,143173,78.36,Revenue,171,Wave - Business. Was Anglian Water,CM20 9HA,0.00
Director Of Environment,Street Services,Street Cleansing,Sub-Contractors,VEHICLE RECOVERY,07/05/2021,REDACTED INVOICE NUMBER,142352,250.00,Revenue,5104,Whitehouse Recovery,CM14 5RP,0.00
Director Of Environment,Street Services,Street Cleansing,Sub-Contractors,VEHICLE RECOVERY,07/05/2021,REDACTED INVOICE NUMBER,142351,250.00,Revenue,5104,Whitehouse Recovery,CM14 5RP,0.00
Director Of Environment,Street Services,Street Cleansing,Sub-Contractors,TRAILER RECOVERY,25/05/2021,REDACTED INVOICE NUMBER,143043,200.00,Revenue,5104,Whitehouse Recovery,CM14 5RP,0.00
Director Of Environment,Street Services,Street Cleansing,Sub-Contractors,TRAILER RECOVERY,25/05/2021,REDACTED INVOICE NUMBER,143042,100.00,Revenue,5104,Whitehouse Recovery,CM14 5RP,0.00
Capex Director Of Environment,Other Environmental Services,Disabled Facilities Grant,Grants - General,To carry out works,21/05/2021,REDACTED INVOICE NUMBER,143175,"8,632.15",Capital,23620,Whitlock Contractors Ltd,SS7 5HB,0.00
Capex Director Of Environment,S106 Former Elliots Nightclub,S106 Former Elliots Nightclub,Enhancements,RETAINING WALLS,21/05/2021,REDACTED INVOICE NUMBER,142369,"2,053.00",Capital,24921,Woodblocx Ltd,IV15 9UN,0.00
Director Of Environment,Vehicle Fleet Management,Vehicle Fleet Management,Vehicle Replacement Parts,VEHICLE PARTS,18/05/2021,REDACTED INVOICE NUMBER,142412,213.95,Revenue,5142,Wright Parts,RM13 8NH,0.00
Director Of Environment,Open Spaces,Recreation Areas,Insurances - General Claims,ZMCD Receipts,21/05/2021,REDACTED INVOICE NUMBER,143223,500.00,Revenue,5169,Zurich Insurance Plc,PO15 7JZ,0.00
Hra Expenditure,"Rents, Rates & Other Charges","Rents, Rates & Other Charges",Insurances - General Claims,ZMCD Receipts,21/05/2021,REDACTED INVOICE NUMBER,143223,500.00,Revenue,5169,Zurich Insurance Plc,PO15 7JZ,0.00
